Workbook

Sheet Index
A1: Number | B1: Essay's Title | C1: Magazine | D1: Volume | E1: Year | F1: Pages | G1: Folder | H1: File/Hyperlink | I1: Sheet
A2: 1 | B2: Norwegian Caledonides: An isotopic investigation | C2: Lithos | D2: 117 | E2: 2010 | F2: Pages 1-19 | G2: C:\Essays\Geo_Dating\Neller\ | H2: Future_Ages_01.pdf | I2: F01 | J2: =C2 & ", " & E2 & ", " & D2 & ", " & F2 -> Lithos, 2010, 117, Pages 1-19
A3: 2 | B3: Multi-stage origin of Roberts Victor eclogites | C3: Lithos | D3: 142-143 | E3: 2012 | F3: Pages 161-181 | G3: C:\Essays\Geo_Dating\Neller\ | H3: Future_Ages_02.pdf | I3: F02 | J3: Lithos, 2012, 142-143, Pages 161-181
A4: 3 | B4: Re-Os systematics of mantle xenoliths | C4: Geochimica et Cosmochimica Acta | D4: 63 | E4: 1999 | F4: Pages 1203-1217 | G4: C:\Essays\Geo_Dating\Neller\ | H4: Future_Ages_03.pdf | I4: F03 | J4: Geochimica et Cosmochimica Acta, 1999, 63, Pages 1203-1217
A5: 18 | B5: The Raobazhai peridotite massifs | C5: Chemical Geology | D5: 268 | E5: 2009 | F5: Pages 1-14 | G5: C:\Essays\Geo_Dating\Neller\ | H5: Future_Ages_04.pdf | I5: F04 | J5: Chemical Geology, 2009, 268, Pages 1-14
A6: 4 | B6: Re/Os Isotopes of Sulfides | C6: Lithos | D6: 102 | E6: 2008 | F6: Pages 43-64 | G6: C:\Essays\Geo_Dating\Neller\ | H6: Future_Ages_05.pdf | I6: F05 | J6: Lithos, 2008, 102, Pages 43-64
A7: 17 | B7: In situ Re-Os evidence | C7: Journal of Asian Earth Sciences | D7: 62 | E7: 2013 | F7: Pages 37-50 | G7: C:\Essays\Geo_Dating\Neller\ | H7: Future_Ages_07.pdf | I7: F07 | J7: Journal of Asian Earth Sciences, 2013, 62, Pages 37-50
A8: 5 | B8: Lu-Hf Geochronology | C8: Chemical Geology | D8: 142 | E8: 1997 | F8: Pages 63-78 | G8: C:\Essays\Geo_Dating\Neller\ | H8: Future_Ages_08.pdf | I8: F08 | J8: Chemical Geology, 1997, 142, Pages 63-78
A9: 6 | B9: Isotopic Disequilibrium | C9: Chemical Geology | D9: 162 | E9: 2000 | F9: Pages 169-191 | G9: C:\Essays\Geo_Dating\Neller\ | H9: Future_Ages_09.pdf | I9: F09 | J9: Chemical Geology, 2000, 162, Pages 169-191
A10: 7 | B10: Multiple Metasomatic Events | C10: Lithos | D10: 112-S | E10: 2009 | F10: Pages 896-912 | G10: C:\Essays\Geo_Dating\Neller\ | H10: Future_Ages_11.pdf | I10: F11 | J10: Lithos, 2009, 112-S, Pages 896-912
A11: 8 | B11: Re-Os Evidence | C11: Chemical Geology | D11: 236 | E11: 2007 | F11: Pages 323-338 | G11: C:\Essays\Geo_Dating\Neller\ | H11: Future_Ages_12.pdf | I11: F12 | J11: Chemical Geology, 2007, 236, Pages 323-338
A12: 9 | B12: Central Asian Orogenic Belt | C12: Lithos | D12: 126 | E12: 2011 | F12: Pages 233-247 | G12: C:\Essays\Geo_Dating\Neller\ | H12: Future_Ages_13.pdf | I12: F13 | J12: Lithos, 2011, 126, Pages 233-247
A13: 10 | B13: The Mamonia complex, Cyprus | C13: Chemical Geology | D13: 248 | E13: 2008 | F13: Pages 195-212 | G13: C:\Essays\Geo_Dating\Neller\ | H13: Future_Ages_14.pdf | I13: F14 | J13: Chemical Geology, 2008, 248, Pages 195-212
A14: 11 | B14: A Paleozoic Convergent Plate | C14: Chemical Geology | D14: 208 | E14: 2004 | F14: Pages 141-156 | G14: C:\Essays\Geo_Dating\Neller\ | H14: Future_Ages_16.pdf | I14: F16 | J14: Chemical Geology, 2004, 208, Pages 141-156
A15: 12 | B15: Northern Canadian Cordillera Xenoliths | C15: Geochimica et Cosmochimica Acta | D15: 64 | E15: 2000 | F15: Pages 3061-3071 | G15: C:\Essays\Geo_Dating\Neller\ | H15: Future_Ages_17.pdf | I15: F17 | J15: Geochimica et Cosmochimica Acta, 2000, 64, Pages 3061-3071
A16: 13 | B16: Xenoliths from Yangyuan and Fansi | C16: Lithos | D16: 102 | E16: 2008 | F16: Pages 25-42 | G16: C:\Essays\Geo_Dating\Neller\ | H16: Future_Ages_19.pdf | I16: F19 | J16: Lithos, 2008, 102, Pages 25-42
A17: 14 | B17: Formation of the North Atlantic Craton | C17: Chemical Geology | D17: 276 | E17: 2010 | F17: Pages 166-187 | G17: C:\Essays\Geo_Dating\Neller\ | H17: Future_Ages_21.pdf | I17: F21 | J17: Chemical Geology, 2010, 276, Pages 166-187
A18: 15 | B18: Canadian Cordillera Lithosphere | C18: Chemical Geology | D18: 166 | E18: 2000 | F18: Pages 85-101 | G18: C:\Essays\Geo_Dating\Neller\ | H18: Future_Ages_23.pdf | I18: F23 | J18: Chemical Geology, 2000, 166, Pages 85-101
A19: 16 | B19: In situ Measurement of Re-Os Isotopes | C19: Geochimica et Cosmochimica Acta | D19: 66 | E19: 2002 | F19: Pages 1037-1050 | G19: C:\Essays\Geo_Dating\Neller\ | H19: Future_Ages_26.pdf | I19: F26 | J19: Geochimica et Cosmochimica Acta, 2002, 66, Pages 1037-1050

Sheet F01
A1: Sample | B1: CHUR | C1: DM | D1: ALL DATES | I1: 87Rb/86Sr | J1: 87Rb/86Sr | K1: 87Rb/86Sr | L1: 87Rb/86Sr | M1: 87Rb/86Sr
A2: Number | B2: Million Years | C2: Million Years | D2: Million Years | I2: -31071 | J2: 635 | K2: 1461 | L2: 1814 | M2: 2611
A3: 1 | B3: -20034 | C3: -31071 | D3: -31071 | I3: -20034 | J3: 686 | K3: 1464 | L3: 1842 | M3: 2630
A4: 2 | B4: -7491 | C4: -2394 | D4: -20034 | I4: -7491 | J4: 704 | K4: 1471 | L4: 1844 | M4: 2711
A5: 3 | B5: -6102 | C5: -2104 | D5: -7491 | I5: -6102 | J5: 732 | K5: 1479 | L5: 1850 | M5: 2761
A6: 4 | B6: -2184 | C6: -546 | D6: -6102 | I6: -2394 | J6: 820 | K6: 1482 | L6: 1859 | M6: 3242
A7: 5 | B7: -1220 | C7: -249 | D7: -2394 | I7: -2184 | J7: 919 | K7: 1492 | L7: 1871 | M7: 3454
A8: 6 | B8: -1201 | C8: -90 | D8: -2184 | I8: -2104 | J8: 940 | K8: 1500 | L8: 1878 | M8: 3590
A9: 7 | B9: -1038 | C9: 119 | D9: -2104 | I9: -1220 | J9: 940 | K9: 1515 | L9: 1884 | M9: 3663
A10: 8 | B10: -836 | C10: 133 | D10: -1220 | I10: -1201 | J10: 951 | K10: 1520 | L10: 1893 | M10: 4009
A11: 9 | B11: -685 | C11: 139 | D11: -1201 | I11: -1038 | J11: 955 | K11: 1538 | L11: 1902 | M11: 4139
A12: 10 | B12: -655 | C12: 181 | D12: -1038 | I12: -836 | J12: 963 | K12: 1549 | L12: 1908 | M12: 4153
A13: 11 | B13: -483 | C13: 258 | D13: -836 | I13: -685 | J13: 971 | K13: 1549 | L13: 1912 | M13: 4318
A14: 12 | B14: -200 | C14: 370 | D14: -685 | I14: -655 | J14: 983 | K14: 1549 | L14: 1925 | M14: 4527
A15: 13 | B15: -137 | C15: 488 | D15: -655 | I15: -546 | J15: 1020 | K15: 1559 | L15: 1958 | M15: 4580
A16: 14 | B16: 5 | C16: 516 | D16: -546 | I16: -483 | J16: 1021 | K16: 1580 | L16: 1962 | M16: 4849
A17: 15 | B17: 36 | C17: 635 | D17: -483 | I17: -249 | J17: 1062 | K17: 1602 | L17: 1966 | M17: 4960
A18: 16 | B18: 423 | C18: 704 | D18: -249 | I18: -200 | J18: 1077 | K18: 1606 | L18: 1971 | M18: 5525
A19: 17 | B19: 500 | C19: 732 | D19: -200 | I19: -137 | J19: 1083 | K19: 1615 | L19: 1982 | M19: 5788
A20: 18 | B20: 577 | C20: 940 | D20: -137 | I20: -90 | J20: 1147 | K20: 1616 | L20: 2020 | M20: 6510
A21: 19 | B21: 582 | C21: 940 | D21: -90 | I21: 5 | J21: 1153 | K21: 1648 | L21: 2031 | M21: 6598
A22: 20 | B22: 625 | C22: 951 | D22: 5 | I22: 36 | J22: 1211 | K22: 1650 | L22: 2073 | M22: 7031
A23: 21 | B23: 686 | C23: 955 | D23: 36 | I23: 119 | J23: 1215 | K23: 1663 | L23: 2078 | M23: 7049
A24: 22 | B24: 820 | C24: 963 | D24: 119 | I24: 133 | J24: 1233 | K24: 1665 | L24: 2081 | M24: 7710
A25: 23 | B25: 919 | C25: 971 | D25: 133 | I25: 139 | J25: 1240 | K25: 1674 | L25: 2085 | M25: 7816
A26: 24 | B26: 983 | C26: 1021 | D26: 139 | I26: 181 | J26: 1292 | K26: 1704 | L26: 2103 | M26: 9751
A27: 25 | B27: 1020 | C27: 1062 | D27: 181 | I27: 258 | J27: 1324 | K27: 1711 | L27: 2103 | M27: 9789
A28: 26 | B28: 1077 | C28: 1153 | D28: 258 | I28: 370 | J28: 1328 | K28: 1714 | L28: 2121 | M28: 13959
A29: 27 | B29: 1083 | C29: 1215 | D29: 370 | I29: 423 | J29: 1344 | K29: 1720 | L29: 2286 | M29: 17711
A30: 28 | B30: 1147 | C30: 1233 | D30: 423 | I30: 488 | J30: 1391 | K30: 1723 | L30: 2305 | M30: 18704
A31: 29 | B31: 1211 | C31: 1292 | D31: 488 | I31: 500 | J31: 1392 | K31: 1740 | L31: 2320 | M31: 38213
A32: 30 | B32: 1240 | C32: 1392 | D32: 500 | I32: 516 | J32: 1413 | K32: 1756 | L32: 2519 | M32: 40285
A33: 31 | B33: 1324 | C33: 1432 | D33: 516 | I33: 577 | J33: 1430 | K33: 1779 | L33: 2543 | M33: 64577
A34: 32 | B34: 1328 | C34: 1455 | D34: 577 | I34: 582 | J34: 1432 | K34: 1784 | L34: 2592 | M34: 76523
A35: 33 | B35: 1344 | C35: 1464 | D35: 582 | I35: 625 | J35: 1455 | K35: 1789 | L35: 2594 | M35: 76523
A36: 34 | B36: 1391 | C36: 1471 | D36: 625
A37: 35 | B37: 1413 | C37: 1482 | D37: 635
A38: 36 | B38: 1430 | C38: 1500 | D38: 686
A39: 37 | B39: 1461 | C39: 1549 | D39: 704
A40: 38 | B40: 1479 | C40: 1549 | D40: 732
A41: 39 | B41: 1492 | C41: 1559 | D41: 820
A42: 40 | B42: 1515 | C42: 1602 | D42: 919
A43: 41 | B43: 1520 | C43: 1606 | D43: 940
A44: 42 | B44: 1538 | C44: 1615 | D44: 940
A45: 43 | B45: 1549 | C45: 1648 | D45: 951
A46: 44 | B46: 1580 | C46: 1650 | D46: 955
A47: 45 | B47: 1616 | C47: 1663 | D47: 963
A48: 46 | B48: 1711 | C48: 1665 | D48: 971
A49: 47 | B49: 1714 | C49: 1674 | D49: 983
A50: 48 | B50: 1720 | C50: 1704 | D50: 1020
A51: 49 | B51: 1784 | C51: 1723 | D51: 1021
A52: 50 | B52: 1789 | C52: 1740 | D52: 1062
A53: 51 | B53: 1814 | C53: 1756 | D53: 1077
A54: 52 | B54: 1842 | C54: 1779 | D54: 1083
A55: 53 | B55: 1844 | C55: 1859 | D55: 1147
A56: 54 | B56: 1850 | C56: 1871 | D56: 1153
A57: 55 | B57: 1902 | C57: 1878 | D57: 1211
A58: 56 | B58: 1908 | C58: 1884 | D58: 1215
A59: 57 | B59: 1925 | C59: 1893 | D59: 1233
A60: 58 | B60: 1966 | C60: 1912 | D60: 1240
A61: 59 | B61: 2081 | C61: 1958 | D61: 1292
A62: 60 | B62: 2121 | C62: 1962 | D62: 1324
A63: 61 | B63: 2286 | C63: 1971 | D63: 1328
A64: 62 | B64: 2320 | C64: 1982 | D64: 1344
A65: 63 | B65: 2519 | C65: 2020 | D65: 1391
A66: 64 | B66: 2543 | C66: 2031 | D66: 1392
A67: 65 | B67: 2592 | C67: 2073 | D67: 1413
A68: 66 | B68: 2630 | C68: 2078 | D68: 1430
A69: 67 | B69: 2761 | C69: 2085 | D69: 1432
A70: 68 | B70: 3454 | C70: 2103 | D70: 1455
A71: 69 | B71: 3663 | C71: 2103 | D71: 1461
A72: 70 | B72: 4009 | C72: 2305 | D72: 1464
A73: 71 | B73: 4153 | C73: 2594 | D73: 1471
A74: 72 | B74: 4527 | C74: 2611 | D74: 1479
A75: 73 | B75: 4849 | C75: 2711 | D75: 1482
A76: 74 | B76: 4960 | C76: 3242 | D76: 1492
A77: 75 | B77: 6510 | C77: 3590 | D77: 1500
A78: 76 | B78: 7049 | C78: 4139 | D78: 1515
A79: 77 | B79: 7816 | C79: 4318 | D79: 1520
A80: 78 | B80: 9751 | C80: 4580 | D80: 1538
A81: 79 | B81: 9789 | C81: 5525 | D81: 1549 | E81: 20 | F81: Older Earth
A82: 80 | B82: 13959 | C82: 5788 | D82: 1549 | E82: 8 | F82: Older Galaxy
A83: 81 | B83: 17711 | C83: 6598 | D83: 1549 | E83: 7 | F83: Older Universe
A84: 82 | B84: 18704 | C84: 7031 | D84: 1559 | E84: 19 | F84: Negative Ages
A85: 83 | B85: 38213 | C85: 7710 | D85: 1580
A86: 84 | B86: 76523 | C86: 40285 | D86: 1602
A87: 85 | B87: 76523 | C87: 64577 | D87: 1606
A88: Average | B88: =AVERAGE(B3:B87) -> 4122.741176 | C88: =AVERAGE(C3:C87) -> 2570.141176 | D88: 1615
A89: Maximum | B89: =MAX(B3:B88) -> 76523 | C89: =MAX(C3:C88) -> 64577 | D89: 1616
A90: Minimum | B90: =MIN(B3:B89) -> -20034 | C90: =MIN(C3:C89) -> -31071 | D90: 1648
D91: 1650
B92: Million Years | C92: Million Years | D92: 1663
A93: Average | B93: 4122.741176 | C93: 2570.141176 | D93: 1665
A94: Maximum | B94: 76523 | C94: 64577 | D94: 1674
A95: Minimum | B95: -20034 | C95: -31071 | D95: 1704
D96: 1711
D97: 1714
D98: 1720
D99: 1723
D100: 1740
D101: 1756
D102: 1779
D103: 1784
D104: 1789
D105: 1814
D106: 1842
D107: 1844
D108: 1850
D109: 1859
D110: 1871
D111: 1878
D112: 1884
D113: 1893
D114: 1902
D115: 1908
D116: 1912
D117: 1925
D118: 1958
D119: 1962
D120: 1966
D121: 1971
D122: 1982
D123: 2020
D124: 2031
D125: 2073
D126: 2078
D127: 2081
D128: 2085
D129: 2103
D130: 2103
D131: 2121
D132: 2286
D133: 2305
D134: 2320
D135: 2519
D136: 2543
D137: 2592
D138: 2594
D139: 2611
D140: 2630
D141: 2711
D142: 2761
D143: 3242
D144: 3454
D145: 3590
D146: 3663
D147: 4009
D148: 4139
D149: 4153
D150: 4318
D151: 4527
D152: 4580
A153: Million Years | B153: Million Years | D153: 4849
A154: 4960 | B154: -31071 | D154: 4960 | E154: -31071
A155: 5525 | B155: -20034 | D155: 5525 | E155: -20034
A156: 5788 | B156: -7491 | D156: 5788 | E156: -7491
A157: 6510 | B157: -6102 | D157: 6510 | E157: -6102
A158: 6598 | B158: -2394 | D158: 6598 | E158: -2394
A159: 7031 | B159: -2184 | D159: 7031 | E159: -2184
A160: 7049 | B160: -2104 | D160: 7049 | E160: -2104
A161: 7710 | B161: -1220 | D161: 7710 | E161: -1220
A162: 7816 | B162: -1201 | D162: 7816 | E162: -1201
A163: 9751 | B163: -1038 | D163: 9751 | E163: -1038
A164: 9789 | B164: -836 | D164: 9789 | E164: -836
A165: 13959 | B165: -685 | D165: 13959 | E165: -685
A166: 17711 | B166: -655 | D166: 17711 | E166: -655
A167: 18704 | B167: -546 | D167: 18704 | E167: -546
A168: 38213 | B168: -483 | D168: 38213 | E168: -483
A169: 40285 | B169: -249 | D169: 40285 | E169: -249
A170: 64577 | B170: -200 | D170: 64577 | E170: -200
A171: 76523 | B171: -137 | D171: 76523 | E171: -137
A172: 76523 | B172: -90 | D172: 76523 | E172: -90

Sheet F02
A1: Rubidium | B1: Table 2 | J1: Table 2 | N1: 87Rb/86Sr | O1: 176Lu/177Hf | P1: 147Sm/144Nd
A2: Strontium | B2: Initial | C2: Today | D2: Today | E2: The Ratio | F2: Half | G2: Decay | H2: 2.303/Delta | I2: Age | J2: Age | K2: Age | N2: 351.2783304 | O2: 161.2591894 | P2: 133.4565785
A3: Dating | B3: 87Sr/86Sr | C3: 87Sr/86Sr | D3: 87Rb/86Sr | E3: Plus One | F3: Life | G3: Constant | H3: Constant | I3: Years | J3: Million Years | K3: Billion Years | N3: 234.380114 | O3: 161.2591894 | P3: 131.7463332
A4: RV07-03 | B4: 0.707859 | C4: 0.707964 | D4: 0.06 | E4: =1+((C4-B4)/D4) -> 1.00175 | F4: 48800000000 | G4: =(0.693/F4) -> 1.420081967e-11 | H4: =(2.303/G4) -> 1.621737374e+11 | I4: =(LOG(E4))*(H4) -> 123146806.6 | J4: =(I4/1000000) -> 123.1468066 | K4: =(J4/1000) -> 0.1231468066 | N4: 234.380114 | O4: 161.2591894 | P4: 131.2564157
A5: RV07-09 | B5: 0.706478 | C5: 0.706833 | D5: 0.2 | E5: =1+((C5-B5)/D5) -> 1.001775 | F5: 48800000000 | G5: =(0.693/F5) -> 1.420081967e-11 | H5: =(2.303/G5) -> 1.621737374e+11 | I5: =(LOG(E5))*(H5) -> 124904487.7 | J5: =(I5/1000000) -> 124.9044877 | K5: 0.1249044877 | N5: 234.380114 | O5: 155.8916583 | P5: 131.0744459
A6: RV07-13 | B6: 0.707053 | C6: 0.707188 | D6: 0.07 | E6: 1.001928571 | F6: 48800000000 | G6: 1.420081967e-11 | H6: 1.621737374e+11 | I6: 135700709.2 | J6: 135.7007092 | K6: 0.1357007092 | N6: 234.380114 | O6: 145.1549905 | P6: 130.8318192
A7: RV07-20 | B7: 0.707723 | C7: 0.707822 | D7: 0.05 | E7: 1.00198 | F7: 48800000000 | G7: 1.420081967e-11 | H7: 1.621737374e+11 | I7: 139315818.1 | J7: 139.3158181 | K7: 0.1393158181 | N7: 234.380114 | O7: 143.3653376 | P7: 130.7468998
A8: RV07-01 | B8: 0.707085 | C8: 0.707175 | D8: 0.05 | E8: 1.0018 | F8: 48800000000 | G8: 1.420081967e-11 | H8: 1.621737374e+11 | I8: 126662124.9 | J8: 126.6621249 | K8: 0.1266621249 | N8: 234.380114 | O8: 143.3653376 | P8: 130.4321979
A9: RV07-07 | B9: 0.707488 | C9: 0.707734 | D9: 0.14 | E9: 1.001757143 | F9: 48800000000 | G9: 1.420081967e-11 | H9: 1.621737374e+11 | I9: 123649005.7 | J9: 123.6490057 | K9: 0.1236490057 | N9: 234.380114 | O9: 142.4704889 | P9: 130.4321979
A10: RV07-11 | B10: 0.706694 | C10: 0.706881 | D10: 0.1 | E10: 1.00187 | F10: 48800000000 | G10: 1.420081967e-11 | H10: 1.621737374e+11 | I10: 131583275.7 | J10: 131.5832757 | K10: 0.1315832757 | N10: 234.380114 | O10: 142.4704889 | P10: 129.9826228
A11: RV07-14 | B11: 0.705919 | C11: 0.706324 | D11: 0.22 | E11: 1.001840909 | F11: 48800000000 | G11: 1.420081967e-11 | H11: 1.621737374e+11 | I11: 129538163.9 | J11: 129.5381639 | K11: 0.1295381639 | N11: 140.7216437 | O11: 139.7858534 | P11: 129.2183419
A12: RV07-16 | B12: 0.706629 | C12: 0.70664 | D12: 0.01 | E12: 1.0011 | F12: 48800000000 | G12: 1.420081967e-11 | H12: 1.621737374e+11 | I12: 77431695.55 | J12: 77.43169555 | K12: 0.07743169555 | N12: 140.7216437 | O12: 137.9960221 | P12: 129.0272711
A13: RV07-22 | B13: 0.706152 | C13: 0.707451 | D13: 0.71 | E13: 1.001829577 | F13: 48800000000 | G13: 1.420081967e-11 | H13: 1.621737374e+11 | I13: 128741526.4 | J13: 128.7415264 | K13: 0.1287415264 | N13: 139.3158181 | O13: 137.6380487 | P13: 128.7088192
A14: HRV-247 | B14: 0.70614 | C14: 0.70615 | D14: 0.01 | E14: 1.001 | F14: 48800000000 | G14: 1.420081967e-11 | H14: 1.621737374e+11 | I14: 70395967.13 | J14: 70.39596713 | K14: 0.07039596713 | N14: 135.7007092 | O14: 137.1010841 | P14: 128.6648948
A15: RV07-12 | B15: 0.704231 | C15: 0.70588 | D15: 0.91 | E15: 1.001812088 | F15: 48800000000 | G15: 1.420081967e-11 | H15: 1.621737374e+11 | I15: 127511955.7 | J15: 127.5119557 | K15: 0.1275119557 | N15: 134.0269848 | O15: 137.1010841 | P15: 128.5930184
A16: RV07-08 | B16: 0.701071 | C16: 0.706502 | D16: 2.99 | E16: 1.001816388 | F16: 48800000000 | G16: 1.420081967e-11 | H16: 1.621737374e+11 | I16: 127814264.6 | J16: 127.8142646 | K16: 0.1278142646 | N16: 131.9347734 | O16: 136.8570075 | P16: 128.4540572
A17: RV07-02 | B17: 0.706307 | C17: 0.706307 | D17: 0.0003 | E17: 1 | F17: 48800000000 | G17: 1.420081967e-11 | H17: 1.621737374e+11 | I17: 0 | J17: . | K17: . | N17: 131.5832757 | O17: 136.368851 | P17: 128.4183011
A18: RV07-03 | B18: 0.707489 | C18: 0.707489 | D18: 0.0003 | E18: 1 | F18: 48800000000 | G18: 1.420081967e-11 | H18: 1.621737374e+11 | I18: 0 | J18: . | K18: . | N18: 129.5381639 | O18: 135.8170166 | P18: 128.3448734
A19: RV07-09 | B19: 0.706371 | C19: 0.706371 | D19: 0.0002 | E19: 1 | F19: 48800000000 | G19: 1.420081967e-11 | H19: 1.621737374e+11 | I19: 0 | J19: . | K19: . | N19: 128.7415264 | O19: 135.1321681 | P19: 128.2842157
A20: RV07-13 | B20: 0.706347 | C20: 0.706347 | D20: 0.0001 | E20: 1 | F20: 48800000000 | G20: 1.420081967e-11 | H20: 1.621737374e+11 | I20: 0 | J20: . | K20: . | N20: 128.0594698 | O20: 134.904355 | P20: 128.1806537
A21: RV07-01 | B21: 0.706372 | C21: 0.706372 | D21: 0.0003 | E21: 1 | F21: 48800000000 | G21: 1.420081967e-11 | H21: 1.621737374e+11 | I21: 0 | J21: . | K21: . | N21: 127.940379 | O21: 134.7320588 | P21: 128.1532207
A22: RV07-07 | B22: 0.706247 | C22: 0.706248 | D22: 0.0003 | E22: 1.003333333 | F22: 48800000000 | G22: 1.420081967e-11 | H22: 1.621737374e+11 | I22: 234380114 | J22: 234.380114 | K22: 0.234380114 | N22: 127.940379 | O22: 134.4161808 | P22: 128.1378004
A23: RV07-11 | B23: 0.706267 | C23: 0.706268 | D23: 0.0005 | E23: 1.002 | F23: 48800000000 | G23: 1.420081967e-11 | H23: 1.621737374e+11 | I23: 140721643.7 | J23: 140.7216437 | K23: 0.1407216437 | N23: 127.940379 | O23: 134.4161808 | P23: 128.0840837
A24: RV07-14 | B24: 0.706223 | C24: 0.706223 | D24: 0 | F24: 48800000000 | G24: 1.420081967e-11 | H24: 1.621737374e+11 | J24: . | K24: . | N24: 127.940379 | O24: 134.4161808 | P24: 128.0499512
A25: RV07-18 | B25: 0.706295 | C25: 0.706296 | D25: 0.0003 | E25: 1.003333333 | F25: 48800000000 | G25: 1.420081967e-11 | H25: 1.621737374e+11 | I25: 234380114 | J25: 234.380114 | K25: 0.234380114 | N25: 127.9007312 | O25: 134.4161808 | P25: 128.0173214
A26: RV07-19 | B26: 0.706108 | C26: 0.706109 | D26: 0.0003 | E26: 1.003333333 | F26: 48800000000 | G26: 1.420081967e-11 | H26: 1.621737374e+11 | I26: 234380114 | J26: 234.380114 | K26: 0.234380114 | N26: 127.8142646 | O26: 134.4161808 | P26: 127.944532
A27: RV07-29 | B27: 0.706383 | C27: 0.706383 | D27: 0.0003 | E27: 1 | F27: 48800000000 | G27: 1.420081967e-11 | H27: 1.621737374e+11 | I27: 0 | J27: . | K27: . | N27: 127.5119557 | O27: 134.4161808 | P27: 127.8372633
A28: HRV-247 | B28: 0.70593 | C28: 0.70593 | D28: 0.0001 | E28: 1 | F28: 48800000000 | G28: 1.420081967e-11 | H28: 1.621737374e+11 | I28: 0 | J28: . | K28: . | N28: 126.6621249 | O28: 134.4161808 | P28: 127.7989531
A29: HRV-77b | B29: 0.706789 | C29: 0.70679 | D29: 0.0009 | E29: 1.001111111 | F29: 48800000000 | G29: 1.420081967e-11 | H29: 1.621737374e+11 | I29: 78213399.77 | J29: 78.21339977 | K29: 0.07821339977 | N29: 124.9044877 | O29: 134.4161808 | P29: 127.734727
A30: HRV-77m | B30: 0.70294 | C30: 0.70294 | D30: 0.0009 | E30: 1 | F30: 48800000000 | G30: 1.420081967e-11 | H30: 1.621737374e+11 | I30: 0 | J30: . | K30: . | N30: 123.6490057 | O30: 134.3522529 | P30: 127.6897688
A31: RV07-12 | B31: 0.70134 | C31: 0.701344 | D31: 0.0021 | E31: 1.001904762 | F31: 48800000000 | G31: 1.420081967e-11 | H31: 1.621737374e+11 | I31: 134026984.8 | J31: 134.0269848 | K31: 0.1340269848 | N31: 123.1468066 | O31: 134.2013828 | P31: 127.5434152
A32: RV73-12 | B32: 0.70294 | C32: 0.703233 | D32: 0.1612 | E32: 1.001817618 | F32: 48800000000 | G32: 1.420081967e-11 | H32: 1.621737374e+11 | I32: 127900731.2 | J32: 127.9007312 | K32: 0.1279007312 | N32: 121.3284697 | O32: 134.0326123 | P32: 127.4350051
A33: RV07-08 | B33: 0.702849 | C33: 0.702849 | D33: 0.0003 | E33: 1 | F33: 48800000000 | G33: 1.420081967e-11 | H33: 1.621737374e+11 | I33: 0 | J33: . | K33: . | N33: 100.5441416 | O33: 133.9504187 | P33: 127.4350051
A34: RV07-02 | B34: 0.706309 | C34: 0.70631 | D34: 0.0003 | E34: 1.003333333 | F34: 48800000000 | G34: 1.420081967e-11 | H34: 1.621737374e+11 | I34: =(LOG(E34))*(H34) -> 234380114 | J34: =(I34/1000000) -> 234.380114 | K34: 0.234380114 | N34: 78.21339977 | O34: 133.8814123 | P34: 127.3310198
A35: RV07-03 | B35: 0.707491 | C35: 0.707492 | D35: 0.0007 | E35: 1.001428571 | F35: 48800000000 | G35: 1.420081967e-11 | H35: 1.621737374e+11 | I35: 100544141.6 | J35: 100.5441416 | K35: 0.1005441416 | N35: 78.21339977 | O35: 133.7680807 | P35: 127.1165499
A36: RV07-09 | B36: 0.706371 | C36: 0.706371 | D36: 0.0004 | E36: 1 | F36: 48800000000 | G36: 1.420081967e-11 | H36: 1.621737374e+11 | I36: 0 | J36: . | K36: . | N36: 77.43169555 | O36: 133.5211833 | P36: 127.0430601
A37: RV07-13 | B37: 0.706348 | C37: 0.706349 | D37: 0.0003 | E37: 1.003333333 | F37: 48800000000 | G37: 1.420081967e-11 | H37: 1.621737374e+11 | I37: 234380114 | J37: 234.380114 | K37: 0.234380114 | N37: 70.39596713 | O37: 133.4993539 | P37: 126.8355595
A38: RV07-20 | B38: 0.70736 | C38: 0.707361 | D38: 0.0002 | E38: 1.005 | F38: 48800000000 | G38: 1.420081967e-11 | H38: 1.621737374e+11 | I38: 351278330.4 | J38: 351.2783304 | K38: 0.3512783304 | O38: 133.4903211 | P38: 125.9363866
A39: RV07-01 | B39: 0.706374 | C39: 0.706374 | D39: 0.0004 | E39: 1 | F39: 48800000000 | G39: 1.420081967e-11 | H39: 1.621737374e+11 | I39: 0 | J39: . | K39: . | O39: 133.3421821 | P39: 125.7913583
A40: RV07-07 | B40: 0.706253 | C40: 0.706254 | D40: 0.0009 | E40: 1.001111111 | F40: 48800000000 | G40: 1.420081967e-11 | H40: 1.621737374e+11 | I40: 78213399.77 | J40: 78.21339977 | K40: 0.07821339977 | O40: 133.073679 | P40: 124.1380251
A41: RV07-11 | B41: 0.706269 | C41: 0.706271 | D41: 0.001 | E41: 1.002 | F41: 48800000000 | G41: 1.420081967e-11 | H41: 1.621737374e+11 | I41: 140721643.7 | J41: 140.7216437 | K41: 0.1407216437 | O41: 132.9841777 | P41: 108.3265202
A42: RV07-14 | B42: 0.706219 | C42: 0.706224 | D42: 0.0029 | E42: 1.001724138 | F42: 48800000000 | G42: 1.420081967e-11 | H42: 1.621737374e+11 | I42: 121328469.7 | J42: 121.3284697 | K42: 0.1213284697 | O42: 132.4829676 | P42: 107.0525363
A43: RV07-16 | B43: 0.706049 | C43: 0.706049 | D43: 0.0001 | E43: 1 | F43: 48800000000 | G43: 1.420081967e-11 | H43: 1.621737374e+11 | I43: 0 | J43: . | K43: . | O43: 132.3874985 | P43: 107.0525363
A44: RV07-18 | B44: 0.7063 | C44: 0.706301 | D44: 0.0003 | E44: 1.003333333 | F44: 48800000000 | G44: 1.420081967e-11 | H44: 1.621737374e+11 | I44: 234380114 | J44: 234.380114 | K44: =(J44/1000) -> 0.234380114 | O44: 131.9101503 | P44: 107.0525363
A45: RV07-19 | B45: 0.70612 | C45: 0.706121 | D45: 0.0003 | E45: =1+((C45-B45)/D45) -> 1.003333333 | F45: 48800000000 | G45: =(0.693/F45) -> 1.420081967e-11 | H45: =(2.303/G45) -> 1.621737374e+11 | I45: 234380114 | J45: 234.380114 | K45: 0.234380114 | O45: 130.8361015 | P45: 106.3414709
A46: RV07-22 | B46: 0.706341 | C46: 0.706351 | D46: 0.0055 | E46: 1.001818182 | F46: 48800000000 | G46: 1.420081967e-11 | H46: 1.621737374e+11 | I46: 127940379 | J46: 127.940379 | K46: 0.127940379 | O46: 130.4592372 | P46: 106.268541
A47: RV07-29 | B47: 0.706386 | C47: 0.706387 | D47: 0.0003 | E47: 1.003333333 | F47: 48800000000 | G47: 1.420081967e-11 | H47: 1.621737374e+11 | I47: 234380114 | J47: 234.380114 | K47: 0.234380114 | O47: 130.022414 | P47: 106.0333416
A48: HRV77b | B48: 0.706789 | C48: 0.706792 | D48: 0.0016 | E48: 1.001875 | F48: 48800000000 | G48: 1.420081967e-11 | H48: 1.621737374e+11 | I48: 131934773.4 | J48: 131.9347734 | K48: 0.1319347734 | O48: 130.022414 | P48: 105.9200973
A49: RV07-12 | B49: 0.701344 | C49: 0.70135 | D49: 0.0033 | E49: 1.001818182 | F49: 48800000000 | G49: 1.420081967e-11 | H49: 1.621737374e+11 | I49: 127940379 | J49: 127.940379 | K49: 0.127940379 | O49: 129.0459726 | P49: 105.8765418
A50: RV73-12 | B50: 0.702942 | C50: 0.703235 | D50: 0.161 | E50: 1.001819876 | F50: 48800000000 | G50: 1.420081967e-11 | H50: 1.621737374e+11 | I50: 128059469.8 | J50: 128.0594698 | K50: 0.1280594698 | O50: 129.0459726 | P50: 105.7114892
A51: RV07-08 | B51: 0.70282 | C51: 0.702908 | D51: 0.0484 | E51: 1.001818182 | F51: 48800000000 | G51: 1.420081967e-11 | H51: 1.621737374e+11 | I51: 127940379 | J51: 127.940379 | K51: 0.127940379 | O51: 127.8525202 | P51: 105.6627236
A52: DEJ-5 | B52: 0.702297 | C52: 0.702313 | D52: 0.0088 | E52: 1.001818182 | F52: 48800000000 | G52: 1.420081967e-11 | H52: 1.621737374e+11 | I52: 127940379 | J52: 127.940379 | K52: 0.127940379 | O52: 127.2557841 | P52: 105.3538747
O53: 126.7442908 | P53: 105.2539528
O54: 126.3606676 | P54: 105.1008809
A55: Lutetium | B55: Table 2 | K55: Table 2 | O55: 125.8235905 | P55: 105.0925404
A56: Hafnium | B56: Initial | C56: Today | D56: Today | E56: The Ratio | F56: Half | G56: Decay | H56: 2.303/Delta | I56: Age | J56: Age | K56: Age | O56: 125.4655361 | P56: 105.0061148
A57: Dating | B57: 176Hf/177Hf | C57: 176Hf/177Hf | D57: 176Lu/177Hf | E57: Plus One | F57: Life | G57: Constant | H57: Constant | I57: Years | J57: Million Years | K57: Billion Years | O57: 125.4655361 | P57: 104.99454
A58: RV07-02 | B58: 0.282315 | C58: 0.282683 | D58: 0.15 | E58: =1+((C58-B58)/D58) -> 1.002453333 | F58: 37300000000 | G58: =(0.693/F58) -> 1.857908847e-11 | H58: =(2.303/G58) -> 1.239565657e+11 | I58: =(LOG(E58))*(H58) -> 131910150.3 | J58: =(I58/1000000) -> 131.9101503 | K58: =(J58/1000) -> 0.1319101503 | O58: 125.4655361 | P58: 104.9678126
A59: RV07-03 | B59: 0.282229 | C59: 0.282509 | D59: 0.11 | E59: =1+((C59-B59)/D59) -> 1.002545455 | F59: 37300000000 | G59: =(0.693/F59) -> 1.857908847e-11 | H59: =(2.303/G59) -> 1.239565657e+11 | I59: =(LOG(E59))*(H59) -> 136857007.5 | J59: =(I59/1000000) -> 136.8570075 | K59: =(J59/1000) -> 0.1368570075 | O59: 122.3324589 | P59: 104.9122196
A60: RV07-09 | B60: 0.282305 | C60: 0.282766 | D60: 0.19 | E60: =1+((C60-B60)/D60) -> 1.002426316 | F60: 37300000000 | G60: =(0.693/F60) -> 1.857908847e-11 | H60: =(2.303/G60) -> 1.239565657e+11 | I60: =(LOG(E60))*(H60) -> 130459237.2 | J60: =(I60/1000000) -> 130.4592372 | K60: =(J60/1000) -> 0.1304592372 | O60: 122.3324589 | P60: 104.9122196
A61: RV07-13 | B61: 0.282297 | C61: 0.282893 | D61: 0.24 | E61: =1+((C61-B61)/D61) -> 1.002483333 | F61: 37300000000 | G61: =(0.693/F61) -> 1.857908847e-11 | H61: =(2.303/G61) -> 1.239565657e+11 | I61: =(LOG(E61))*(H61) -> 133521183.3 | J61: =(I61/1000000) -> 133.5211833 | K61: =(J61/1000) -> 0.1335211833 | O61: 120.9896557 | P61: 104.8685393
A62: RV07-20 | B62: 0.282545 | C62: 0.283161 | D62: 0.25 | E62: 1.002464 | F62: 37300000000 | G62: 1.857908847e-11 | H62: 1.239565657e+11 | I62: 132482967.6 | J62: 132.4829676 | K62: 0.1324829676 | O62: 119.6468189 | P62: 104.7005382
A63: RVF-6 | B63: 0.281766 | C63: 0.28239 | D63: 0.25 | E63: 1.002496 | F63: 37300000000 | G63: 1.857908847e-11 | H63: 1.239565657e+11 | I63: 134201382.8 | J63: 134.2013828 | K63: 0.1342013828 | O63: 110.2460239 | P63: 104.7005382
A64: RVF-8 | B64: 0.282181 | C64: 0.283081 | D64: 0.36 | E64: 1.0025 | F64: 37300000000 | G64: 1.857908847e-11 | H64: 1.239565657e+11 | I64: 134416180.8 | J64: 134.4161808 | K64: 0.1344161808 | O64: 107.559781 | P64: 104.7005382
A65: RV07-01 | B65: 0.282127 | C65: 0.282476 | D65: 0.14 | E65: 1.002492857 | F65: 37300000000 | G65: 1.857908847e-11 | H65: 1.239565657e+11 | I65: 134032612.3 | J65: 134.0326123 | K65: 0.1340326123 | O65: 107.559781 | P65: 104.6544203
A66: RV07-07 | B66: 0.282236 | C66: 0.282613 | D66: 0.15 | E66: 1.002513333 | F66: 37300000000 | G66: 1.857908847e-11 | H66: 1.239565657e+11 | I66: 135132168.1 | J66: 135.1321681 | K66: 0.1351321681 | O66: 107.559781 | P66: 104.6386431
A67: RV07-11 | B67: 0.282272 | C67: 0.282644 | D67: 0.15 | E67: 1.00248 | F67: 37300000000 | G67: 1.857908847e-11 | H67: 1.239565657e+11 | I67: 133342182.1 | J67: 133.3421821 | K67: 0.1333421821 | O67: 107.559781 | P67: 104.5955375
A68: RV07-14 | B68: 0.28226 | C68: 0.282557 | D68: 0.12 | E68: 1.002475 | F68: 37300000000 | G68: 1.857908847e-11 | H68: 1.239565657e+11 | I68: 133073679 | J68: 133.073679 | K68: 0.133073679 | O68: 107.559781 | P68: 104.5045368
A69: RV07-16 | B69: 0.282193 | C69: 0.282321 | D69: 0.05 | E69: 1.00256 | F69: 37300000000 | G69: 1.857908847e-11 | H69: 1.239565657e+11 | I69: 137638048.7 | J69: 137.6380487 | K69: 0.1376380487 | O69: 107.559781 | P69: 104.4065359
A70: RV07-18 | B70: 0.282463 | C70: 0.28255 | D70: 0.03 | E70: 1.0029 | F70: 37300000000 | G70: 1.857908847e-11 | H70: 1.239565657e+11 | I70: 155891658.3 | J70: 155.8916583 | K70: 0.1558916583 | O70: 107.559781 | P70: 104.0695082
A71: RV07-19 | B71: 0.282224 | C71: 0.282438 | D71: 0.09 | E71: 1.002377778 | F71: 37300000000 | G71: 1.857908847e-11 | H71: 1.239565657e+11 | I71: 127852520.2 | J71: 127.8525202 | K71: 0.1278525202 | O71: 107.559781 | P71: 102.8830604
A72: RV07-22 | B72: 0.282352 | C72: 0.282628 | D72: 0.11 | E72: 1.002509091 | F72: 37300000000 | G72: 1.857908847e-11 | H72: 1.239565657e+11 | I72: 134904355 | J72: 134.904355 | K72: 0.134904355 | O72: 107.559781 | P72: 102.348504
A73: RV07-29 | B73: 0.282185 | C73: 0.282451 | D73: 0.11 | E73: 1.002418182 | F73: 37300000000 | G73: 1.857908847e-11 | H73: 1.239565657e+11 | I73: 130022414 | J73: 130.022414 | K73: 0.130022414 | O73: 53.80675357 | P73: 101.5924853
A74: DEJ02 | B74: 0.282311 | C74: 0.282413 | D74: 0.04 | E74: 1.00255 | F74: 37300000000 | G74: 1.857908847e-11 | H74: 1.239565657e+11 | I74: 137101084.1 | J74: 137.1010841 | K74: 0.1371010841 | O74: 48.6139637 | P74: 101.5924853
A75: DEJ-03 | B75: 0.282215 | C75: 0.282494 | D75: 0.11 | E75: 1.002536364 | F75: 37300000000 | G75: 1.857908847e-11 | H75: 1.239565657e+11 | I75: 136368851 | J75: 136.368851 | K75: 0.136368851 | P75: 101.1724733
A76: DJ-0288 | B76: 0.281692 | C76: 0.281781 | D76: 0.04 | E76: 1.002225 | F76: 37300000000 | G76: 1.857908847e-11 | H76: 1.239565657e+11 | I76: 119646818.9 | J76: 119.6468189 | K76: 0.1196468189 | P76: 100.6824579
A77: RV07-12 | B77: 0.302144 | C77: 0.30418 | D77: 0.82 | E77: 1.002482927 | F77: 37300000000 | G77: 1.857908847e-11 | H77: 1.239565657e+11 | I77: 133499353.9 | J77: 133.4993539 | K77: 0.1334993539
A78: RV73-12 | B78: 0.325008 | C78: 0.329891 | D78: 1.96 | E78: 1.002491327 | F78: 37300000000 | G78: 1.857908847e-11 | H78: 1.239565657e+11 | I78: 133950418.7 | J78: 133.9504187 | K78: 0.1339504187
A79: RV07-08 | B79: 0.369851 | C79: 0.377066 | D79: 2.9 | E79: 1.002487931 | F79: 37300000000 | G79: 1.857908847e-11 | H79: 1.239565657e+11 | I79: 133768080.7 | J79: 133.7680807 | K79: 0.1337680807
A80: BD-1191 | B80: 0.355707 | C80: 0.361708 | D80: 2.41 | E80: 1.002490041 | F80: 37300000000 | G80: 1.857908847e-11 | H80: 1.239565657e+11 | I80: 133881412.3 | J80: 133.8814123 | K80: 0.1338814123
A81: DEJ-5 | B81: 0.304178 | C81: 0.306277 | D81: 0.84 | E81: 1.00249881 | F81: 37300000000 | G81: 1.857908847e-11 | H81: 1.239565657e+11 | I81: 134352252.9 | J81: 134.3522529 | K81: 0.1343522529
A82: RV07-02 | B82: 0.282253 | C82: 0.28226 | D82: 0.003 | E82: 1.002333333 | F82: 37300000000 | G82: 1.857908847e-11 | H82: 1.239565657e+11 | I82: 125465536.1 | J82: 125.4655361 | K82: 0.1254655361
A83: RV07-03 | B83: 0.28225 | C83: 0.282252 | D83: 0.001 | E83: 1.002 | F83: 37300000000 | G83: 1.857908847e-11 | H83: 1.239565657e+11 | I83: 107559781 | J83: 107.559781 | K83: 0.107559781
A84: RV07-09 | B84: 0.282249 | C84: 0.282256 | D84: 0.003 | E84: 1.002333333 | F84: 37300000000 | G84: 1.857908847e-11 | H84: 1.239565657e+11 | I84: 125465536.1 | J84: 125.4655361 | K84: 0.1254655361
A85: RV07-13 | B85: 0.28224 | C85: 0.282245 | D85: 0.002 | E85: 1.0025 | F85: 37300000000 | G85: 1.857908847e-11 | H85: 1.239565657e+11 | I85: 134416180.8 | J85: 134.4161808 | K85: 0.1344161808
A86: RV07-20 | B86: 0.28264 | C86: 0.282655 | D86: 0.006 | E86: 1.0025 | F86: 37300000000 | G86: 1.857908847e-11 | H86: 1.239565657e+11 | I86: 134416180.8 | J86: 134.4161808 | K86: 0.1344161808 | N86: No Duplicates
A87: RVF-6 | B87: 0.282689 | C87: 0.282692 | D87: 0.001 | E87: 1.003 | F87: 37300000000 | G87: 1.857908847e-11 | H87: 1.239565657e+11 | I87: 161259189.4 | J87: 161.2591894 | K87: 0.1612591894 | N87: 87Rb/86Sr | O87: 176Lu/177Hf | P87: 147Sm/144Nd
A88: RVF-8 | B88: 0.282783 | C88: 0.282789 | D88: 0.002 | E88: 1.003 | F88: 37300000000 | G88: 1.857908847e-11 | H88: 1.239565657e+11 | I88: 161259189.4 | J88: 161.2591894 | K88: 0.1612591894 | N88: 351 | O88: 161 | P88: 133
A89: RV07-01 | B89: 0.282169 | C89: 0.282173 | D89: 0.002 | E89: 1.002 | F89: 37300000000 | G89: 1.857908847e-11 | H89: 1.239565657e+11 | I89: 107559781 | J89: 107.559781 | K89: 0.107559781 | N89: 234 | O89: 156 | P89: 132
A90: RV07-07 | D90: 0.001 | E90: 1 | F90: 37300000000 | G90: 1.857908847e-11 | H90: 1.239565657e+11 | I90: 0 | J90: . | K90: . | N90: 141 | O90: 145 | P90: 131
A91: RV07-11 | B91: 0.282228 | C91: 0.282236 | D91: 0.003 | E91: 1.002666667 | F91: 37300000000 | G91: 1.857908847e-11 | H91: 1.239565657e+11 | I91: 143365337.6 | J91: 143.3653376 | K91: 0.1433653376 | N91: 139 | O91: 143 | P91: 130
A92: RV07-14 | B92: 0.28226 | C92: 0.282262 | D92: 0.001 | E92: 1.002 | F92: 37300000000 | G92: 1.857908847e-11 | H92: 1.239565657e+11 | I92: 107559781 | J92: 107.559781 | K92: 0.107559781 | N92: 136 | O92: 142 | P92: 129
A93: RV07-16 | B93: 0.282194 | C93: 0.282196 | D93: 0.001 | E93: 1.002 | F93: 37300000000 | G93: 1.857908847e-11 | H93: 1.239565657e+11 | I93: 107559781 | J93: 107.559781 | K93: 0.107559781 | N93: 134 | O93: 140 | P93: 128
A94: RV07-18 | B94: 0.282233 | C94: 0.282235 | D94: 0.001 | E94: 1.002 | F94: 37300000000 | G94: 1.857908847e-11 | H94: 1.239565657e+11 | I94: 107559781 | J94: 107.559781 | K94: 0.107559781 | N94: 132 | O94: 138 | P94: 127
A95: RV07-19 | B95: 0.282246 | C95: 0.282247 | D95: 0.001 | E95: 1.001 | F95: 37300000000 | G95: 1.857908847e-11 | H95: 1.239565657e+11 | I95: 53806753.57 | J95: 53.80675357 | K95: 0.05380675357 | N95: 130 | O95: 137 | P95: 126
A96: RV07-22 | B96: 0.282257 | C96: 0.282259 | D96: 0.001 | E96: 1.002 | F96: 37300000000 | G96: 1.857908847e-11 | H96: 1.239565657e+11 | I96: 107559781 | J96: 107.559781 | K96: 0.107559781 | N96: 129 | O96: 136 | P96: 124
A97: RV07-29 | B97: 0.282178 | C97: 0.282185 | D97: 0.003 | E97: 1.002333333 | F97: 37300000000 | G97: 1.857908847e-11 | H97: 1.239565657e+11 | I97: 125465536.1 | J97: 125.4655361 | K97: 0.1254655361 | N97: 128 | O97: 135 | P97: 108
A98: HRV-247 | B98: 0.282771 | C98: 0.282915 | D98: 0.058 | E98: 1.002482759 | F98: 37300000000 | G98: 1.857908847e-11 | H98: 1.239565657e+11 | I98: 133490321.1 | J98: 133.4903211 | K98: 0.1334903211 | N98: 127 | O98: 134 | P98: 107
A99: DEJ-03 | B99: 0.282219 | C99: 0.282222 | D99: 0.001 | E99: 1.003 | F99: 37300000000 | G99: 1.857908847e-11 | H99: 1.239565657e+11 | I99: 161259189.4 | J99: 161.2591894 | K99: 0.1612591894 | N99: 125 | O99: 133 | P99: 106
A100: DJ-0288 | B100: 0.28201 | C100: 0.282012 | D100: 0.001 | E100: 1.002 | F100: 37300000000 | G100: 1.857908847e-11 | H100: 1.239565657e+11 | I100: 107559781 | J100: 107.559781 | K100: 0.107559781 | N100: 124 | O100: 132 | P100: 105
A101: HRV-77b | B101: 0.282377 | C101: 0.282381 | D101: 0.002 | E101: 1.002 | F101: 37300000000 | G101: 1.857908847e-11 | H101: 1.239565657e+11 | I101: 107559781 | J101: 107.559781 | K101: 0.107559781 | N101: 123 | O101: 131 | P101: 104
A102: RV07-12 | B102: 0.282247 | C102: 0.282251 | D102: 0.002 | E102: 1.002 | F102: 37300000000 | G102: 1.857908847e-11 | H102: 1.239565657e+11 | I102: 107559781 | J102: 107.559781 | K102: 0.107559781 | N102: 121 | O102: 130 | P102: 103
A103: RV73-12 | B103: 0.283988 | C103: 0.284003 | D103: 0.006 | E103: 1.0025 | F103: 37300000000 | G103: 1.857908847e-11 | H103: 1.239565657e+11 | I103: 134416180.8 | J103: 134.4161808 | K103: 0.1344161808 | N103: 101 | O103: 129 | P103: 102
A104: RV07-08 | B104: 0.287314 | C104: 0.287319 | D104: 0.002 | E104: 1.0025 | F104: 37300000000 | G104: 1.857908847e-11 | H104: 1.239565657e+11 | I104: 134416180.8 | J104: 134.4161808 | K104: 0.1344161808 | N104: 78 | O104: 128 | P104: 101
A105: BD-1191 | B105: 0.288405 | C105: 0.288413 | D105: 0.003 | E105: 1.002666667 | F105: 37300000000 | G105: 1.857908847e-11 | H105: 1.239565657e+11 | I105: 143365337.6 | J105: 143.3653376 | K105: 0.1433653376 | N105: 77 | O105: 127
A106: DEJ-5 | B106: 0.282281 | C106: 0.282286 | D106: 0.002 | E106: 1.0025 | F106: 37300000000 | G106: 1.857908847e-11 | H106: 1.239565657e+11 | I106: 134416180.8 | J106: 134.4161808 | K106: 0.1344161808 | N106: 70 | O106: 126
A107: RV07-02 | B107: 0.282264 | C107: 0.282335 | D107: 0.03 | E107: 1.002366667 | F107: 37300000000 | G107: 1.857908847e-11 | H107: 1.239565657e+11 | I107: 127255784.1 | J107: 127.2557841 | K107: 0.1272557841 | O107: 125
A108: RV07-03 | B108: 0.28224 | C108: 0.28237 | D108: 0.05 | E108: 1.0026 | F108: 37300000000 | G108: 1.857908847e-11 | H108: 1.239565657e+11 | I108: 139785853.4 | J108: 139.7858534 | K108: 0.1397858534 | O108: 122
A109: RV07-09 | B109: 0.282259 | C109: 0.28235 | D109: 0.04 | E109: 1.002275 | F109: 37300000000 | G109: 1.857908847e-11 | H109: 1.239565657e+11 | I109: 122332458.9 | J109: 122.3324589 | K109: 0.1223324589 | O109: 121
A110: RV07-13 | B110: 0.28225 | C110: 0.282356 | D110: 0.04 | E110: 1.00265 | F110: 37300000000 | G110: 1.857908847e-11 | H110: 1.239565657e+11 | I110: 142470488.9 | J110: 142.4704889 | K110: 0.1424704889 | O110: 120
A111: RV07-20 | B111: 0.282584 | C111: 0.282955 | D111: 0.15 | E111: 1.002473333 | F111: 37300000000 | G111: 1.857908847e-11 | H111: 1.239565657e+11 | I111: 132984177.7 | J111: 132.9841777 | K111: 0.1329841777 | O111: 110
A112: RVF-6 | B112: 0.282515 | C112: 0.282635 | D112: 0.05 | E112: 1.0024 | F112: 37300000000 | G112: 1.857908847e-11 | H112: 1.239565657e+11 | I112: 129045972.6 | J112: 129.0459726 | K112: 0.1290459726 | O112: 108
A113: RVF-8 | B113: 0.282676 | C113: 0.282841 | D113: 0.07 | E113: 1.002357143 | F113: 37300000000 | G113: 1.857908847e-11 | H113: 1.239565657e+11 | I113: 126744290.8 | J113: 126.7442908 | K113: 0.1267442908 | O113: 54
A114: RV07-01 | B114: 0.282158 | C114: 0.282248 | D114: 0.04 | E114: 1.00225 | F114: 37300000000 | G114: 1.857908847e-11 | H114: 1.239565657e+11 | I114: 120989655.7 | J114: 120.9896557 | K114: 0.1209896557 | O114: 49
A115: RV07-11 | B115: 0.282246 | C115: 0.2824 | D115: 0.06 | E115: 1.002566667 | F115: 37300000000 | G115: 1.857908847e-11 | H115: 1.239565657e+11 | I115: 137996022.1 | J115: 137.9960221 | K115: 0.1379960221
A116: RV07-14 | B116: 0.28226 | C116: 0.282435 | D116: 0.07 | E116: 1.0025 | F116: 37300000000 | G116: 1.857908847e-11 | H116: 1.239565657e+11 | I116: 134416180.8 | J116: 134.4161808 | K116: 0.1344161808
A117: RV07-16 | B117: 0.282194 | C117: 0.282267 | D117: 0.03 | E117: 1.002433333 | F117: 37300000000 | G117: 1.857908847e-11 | H117: 1.239565657e+11 | I117: 130836101.5 | J117: 130.8361015 | K117: 0.1308361015
A118: RV07-18 | B118: 0.282339 | C118: 0.28238 | D118: 0.02 | E118: 1.00205 | F118: 37300000000 | G118: 1.857908847e-11 | H118: 1.239565657e+11 | I118: 110246023.9 | J118: 110.2460239 | K118: 0.1102460239
A119: RV07-19 | B119: 0.282234 | C119: 0.282351 | D119: 0.05 | E119: 1.00234 | F119: 37300000000 | G119: 1.857908847e-11 | H119: 1.239565657e+11 | I119: 125823590.5 | J119: 125.8235905 | K119: 0.1258235905
A120: RV07-22 | B120: 0.282287 | C120: 0.282378 | D120: 0.04 | E120: =1+((C120-B120)/D120) -> 1.002275 | F120: 37300000000 | G120: =(0.693/F120) -> 1.857908847e-11 | H120: =(2.303/G120) -> 1.239565657e+11 | I120: =(LOG(E120))*(H120) -> 122332458.9 | J120: =(I120/1000000) -> 122.3324589 | K120: =(J120/1000) -> 0.1223324589
A121: RV07-29 | B121: 0.282181 | C121: 0.282277 | D121: 0.04 | E121: 1.0024 | F121: 37300000000 | G121: 1.857908847e-11 | H121: 1.239565657e+11 | I121: 129045972.6 | J121: 129.0459726 | K121: 0.1290459726
A122: HRV-247 | B122: 0.282701 | C122: 0.282751 | D122: 0.02 | E122: 1.0025 | F122: 37300000000 | G122: 1.857908847e-11 | H122: 1.239565657e+11 | I122: 134416180.8 | J122: 134.4161808 | K122: 0.1344161808
A123: DEJ-02 | B123: 0.282273 | C123: 0.282324 | D123: 0.02 | E123: 1.00255 | F123: 37300000000 | G123: 1.857908847e-11 | H123: 1.239565657e+11 | I123: 137101084.1 | J123: 137.1010841 | K123: 0.1371010841
A124: DEJ-03 | B124: 0.282219 | C124: 0.282273 | D124: 0.02 | E124: 1.0027 | F124: 37300000000 | G124: 1.857908847e-11 | H124: 1.239565657e+11 | I124: 145154990.5 | J124: 145.1549905 | K124: 0.1451549905
A125: DJ-0288 | B125: 0.281847 | C125: 0.281894 | D125: 0.02 | E125: 1.00235 | F125: 37300000000 | G125: 1.857908847e-11 | H125: 1.239565657e+11 | I125: 126360667.6 | J125: 126.3606676 | K125: 0.1263606676
A126: HRV77b | B126: 0.282317 | C126: 0.282423 | D126: 0.04 | E126: 1.00265 | F126: 37300000000 | G126: 1.857908847e-11 | H126: 1.239565657e+11 | I126: 142470488.9 | J126: 142.4704889 | K126: 0.1424704889
A127: RV07-12 | B127: 0.284812 | C127: 0.285078 | D127: 0.11 | E127: 1.002418182 | F127: 37300000000 | G127: 1.857908847e-11 | H127: 1.239565657e+11 | I127: 130022414 | J127: 130.022414 | K127: 0.130022414
A128: RV73-12 | B128: 0.286074 | C128: 0.286336 | D128: 0.29 | E128: 1.000903448 | F128: 37300000000 | G128: 1.857908847e-11 | H128: 1.239565657e+11 | I128: 48613963.7 | J128: 48.6139637 | K128: 0.0486139637
A129: RV07-08 | B129: 0.301897 | C129: 0.303175 | D129: 0.51 | E129: 1.002505882 | F129: 37300000000 | G129: 1.857908847e-11 | H129: 1.239565657e+11 | I129: 134732058.8 | J129: 134.7320588 | K129: 0.1347320588
A130: BD-1191 | B130: 0.300767 | C130: 0.301875 | D130: 0.45 | E130: 1.002462222 | F130: 37300000000 | G130: 1.857908847e-11 | H130: 1.239565657e+11 | I130: 132387498.5 | J130: 132.3874985 | K130: 0.1323874985
A131: DEJ-5 | B131: 0.288301 | C131: 0.288882 | D131: 0.23 | E131: 1.002526087 | F131: 37300000000 | G131: 1.857908847e-11 | H131: 1.239565657e+11 | I131: 135817016.6 | J131: 135.8170166 | K131: 0.1358170166
A134: Neodymium | K134: Table 2
A135: Samarium | B135: Initial | C135: Today | D135: Today | E135: The Ratio | F135: Half | G135: Decay | H135: 2.303/Delta | I135: Age | J135: Age | K135: Age
A136: Dating | B136: 143Nd/144Nd | C136: 143Nd/144Nd | D136: 147Sm/144Nd | E136: Plus One | F136: Life | G136: Constant | H136: Constant | I136: Years | J136: Million Years | K136: Billion Years
A137: RV07-02 | B137: 0.512072 | C137: 0.512455 | D137: 0.56 | E137: =1+((C137-B137)/D137) -> 1.000683929 | F137: 106000000000 | G137: =(0.693/F137) -> 6.537735849e-12 | H137: =(2.303/G137) -> 3.522626263e+11 | I137: =(LOG(E137))*(H137) -> 104595537.5 | J137: =(I137/1000000) -> 104.5955375 | K137: =(J137/1000) -> 0.1045955375
A138: RV07-03 | B138: 0.511812 | C138: 0.512135 | D138: 0.47 | E138: =1+((C138-B138)/D138) -> 1.000687234 | F138: 106000000000 | G138: =(0.693/F138) -> 6.537735849e-12 | H138: =(2.303/G138) -> 3.522626263e+11 | I138: =(LOG(E138))*(H138) -> 105100880.9 | J138: =(I138/1000000) -> 105.1008809 | K138: =(J138/1000) -> 0.1051008809
A139: RV07-09 | B139: 0.512021 | C139: 0.512893 | D139: 1.27 | E139: 1.000686614 | F139: 106000000000 | G139: 6.537735849e-12 | H139: 3.522626263e+11 | I139: 105006114.8 | J139: 105.0061148 | K139: 0.1050061148
A140: RV07-13 | B140: 0.512103 | C140: 0.512789 | D140: 1 | E140: 1.000686 | F140: 106000000000 | G140: 6.537735849e-12 | H140: 3.522626263e+11 | I140: 104912219.6 | J140: 104.9122196 | K140: 0.1049122196
A141: RV07-20 | B141: 0.512081 | C141: 0.512471 | D141: 0.57 | E141: 1.000684211 | F141: 106000000000 | G141: 6.537735849e-12 | H141: 3.522626263e+11 | I141: 104638643.1 | J141: 104.6386431 | K141: 0.1046386431
A142: RVF-6 | B142: 0.514062 | C142: 0.514846 | D142: 0.94 | E142: 1.000834043 | F142: 106000000000 | G142: 6.537735849e-12 | H142: 3.522626263e+11 | I142: 127543415.2 | J142: 127.5434152 | K142: 0.1275434152
A143: RVF-8 | B143: 0.514063 | C143: 0.514471 | D143: 0.49 | E143: 1.000832653 | F143: 106000000000 | G143: 6.537735849e-12 | H143: 3.522626263e+11 | I143: 127331019.8 | J143: 127.3310198 | K143: 0.1273310198
A144: RV07-01 | B144: 0.511949 | C144: 0.512343 | D144: 0.57 | E144: 1.000691228 | F144: 106000000000 | G144: 6.537735849e-12 | H144: 3.522626263e+11 | I144: 105711489.2 | J144: 105.7114892 | K144: 0.1057114892
A145: RV07-07 | B145: 0.512054 | C145: 0.512397 | D145: 0.5 | E145: 1.000686 | F145: 106000000000 | G145: 6.537735849e-12 | H145: 3.522626263e+11 | I145: 104912219.6 | J145: 104.9122196 | K145: 0.1049122196
A146: RV07-11 | B146: 0.511905 | C146: 0.51226 | D146: 0.52 | E146: 1.000682692 | F146: 106000000000 | G146: 6.537735849e-12 | H146: 3.522626263e+11 | I146: 104406535.9 | J146: 104.4065359 | K146: 0.1044065359
A147: RV07-14 | B147: 0.511996 | C147: 0.512295 | D147: 0.43 | E147: 1.000695349 | F147: 106000000000 | G147: 6.537735849e-12 | H147: 3.522626263e+11 | I147: 106341470.9 | J147: 106.3414709 | K147: 0.1063414709
A148: RV07-16 | B148: 0.512042 | C148: 0.512416 | D148: 0.54 | E148: 1.000692593 | F148: 106000000000 | G148: 6.537735849e-12 | H148: 3.522626263e+11 | I148: 105920097.3 | J148: 105.9200973 | K148: 0.1059200973
A149: RV07-18 | B149: 0.512016 | C149: 0.512284 | D149: 0.39 | E149: 1.000687179 | F149: 106000000000 | G149: 6.537735849e-12 | H149: 3.522626263e+11 | I149: 105092540.4 | J149: 105.0925404 | K149: 0.1050925404
A150: RV07-19 | B150: 0.511995 | C150: 0.512352 | D150: 0.52 | E150: 1.000686538 | F150: 106000000000 | G150: 6.537735849e-12 | H150: 3.522626263e+11 | I150: 104994540 | J150: 104.99454 | K150: 0.10499454
A151: RV07-22 | B151: 0.512051 | C151: 0.512402 | D151: 0.51 | E151: 1.000688235 | F151: 106000000000 | G151: 6.537735849e-12 | H151: 3.522626263e+11 | I151: 105253952.8 | J151: 105.2539528 | K151: 0.1052539528
A152: RV07-29 | B152: 0.511939 | C152: 0.512288 | D152: 0.51 | E152: 1.000684314 | F152: 106000000000 | G152: 6.537735849e-12 | H152: 3.522626263e+11 | I152: 104654420.3 | J152: 104.6544203 | K152: 0.1046544203
A153: HRV-247 | B153: 0.511971 | C153: 0.51225 | D153: 0.41 | E153: 1.000680488 | F153: 106000000000 | G153: 6.537735849e-12 | H153: 3.522626263e+11 | I153: 104069508.2 | J153: 104.0695082 | K153: 0.1040695082
A154: DEJ02 | B154: 0.512157 | C154: 0.512233 | D154: 0.11 | E154: 1.000690909 | F154: 106000000000 | G154: 6.537735849e-12 | H154: 3.522626263e+11 | I154: 105662723.6 | J154: 105.6627236 | K154: 0.1056627236
A155: DEJ-03 | B155: 0.512139 | C155: 0.512441 | D155: 0.44 | E155: 1.000686364 | F155: 106000000000 | G155: 6.537735849e-12 | H155: 3.522626263e+11 | I155: 104967812.6 | J155: 104.9678126 | K155: 0.1049678126
A156: DJ-0288 | B156: 0.512686 | C156: 0.512957 | D156: 0.39 | E156: 1.000694872 | F156: 106000000000 | G156: 6.537735849e-12 | H156: 3.522626263e+11 | I156: 106268541 | J156: 106.268541 | K156: 0.106268541
A157: RV07-12 | B157: 0.523033 | C157: 0.52449 | D157: 1.74 | E157: 1.000837356 | F157: 106000000000 | G157: 6.537735849e-12 | H157: 3.522626263e+11 | I157: 128049951.2 | J157: 128.0499512 | K157: 0.1280499512
A158: RV73-12 | B158: 0.512389 | C158: 0.512389 | D158: 0 | F158: 106000000000 | G158: 6.537735849e-12 | H158: 3.522626263e+11 | J158: . | K158: .
A159: RV07-08 | B159: 0.534127 | C159: 0.536189 | D159: 2.46 | E159: 1.000838211 | F159: 106000000000 | G159: 6.537735849e-12 | H159: 3.522626263e+11 | I159: 128180653.7 | J159: 128.1806537 | K159: 0.1281806537
A160: BD-1191 | B160: 0.544539 | C160: 0.54769 | D160: 3.76 | E160: 1.000838032 | F160: 106000000000 | G160: 6.537735849e-12 | H160: 3.522626263e+11 | I160: 128153220.7 | J160: 128.1532207 | K160: 0.1281532207
A161: DEJ-5 | B161: 0.528144 | C161: 0.52958 | D161: 1.71 | E161: 1.000839766 | F161: 106000000000 | G161: 6.537735849e-12 | H161: 3.522626263e+11 | I161: 128418301.1 | J161: 128.4183011 | K161: 0.1284183011
A162: RV07-02 | B162: 0.512059 | C162: 0.51215 | D162: 0.13 | E162: 1.0007 | F162: 106000000000 | G162: 6.537735849e-12 | H162: 3.522626263e+11 | I162: 107052536.3 | J162: 107.0525363 | K162: 0.1070525363
A163: RV07-03 | B163: 0.511849 | C163: 0.511933 | D163: 0.12 | E163: 1.0007 | F163: 106000000000 | G163: 6.537735849e-12 | H163: 3.522626263e+11 | I163: 107052536.3 | J163: 107.0525363 | K163: 0.1070525363
A164: RV07-09 | B164: 0.512039 | C164: 0.512118 | D164: 0.12 | E164: 1.000658333 | F164: 106000000000 | G164: 6.537735849e-12 | H164: 3.522626263e+11 | I164: 100682457.9 | J164: 100.6824579 | K164: 0.1006824579
A165: RV07-13 | B165: 0.512046 | C165: 0.512142 | D165: 0.14 | E165: 1.000685714 | F165: 106000000000 | G165: 6.537735849e-12 | H165: 3.522626263e+11 | I165: 104868539.3 | J165: 104.8685393 | K165: 0.1048685393
A166: RV07-20 | B166: 0.512093 | C166: 0.512183 | D166: 0.13 | E166: 1.000692308 | F166: 106000000000 | G166: 6.537735849e-12 | H166: 3.522626263e+11 | I166: 105876541.8 | J166: 105.8765418 | K166: 0.1058765418
A167: RVF-6 | B167: 0.513726 | C167: 0.513906 | D167: 0.21 | E167: 1.000857143 | F167: 106000000000 | G167: 6.537735849e-12 | H167: 3.522626263e+11 | I167: 131074445.9 | J167: 131.0744459 | K167: 0.1310744459
A168: RVF-8 | B168: 0.51358 | C168: 0.513676 | D168: 0.11 | E168: 1.000872727 | F168: 106000000000 | G168: 6.537735849e-12 | H168: 3.522626263e+11 | I168: 133456578.5 | J168: 133.4565785 | K168: 0.1334565785
A169: RV07-01 | B169: 0.511986 | C169: 0.512075 | D169: 0.13 | E169: 1.000684615 | F169: 106000000000 | G169: 6.537735849e-12 | H169: 3.522626263e+11 | I169: 104700538.2 | J169: 104.7005382 | K169: 0.1047005382
A170: RV07-07 | B170: 0.51206 | C170: 0.512153 | D170: 0.14 | E170: 1.000664286 | F170: 106000000000 | G170: 6.537735849e-12 | H170: 3.522626263e+11 | I170: 101592485.3 | J170: 101.5924853 | K170: 0.1015924853
A171: RV07-11 | B171: 0.512025 | C171: 0.512114 | D171: 0.13 | E171: 1.000684615 | F171: 106000000000 | G171: 6.537735849e-12 | H171: 3.522626263e+11 | I171: 104700538.2 | J171: 104.7005382 | K171: 0.1047005382
A172: RV07-14 | B172: 0.511981 | C172: 0.512079 | D172: 0.14 | E172: 1.0007 | F172: 106000000000 | G172: 6.537735849e-12 | H172: 3.522626263e+11 | I172: 107052536.3 | J172: 107.0525363 | K172: 0.1070525363
A173: RV07-16 | B173: 0.512051 | C173: 0.512155 | D173: 0.15 | E173: 1.000693333 | F173: 106000000000 | G173: 6.537735849e-12 | H173: 3.522626263e+11 | I173: 106033341.6 | J173: 106.0333416 | K173: 0.1060333416
A174: RV07-18 | B174: 0.512032 | C174: 0.512114 | D174: 0.12 | E174: 1.000683333 | F174: 106000000000 | G174: 6.537735849e-12 | H174: 3.522626263e+11 | I174: 104504536.8 | J174: 104.5045368 | K174: 0.1045045368
A175: RV07-19 | B175: 0.512026 | C175: 0.512113 | D175: 0.13 | E175: 1.000669231 | F175: 106000000000 | G175: 6.537735849e-12 | H175: 3.522626263e+11 | I175: 102348504 | J175: 102.348504 | K175: 0.102348504
A176: RV07-22 | B176: 0.511994 | C176: 0.512079 | D176: 0.12 | E176: 1.000708333 | F176: 106000000000 | G176: 6.537735849e-12 | H176: 3.522626263e+11 | I176: 108326520.2 | J176: 108.3265202 | K176: 0.1083265202
A177: RV07-29 | B177: 0.511944 | C177: 0.512033 | D177: 0.13 | E177: 1.000684615 | F177: 106000000000 | G177: 6.537735849e-12 | H177: 3.522626263e+11 | I177: 104700538.2 | J177: 104.7005382 | K177: 0.1047005382
A178: HRV-247 | B178: 0.511898 | C178: 0.51196 | D178: 0.09 | E178: 1.000688889 | F178: 106000000000 | G178: 6.537735849e-12 | H178: 3.522626263e+11 | I178: 105353874.7 | J178: 105.3538747 | K178: 0.1053538747
A179: DEJ-02 | B179: 0.512181 | C179: 0.512255 | D179: 0.11 | E179: 1.000672727 | F179: 106000000000 | G179: 6.537735849e-12 | H179: 3.522626263e+11 | I179: 102883060.4 | J179: 102.8830604 | K179: 0.1028830604
A180: DEJ-03 | B180: 0.511936 | C180: 0.512022 | D180: 0.13 | E180: 1.000661538 | F180: 106000000000 | G180: 6.537735849e-12 | H180: 3.522626263e+11 | I180: 101172473.3 | J180: 101.1724733 | K180: 0.1011724733
A181: DJ-0288 | B181: 0.51212 | C181: 0.51222 | D181: 0.12 | E181: 1.000833333 | F181: 106000000000 | G181: 6.537735849e-12 | H181: 3.522626263e+11 | I181: 127435005.1 | J181: 127.4350051 | K181: 0.1274350051
A182: HRV-77b | B182: 0.511913 | C182: 0.512006 | D182: 0.14 | E182: 1.000664286 | F182: 106000000000 | G182: 6.537735849e-12 | H182: 3.522626263e+11 | I182: 101592485.3 | J182: 101.5924853 | K182: 0.1015924853
A183: HRV-77m | F183: 106000000000 | G183: 6.537735849e-12 | H183: 3.522626263e+11 | J183: . | K183: .
A184: RV07-12 | B184: 0.516759 | C184: 0.517052 | D184: 0.35 | E184: 1.000837143 | F184: 106000000000 | G184: 6.537735849e-12 | H184: 3.522626263e+11 | I184: 128017321.4 | J184: 128.0173214 | K184: 0.1280173214
A185: RV73-12 | B185: 0.516405 | C185: 0.51659 | D185: 0.22 | E185: 1.000840909 | F185: 106000000000 | G185: 6.537735849e-12 | H185: 3.522626263e+11 | I185: 128593018.4 | J185: 128.5930184 | K185: 0.1285930184
A186: RV07-08 | B186: 0.524352 | C186: 0.52484 | D186: 0.58 | E186: 1.000841379 | F186: 106000000000 | G186: 6.537735849e-12 | H186: 3.522626263e+11 | I186: 128664894.8 | J186: 128.6648948 | K186: 0.1286648948
A187: BD-1191 | B187: 0.532873 | C187: 0.53358 | D187: 0.84 | E187: 1.000841667 | F187: 106000000000 | G187: 6.537735849e-12 | H187: 3.522626263e+11 | I187: 128708819.2 | J187: 128.7088192 | K187: 0.1287088192
A188: DEJ-5 | B188: 0.519893 | C188: 0.520292 | D188: 0.48 | E188: 1.00083125 | F188: 106000000000 | G188: 6.537735849e-12 | H188: 3.522626263e+11 | I188: 127116549.9 | J188: 127.1165499 | K188: 0.1271165499
F189: 106000000000 | G189: 6.537735849e-12 | H189: 3.522626263e+11 | J189: . | K189: .
A190: RV07-02 | B190: 0.512057 | C190: 0.512169 | D190: 0.13 | E190: 1.000861538 | F190: 106000000000 | G190: 6.537735849e-12 | H190: 3.522626263e+11 | I190: 131746333.2 | J190: 131.7463332 | K190: 0.1317463332
A191: RV07-03 | B191: 0.511835 | C191: 0.511988 | D191: 0.18 | E191: 1.00085 | F191: 106000000000 | G191: 6.537735849e-12 | H191: 3.522626263e+11 | I191: 129982622.8 | J191: 129.9826228 | K191: 0.1299826228
A192: RV07-09 | B192: 0.512036 | C192: 0.512144 | D192: 0.13 | E192: 1.000830769 | F192: 106000000000 | G192: 6.537735849e-12 | H192: 3.522626263e+11 | I192: 127043060.1 | J192: 127.0430601 | K192: 0.1270430601
A193: RV07-13 | B193: 0.512046 | C193: 0.512191 | D193: 0.17 | E193: 1.000852941 | F193: 106000000000 | G193: 6.537735849e-12 | H193: 3.522626263e+11 | I193: 130432197.9 | J193: 130.4321979 | K193: 0.1304321979
A194: RV07-20 | B194: 0.512088 | C194: 0.51223 | D194: 0.17 | E194: 1.000835294 | F194: 106000000000 | G194: 6.537735849e-12 | H194: 3.522626263e+11 | I194: 127734727 | J194: 127.734727 | K194: 0.127734727
A195: RVF-6 | B195: 0.513765 | C195: 0.514016 | D195: 0.3 | E195: 1.000836667 | F195: 106000000000 | G195: 6.537735849e-12 | H195: 3.522626263e+11 | I195: 127944532 | J195: 127.944532 | K195: 0.127944532
A196: RVF-8 | B196: 0.513655 | C196: 0.5138 | D196: 0.17 | E196: 1.000852941 | F196: 106000000000 | G196: 6.537735849e-12 | H196: 3.522626263e+11 | I196: 130432197.9 | J196: 130.4321979 | K196: 0.1304321979
A197: RV07-01 | B197: 0.511979 | C197: 0.512104 | D197: 0.15 | E197: 1.000833333 | F197: 106000000000 | G197: 6.537735849e-12 | H197: 3.522626263e+11 | I197: 127435005.1 | J197: 127.4350051 | K197: 0.1274350051
A198: RV07-07 | B198: 0.512056 | C198: 0.512197 | D198: 0.17 | E198: 1.000829412 | F198: 106000000000 | G198: 6.537735849e-12 | H198: 3.522626263e+11 | I198: 126835559.5 | J198: 126.8355595 | K198: 0.1268355595
A199: RV07-11 | B199: 0.512001 | C199: 0.512139 | D199: 0.17 | E199: 1.000811765 | F199: 106000000000 | G199: 6.537735849e-12 | H199: 3.522626263e+11 | I199: 124138025.1 | J199: 124.1380251 | K199: 0.1241380251
A200: RV07-14 | B200: 0.511982 | C200: 0.512153 | D200: 0.2 | E200: 1.000855 | F200: 106000000000 | G200: 6.537735849e-12 | H200: 3.522626263e+11 | I200: 130746899.8 | J200: 130.7468998 | K200: 0.1307468998
A201: RV07-16 | B201: 0.51204 | C201: 0.512295 | D201: 0.31 | E201: 1.000822581 | F201: 106000000000 | G201: 6.537735849e-12 | H201: 3.522626263e+11 | I201: 125791358.3 | J201: 125.7913583 | K201: 0.1257913583
A202: RV07-18 | B202: 0.512021 | C202: 0.512188 | D202: 0.2 | E202: =1+((C202-B202)/D202) -> 1.000835 | F202: 106000000000 | G202: =(0.693/F202) -> 6.537735849e-12 | H202: =(2.303/G202) -> 3.522626263e+11 | I202: =(LOG(E202))*(H202) -> 127689768.8 | J202: =(I202/1000000) -> 127.6897688 | K202: =(J202/1000) -> 0.1276897688
... 69 more rows

Sheet F03
A1: Sample | E1: 187Os/188Os | F1: Billion Years | G1: Million Years
A2: Number | B2: 187Re/188Os | C2: 187Re/188Os | E2: 0.1119 | F2: =(1.04-((E2)/0.12035))/0.050768 -> 2.170892728 | G2: =(F2 * 1000) -> 2170.892728
A3: LB-11 | B3: 3400 | C3: 2240 | E3: 0.1098 | F3: =(1.04-((E3)/0.12035))/0.050768 -> 2.514595587 | G3: =(F3 * 1000) -> 2514.595587
A4: LB-1 | B4: 4000 | C4: 2530 | E4: 0.1099 | F4: 2.498228785 | G4: 2498.228785
A5: LB-9 | C5: 2490 | E5: 0.1102 | F5: 2.449128376 | G5: 2449.128376
A6: LB-14 | B6: 3250 | C6: 2800 | E6: 0.1081 | F6: 2.792831236 | G6: 2792.831236
A7: LB-16 | C7: 2420 | E7: 0.1107 | F7: 2.367294362 | G7: 2367.294362
A8: LB-17 | C8: 2230 | E8: 0.112 | F8: 2.154525925 | G8: 2154.525925
A9: KAT-1 | C9: 1980 | E9: 0.114 | F9: 1.827189868 | G9: 1827.189868
A10: LB-4 | B10: 1730 | C10: 340 | E10: 0.1248 | F10: 0.05957516232 | G10: 59.57516232
A11: LB-12 | C11: 330 | E11: 0.1249 | F11: 0.04320835948 | G11: 43.20835948
A12: LB-24 | C12: 2200 | E12: 0.1122 | F12: 2.121792319 | G12: 2121.792319
A13: LB-34 | C13: 2480 | E13: 0.1103 | F13: 2.432761573 | G13: 2432.761573
A14: LB-45 | B14: 180 | C14: Future | E14: 0.1329 | F14: -1.266135867 | G14: -1266.135867
A15: LB-50 | B15: 2340 | C15: 980 | E15: 0.1205 | F15: 0.7633476842 | G15: 763.3476842
A16: LB-53 | C16: 710 | E16: 0.1223 | F16: 0.4687452332 | G16: 468.7452332
A17: KAT-17 | C17: 360 | E17: 0.1247 | F17: 0.07594196515 | G17: 75.94196515
A18: KAT-5 | C18: 1150 | E18: 0.1194 | F18: 0.9433825154 | G18: 943.3825154
A19: KAT-12 | C19: 1730 | E19: 0.1154 | F19: 1.598054629 | G19: 1598.054629
A20: KAT-14 | C20: Future | E20: 0.2537 | F20: -21.03723369 | G20: -21037.23369
A21: LB-59 | B21: 60 | C21: Future | E21: 0.1287 | F21: -0.5787301482 | G21: -578.7301482
A22: LB-15, | B22: 1270 | C22: Future | E22: 0.1386 | F22: -2.199043629 | G22: -2199.043629
A23: LB-49, | C23: Future | E23: 0.132 | F23: -1.118834642 | G23: -1118.834642
A24: Melilitite | C24: Future | E24: 0.1387 | F24: -2.215410432 | G24: -2215.410432
A29: Table 1.
A30: Number | B30: 187Re/188Os | C30: 187Re/188Os | D30: 187Os/188Os
A31: LB-11 | B31: 3400 | C31: 2240 | D31: 2170.892728
A32: LB-1 | B32: 4000 | C32: 2530 | D32: 2514.595587
A33: LB-9 | C33: 2490 | D33: 2498.228785
A34: LB-14 | B34: 3250 | C34: 2800 | D34: 2449.128376
A35: LB-16 | C35: 2420 | D35: 2792.831236
A36: LB-17 | C36: 2230 | D36: 2367.294362
A37: KAT-1 | C37: 1980 | D37: 2154.525925
A38: LB-4 | B38: 1730 | C38: 340 | D38: 1827.189868
A39: LB-12 | C39: 330 | D39: 59.57516232
A40: LB-24 | C40: 2200 | D40: 43.20835948
A41: LB-34 | C41: 2480 | D41: 2121.792319
A42: LB-45 | B42: 180 | C42: Future Age | D42: 2432.761573
A43: LB-50 | B43: 2340 | C43: 980 | D43: -1266.135867
A44: LB-53 | C44: 710 | D44: 763.3476842
A45: KAT-17 | C45: 360 | D45: 468.7452332
A46: KAT-5 | C46: 1150 | D46: 75.94196515
A47: KAT-12 | C47: 1730 | D47: 943.3825154
A48: KAT-14 | C48: Future Age | D48: 1598.054629
A49: LB-59 | B49: 60 | C49: Future Age | D49: -21037.23369
A50: LB-15, | B50: 1270 | C50: Future Age | D50: -578.7301482
A51: LB-49, | C51: Future Age | D51: -2199.043629
A52: Melilitite | C52: Future Age | D52: -1118.834642
D53: -2215.410432

Sheet F04
A1: Table 2
A2: Sample | B2: Rock Type | C2: Al2O3(wt.%) | D2: Os(ppb) | E2: 187Os/188Os | F2: Re(ppt) | G2: 187Re/188Os | H2: 187Os/188Os | I2: TMA(Ma)(I) | J2: TRD(Ma)(I) | K2: TMA(Ma)(II) | L2: TRD(Ma)(II)
A3: 2-28(U) | B3: Lh | C3: 3.38 | D3: 3.58 | E3: 0.1251 | F3: 303.7 | G3: 0.347 | H3: 0.1238 | I3: 3094 | J3: 1931 | K3: 2095 | L3: 290
A4: 3-10(U) | B4: Lh | C4: 3.44 | D4: 3.62 | E4: 0.1253 | F4: 268 | G4: 0.303 | H4: 0.1242 | I4: 1931 | J4: 588 | K4: 997 | L4: 248
A5: 4-12(U) | B5: Hb | C5: 1.59 | D5: 1.02 | E5: 0.128 | F5: 173 | G5: 0.696 | H5: 0.1254 | I5: -374 | J5: 226 | K5: 198 | L5: -405
A6: 4-13(U) | B6: Hb | C6: 2.19 | D6: 5.32 | E6: 0.1179 | F6: 141.7 | G6: 0.11 | H6: 0.1175 | I6: 2127 | J6: 1599 | K6: 1834 | L6: 1343
A7: 6-11(U) | B7: Lh | C7: 3.56 | D7: 2.93 | E7: 0.1253 | F7: 6.9 | G7: 0.01 | H7: 0.1253 | I7: 606 | J7: 592 | K7: 259 | L7: 253
A8: 84-10(U) | B8: Lh | C8: 3.54 | D8: 3.46 | E8: 0.1257 | F8: 375.6 | G8: 0.446 | H8: 0.1241 | I8: -27744 | J8: 539 | K8: -1910 | L8: 195
A9: 90-5(U) | B9: Lh | C9: 3.94 | D9: 3.42 | E9: 0.1283 | F9: 246 | G9: 0.294 | H9: 0.1272 | I9: 581 | J9: 187 | K9: -704 | L9: -187
A10: 92-12(U) | B10: Hb | C10: 2.16 | D10: 4.58 | E10: 0.1182 | J10: 1564 | L10: 1304
A11: 97-11(U) | B11: Lh | C11: 3.38 | D11: 3.45 | E11: 0.1268 | F11: 430.1 | G11: 0.51 | H11: 0.1249 | I11: -2197 | J11: 383 | K11: -96 | L11: 26
A12: 84-24(M) | B12: Hb | C12: 1.91 | D12: 4.14 | E12: 0.1205 | J12: 1251 | L12: 965
A13: 84-34(L) | B13: Lh | C13: 1.97 | D13: 4.18 | E13: 0.1198 | F13: 142.5 | G13: 0.139 | H13: 0.1193 | I13: 1971 | J13: 1343 | K13: 1624 | L13: 1066
A14: 84-48(L) | B14: Hb | C14: 1.34 | D14: 4.17 | E14: 0.1162 | F14: 10.8 | G14: 0.011 | H14: 0.1162 | I14: 1881 | J14: 1836 | K14: 1641 | L14: 1599
A15: 84-58(L) | B15: D | C15: 0.89 | D15: 5.48 | E15: 0.1157 | F15: 13.6 | G15: 0.01 | H15: 0.1157 | I15: 1941 | J15: 1896 | K15: 1706 | L15: 1664
A16: 84-61(L) | B16: Hb | C16: 1 | D16: 2.6 | E16: 0.1164 | F16: 35.5 | G16: 0.056 | H16: 0.1162 | I16: 2070 | J16: 1808 | K16: 1817 | L16: 1568
A17: 84-69(L) | B17: Hb | C17: 1.06 | D17: 3.6 | E17: 0.1156 | F17: 3.8 | G17: 0.004 | H17: 0.1156 | I17: 1925 | J17: 1907 | K17: 1693 | L17: 1675
A18: 84-74(L) | B18: Hb | C18: 1.47 | D18: 2.77 | E18: 0.1172 | F18: 7.9 | G18: 0.012 | H18: 0.1172 | I18: 1741 | J18: 1695 | K18: 1489 | L18: 1446
A19: 91-43(L) | B19: Hb | C19: 1.08 | D19: 6.28 | E19: 0.1172 | F19: 25.4 | G19: 0.017 | H19: 0.1171 | I19: 1766 | J19: 1699 | K19: 1513 | L19: 1451
H20: Max Age | I20: =MAX(I3:I19) -> 3094 | J20: 1931 | K20: 2095 | L20: =MAX(L3:L19) -> 1675
H21: Min Age | I21: =MIN(I3:I20) -> -27744 | J21: 187 | K21: -1910 | L21: =MIN(L3:L20) -> -405

Sheet F05
A1: Sample | B1: Age | C1: Age | D1: Table 1 | E1: 187Re/188Os | K1: -6558 | M1: 5318 | P1: 187Re/188Os | Q1: 187Re/188Os | R1: 187Re/188Os | S1: 187Re/188Os | T1: 187Re/188Os | U1: 187Re/188Os | W1: Today | X1: Age | Y1: Age
A2: Number | B2: Million Years | C2: Million Years | D2: Million Years | E2: Million Years | F2: Million Years | K2: -5892 | M2: 5700 | P2: -87817 | Q2: -3053 | R2: -1917 | S2: -837 | T2: -191 | U2: 6054 | W2: 187Os/188Os | X2: Billion Years | Y2: Million Years | AA2: 187Os/188Os | AB2: 187Os/188Os | AC2: 187Os/188Os | AD2: 187Os/188Os | AE2: 187Os/188Os | AF2: 187Os/188Os | AG2: 187Os/188Os
A3: A3 | B3: -6558 | C3: -87817 | D3: -87817 | E3: -10838 | F3: -3503 | K3: -3773 | M3: 6001 | P3: -47693 | Q3: -3031 | R3: -1916 | S3: -763 | T3: -183 | U3: 6054 | W3: 0.1226 | X3: =(1.04-((W3)/0.12035))/0.050768 -> 0.4196448247 | Y3: =(X3 * 1000) -> 419.6448247 | AA3: -7191 | AB3: -742 | AC3: 43 | AD3: 485 | AE3: 943 | AF3: 1483 | AG3: 2056
A4: A3-1b | B4: -5892 | C4: -47693 | D4: -47693 | E4: -10501 | F4: -3031 | K4: -3503 | M4: 6088 | P4: -27938 | Q4: -3011 | R4: -1908 | S4: -763 | T4: -181 | U4: 6088 | W4: 0.1155 | X4: =(1.04-((W4)/0.12035))/0.050768 -> 1.581687826 | Y4: =(X4 * 1000) -> 1581.687826 | AA4: -6454 | AB4: -628 | AC4: 60 | AD4: 534 | AE4: 960 | AF4: 1500 | AG4: 2105
A5: A3-1c | B5: -3773 | C5: -27938 | D5: -27938 | E5: -7384 | F5: -2902 | K5: -3031 | M5: 6106 | P5: -16952 | Q5: -2939 | R5: -1908 | S5: -732 | T5: -168 | U5: 6106 | W5: 0.1204 | X5: 0.779714487 | Y5: 779.714487 | AA5: -4343 | AB5: -562 | AC5: 76 | AD5: 567 | AE5: 1009 | AF5: 1549 | AG5: 2171
A6: A7 | B6: -3503 | C6: -16952 | D6: -16952 | E6: -6558 | F6: -2814 | K6: -2902 | M6: 6428 | P6: -15940 | Q6: -2924 | R6: -1870 | S6: -725 | T6: -158 | U6: 6398 | W6: 0.1261 | X6: -0.1531932745 | Y6: -153.1932745 | AA6: -4065 | AB6: -513 | AC6: 109 | AD6: 583 | AE6: 1042 | AF6: 1582 | AG6: 2449
A7: A8 | B7: -3031 | C7: -15940 | D7: -15940 | E7: -5892 | F7: -2741 | K7: -2814 | M7: 6470 | P7: -12854 | Q7: -2915 | R7: -1867 | S7: -712 | T7: -154 | U7: 6428 | W7: 0.1442 | X7: -3.115584587 | Y7: -3115.584587 | AA7: -3623 | AB7: -481 | AC7: 125 | AD7: 616 | AE7: 1058 | AF7: 1631 | AG7: 2515
A8: A8(1-2) | B8: -2902 | C8: -12854 | D8: -12854 | E8: -3773 | F8: -2552 | K8: -2741 | M8: 6519 | P8: -10838 | Q8: -2902 | R8: -1860 | S8: -690 | T8: -142 | U8: 6437 | W8: 0.1465 | X8: -3.492021053 | Y8: -3492.021053 | AA8: -3492 | AB8: -431 | AC8: 174 | AD8: 649 | AE8: 1074 | AF8: 1664 | AG8: 2629
A9: A8(1-2) | B9: -2814 | C9: -10838 | K9: -2552 | M9: 6736 | P9: -10501 | Q9: -2882 | R9: -1860 | S9: -649 | T9: -118 | U9: 6437 | W9: 0.1473 | X9: -3.622955475 | Y9: -3622.955475 | AA9: -3345 | AB9: -415 | AC9: 191 | AD9: 665 | AE9: 1091 | AF9: 1696 | AG9: 2695
A10: A13 | B10: -2741 | C10: -10501 | K10: -1917 | M10: 7441 | P10: -7384 | Q10: -2830 | R10: -1841 | S10: -611 | T10: -114 | U10: 6470 | W10: 0.1392 | X10: -2.297244446 | Y10: -2297.244446 | AA10: -3247 | AB10: -366 | AC10: 207 | AD10: 682 | AE10: 1107 | AF10: 1713 | AG10: 2907
A11: A13(2) | B11: -2552 | C11: -7384 | K11: -1916 | M11: 8044 | P11: -7124 | Q11: -2824 | R11: -1835 | S11: -608 | T11: -110 | U11: 6519 | W11: 0.1187 | X11: 1.057950135 | Y11: 1057.950135 | AA11: -3116 | AB11: -350 | AC11: 223 | AD11: 698 | AE11: 1140 | AF11: 1762 | AG11: 3055
A12: A13(4) | B12: -1917 | C12: -7124 | K12: -1835 | M12: 8862 | P12: -6574 | Q12: -2822 | R12: -1829 | S12: -599 | T12: -98 | U12: 6736 | W12: 0.1251 | X12: 0.01047475381 | Y12: 10.47475381 | AA12: -2395 | AB12: -333 | AC12: 256 | AD12: 714 | AE12: 1173 | AF12: 1794 | AG12: 3120
A13: A15 | B13: -1916 | C13: -6398 | K13: -1798 | M13: 9449 | P13: -6558 | Q13: -2814 | R13: -1798 | S13: -595 | T13: -97 | U13: 6743 | W13: 0.1691 | X13: -7.190918493 | Y13: -7190.918493 | AA13: -2379 | AB13: -317 | AC13: 289 | AD13: 731 | AE13: 1205 | AF13: 1811 | AG13: 3169
A14: MX3 | B14: -1835 | C14: -6203 | K14: -1567 | M14: 10382 | P14: -6398 | Q14: -2786 | R14: -1644 | S14: -589 | T14: -55 | U14: 7395 | W14: 0.1229 | X14: 0.3705444162 | Y14: 370.5444162 | AA14: -2297 | AB14: -300 | AC14: 305 | AD14: 747 | AE14: 1287 | AF14: 1827
A15: MX3-2 | B15: -1798 | C15: -6138 | K15: -1432 | M15: 10701 | P15: -6203 | Q15: -2741 | R15: -1641 | S15: -527 | T15: -49 | U15: 7441 | W15: 0.1128 | X15: 2.023591502 | Y15: 2023.591502 | AA15: -2248 | AB15: -284 | AC15: 338 | AD15: 780 | AE15: 1303 | AF15: 1844
A16: MX3-2 | B16: -1567 | C16: -5956 | K16: -1001 | M16: 10736 | P16: -6138 | Q16: -2729 | R16: -1567 | S16: -515 | T16: -42 | U16: 8008 | W16: 0.114 | X16: 1.827189868 | Y16: 1827.189868 | AA16: -2019 | AB16: -153 | AC16: 371 | AD16: 796 | AE16: 1336 | AF16: 1860
A17: QL26 | B17: -1432 | C17: -5000 | K17: -837 | M17: 18606 | P17: -5956 | Q17: -2552 | R17: -1519 | S17: -497 | T17: -31 | U17: 8044 | W17: 0.1646 | X17: -6.454412366 | Y17: -6454.412366 | AA17: -1888 | AB17: -120 | AC17: 387 | AD17: 812 | AE17: 1353 | AF17: 1893
A18: QL26-1-1 | B18: -1001 | C18: -4010 | K18: -599 | M18: 20073 | P18: -5922 | Q18: -2543 | R18: -1432 | S18: -496 | T18: -30 | U18: 8862 | W18: 0.1074 | X18: 2.907398855 | Y18: 2907.398855 | AA18: -1397 | AB18: -71 | AC18: 403 | AD18: 878 | AE18: 1385 | AF18: 1925
A19: QL26-2 | B19: -837 | C19: -3434 | K19: -515 | M19: 22664 | P19: -5892 | Q19: -2386 | R19: -1426 | S19: -453 | T19: -22 | U19: 8889 | W19: 0.1061 | X19: 3.120167292 | Y19: 3120.167292 | AA19: -1233 | AB19: -22 | AC19: 420 | AD19: 894 | AE19: 1418 | AF19: 1942
A20: QL26-3 | B20: -599 | C20: -3011 | K20: -407 | M20: 24677 | P20: -5038 | Q20: -2366 | R20: -1374 | S20: -407 | T20: -19 | U20: 9449 | W20: 0.1195 | X20: 0.9270157125 | Y20: 927.0157125 | AA20: -972 | AB20: -6 | AC20: 452 | AD20: 911 | AE20: 1434 | AF20: 1991
A21: QL26-4 | B21: -515 | C21: -2924 | K21: -286 | M21: 34329 | P21: -5000 | Q21: -2214 | R21: -1321 | S21: -344 | T21: -18 | U21: 9464 | W21: 0.1162 | X21: 1.467120206 | Y21: 1467.120206 | AA21: -906 | AB21: 10 | AC21: 469 | AD21: 927 | AE21: 1467 | AF21: 2024
A22: QL26-5 | B22: -407 | C22: -2882 | K22: -231 | M22: 39229 | P22: -4084 | Q22: -2191 | R22: -1107 | S22: -344 | T22: -15 | U22: 10382 | W22: 0.1367 | X22: -1.888074375 | Y22: -1888.074375
A23: QL27 | B23: -286 | C23: -2830 | K23: -181 | P23: -4010 | Q23: -2137 | R23: -1098 | S23: -316 | T23: -10 | U23: 10701 | W23: 0.1208 | X23: 0.7142472757 | Y23: 714.2472757
A24: QL27-1-1 | B24: -231 | C24: -2386 | K24: -158 | P24: -3773 | Q24: -2121 | R24: -1001 | S24: -315 | T24: -7 | U24: 10736 | W24: 0.1186 | X24: 1.074316938 | Y24: 1074.316938
A25: QL27-2 | B25: -181 | C25: -2191 | K25: -114 | P25: -3752 | Q25: -2061 | R25: -992 | S25: -310 | T25: -2 | U25: 18606 | W25: 0.124 | X25: 0.190509585 | Y25: 190.509585
A26: QL27-3 | B26: -158 | C26: -2121 | K26: -110 | P26: -3504 | Q26: -2023 | R26: -916 | S26: -286 | T26: 5318 | U26: 20073 | W26: 0.1139 | X26: 1.843556671 | Y26: 1843.556671
A27: QL27-4 | B27: -114 | C27: -2004 | K27: -98 | P27: -3503 | Q27: -2004 | R27: -852 | S27: -283 | T27: 5700 | U27: 22664 | W27: 0.1126 | X27: 2.056325108 | Y27: 2056.325108
A28: QL27-4-1 | B28: -110 | C28: -1979 | K28: -49 | P28: -3473 | Q28: -1979 | R28: -840 | S28: -279 | T28: 5709 | U28: 24677 | W28: 0.113 | X28: 1.990857897 | Y28: 1990.857897
A29: Q9332 | B29: -98 | C29: -1867 | K29: -31 | P29: -3434 | Q29: -1953 | R29: -840 | S29: -231 | T29: 5977 | U29: 34329 | W29: 0.115 | X29: 1.66352184 | Y29: 1663.52184
A30: Q9332-2 | B30: -49 | C30: -1860 | K30: -30 | P30: -3070 | Q30: -1922 | R30: -837 | S30: -191 | T30: 6001 | U30: 39229 | W30: 0.1134 | X30: 1.925390685 | Y30: 1925.390685
A31: Q9335 | B31: -31 | C31: -1841 | K31: -22 | W31: 0.1206 | X31: 0.7469808813 | Y31: 746.9808813
A32: Q9335-1-1 | B32: -30 | C32: -1644 | K32: -19 | W32: 0.1236 | X32: 0.2559767963 | Y32: 255.9767963
A33: Q9335-3 | B33: -22 | C33: -1321 | K33: -18 | W33: 0.118 | X33: 1.172517755 | Y33: 1172.517755
A34: Q9335-4 | B34: -19 | C34: -1098 | K34: -7 | W34: 0.1169 | X34: 1.352552586 | Y34: 1352.552586
A35: Q9335-5 | B35: -18 | C35: -852 | K35: -87817 | W35: 0.1245 | X35: 0.1086755708 | Y35: 108.6755708
A36: Q9335-7 | B36: -7 | C36: -840 | K36: -47693 | W36: 0.1259 | X36: -0.1204596689 | Y36: -120.4596689
A37: Q9347 | B37: 6 | C37: -732 | K37: -27938 | W37: 0.1283 | X37: -0.5132629369 | Y37: -513.2629369
A38: Q9347-2 | B38: 25 | C38: -712 | K38: -16952 | W38: 0.1194 | X38: 0.9433825154 | Y38: 943.3825154
A39: NTS-1 | B39: 32 | C39: -690 | K39: -15940 | W39: 0.1209 | X39: 0.6978804728 | Y39: 697.8804728
A40: NTS-1-6 | B40: 147 | C40: -608 | K40: -12854 | W40: 0.1203 | X40: 0.7960812899 | Y40: 796.0812899
A41: NTS-2 | B41: 152 | C41: -595 | K41: -10838 | W41: 0.1152 | X41: 1.630788234 | Y41: 1630.788234
A42: NTS-2-4 | B42: 181 | C42: -497 | K42: -10501 | W42: 0.1204 | X42: 0.779714487 | Y42: 779.714487
A43: NTS-2-6 | B43: 227 | C43: -453 | K43: -7384 | W43: 0.1223 | X43: 0.4687452332 | Y43: 468.7452332
A44: NTS-2-7 | B44: 267 | C44: -316 | K44: -7124 | W44: 0.1147 | X44: 1.712622249 | Y44: 1712.622249
A45: NTS-2-8 | B45: 276 | C45: -315 | K45: -6398 | W45: 0.1144 | X45: 1.761722657 | Y45: 1761.722657
A46: NTS-6 | B46: 297 | C46: -310 | K46: -6203 | W46: 0.1182 | X46: 1.139784149 | Y46: 1139.784149
A47: NTS-7 | B47: 329 | C47: -283 | K47: -6138 | W47: 0.1139 | X47: 1.843556671 | Y47: 1843.556671
A48: NTS-7-2 | B48: 346 | C48: -183 | K48: -5956 | W48: 0.1098 | X48: 2.514595587 | Y48: 2514.595587
A49: NTS-7-3 | B49: 355 | C49: -168 | K49: -5000 | W49: 0.1136 | X49: 1.89265708 | Y49: 1892.65708
A50: NTS-7-4 | B50: 371 | C50: -154 | K50: -4010 | W50: 0.1058 | X50: 3.169267701 | Y50: 3169.267701
A51: NTS-8 | B51: 378 | C51: -142 | K51: -3434 | W51: 0.1119 | X51: 2.170892728 | Y51: 2170.892728
A52: NTS-8-2 | B52: 404 | C52: -118 | K52: -3011 | W52: 0.1138 | X52: 1.859923474 | Y52: 1859.923474
A53: NTS-9 | B53: 445 | C53: -97 | K53: -2924 | W53: 0.1224 | X53: 0.4523784303 | Y53: 452.3784303
A54: NTS-11 | B54: 460 | C54: -55 | K54: -2882 | W54: 0.1161 | X54: 1.483487009 | Y54: 1483.487009
A55: NTS-11-2 | B55: 470 | C55: -42 | K55: -2830 | W55: 0.129 | X55: -0.6278305567 | Y55: -627.8305567
A56: KPH9810 | B56: 472 | C56: -15 | K56: -2386 | W56: 0.1228 | X56: 0.386911219 | Y56: 386.911219
A57: KPH9816 | B57: 477 | C57: -10 | K57: -2191 | W57: 0.116 | X57: 1.499853812 | Y57: 1499.853812
A58: KPH9816/3 | B58: 507 | C58: -2 | K58: -2121 | W58: 0.1194 | X58: 0.9433825154 | Y58: 943.3825154
A59: KPH9816/3-1-s4 | B59: 544 | C59: 71 | K59: -2004 | W59: 0.1061 | X59: 3.120167292 | Y59: 3120.167292
A60: KPH9822 | B60: 545 | C60: 252 | K60: -1979 | W60: 0.1187 | X60: 1.057950135 | Y60: 1057.950135
A61: KPH9822-s4 | B61: 551 | C61: 280 | K61: -1867 | W61: 0.1091 | X61: 2.629163207 | Y61: 2629.163207
A62: KPH9822-s4-2 | B62: 582 | C62: 377 | K62: -1860 | W62: 0.1182 | X62: 1.139784149 | Y62: 1139.784149
A63: KPH9826 | B63: 583 | C63: 403 | K63: -1841 | W63: 0.119 | X63: 1.008849727 | Y63: 1008.849727
A64: KPH9826-s2 | B64: 583 | C64: 460 | K64: -1644 | W64: 0.1239 | X64: 0.2068763878 | Y64: 206.8763878
A65: KPH9826-s4 | B65: 607 | C65: 477 | K65: -1321 | W65: 0.1327 | X65: -1.233402262 | Y65: -1233.402262
A66: KP0201 | B66: 624 | C66: 564 | K66: -1098 | W66: 0.1202 | X66: 0.8124480927 | Y66: 812.4480927
A67: KP0201-s4 | B67: 630 | C67: 604 | K67: -852 | W67: 0.1256 | X67: -0.07135926036 | Y67: -71.35926036
A68: KP0201-s5 | B68: 642 | C68: 613 | K68: -840 | W68: 0.1123 | X68: =(1.04-((W68)/0.12035))/0.050768 -> 2.105425517 | Y68: =(X68 * 1000) -> 2105.425517
A69: KP0201-s7 | B69: 655 | C69: 637 | K69: -732 | W69: 0.121 | X69: 0.68151367 | Y69: 681.51367
A70: KP0214 | B70: 657 | C70: 668 | K70: -712 | W70: 0.1212 | X70: 0.6487800643 | Y70: 648.7800643
A71: KP0214-11-s3-1 | B71: 659 | C71: 670 | K71: -690 | W71: 0.127 | X71: -0.3004945 | Y71: -300.4945
A72: KP0214-11-s6 | B72: 668 | C72: 695 | K72: -608 | W72: 0.124 | X72: 0.190509585 | Y72: 190.509585
A73: KP0214-16-s0-1 | B73: 691 | C73: 708 | K73: -595 | W73: 0.1155 | X73: 1.581687826 | Y73: 1581.687826
A74: KP0215 | B74: 692 | C74: 727 | K74: -497 | W74: 0.1249 | X74: 0.04320835948 | Y74: 43.20835948
A75: KP0215-s4 | B75: 692 | C75: 876 | K75: -453 | W75: 0.1216 | X75: 0.583312853 | Y75: 583.312853
A76: KP0215-s5 | B76: 701 | C76: 919 | K76: -316 | W76: 0.1167 | X76: 1.385286192 | Y76: 1385.286192
A77: KP0215-s6 | B77: 704 | C77: 953 | K77: -315 | W77: 0.1195 | X77: 0.9270157125 | Y77: 927.0157125
A78: KP0215-s7 | B78: 706 | C78: 964 | K78: -310 | W78: 0.1172 | X78: 1.303452178 | Y78: 1303.452178
A79: KP0215-s8 | B79: 715 | C79: 982 | K79: -283 | W79: 0.1216 | X79: 0.583312853 | Y79: 583.312853
A80: TC0242 | B80: 763 | C80: 986 | K80: -183 | W80: 0.1139 | X80: 1.843556671 | Y80: 1843.556671
A81: TC0242/2-s11 | B81: 801 | C81: 987 | K81: -168 | W81: 0.1157 | X81: 1.54895422 | Y81: 1548.95422
A82: TC0242/2-s12 | B82: 812 | C82: 1127 | K82: -154 | W82: 0.1198 | X82: 0.877915304 | Y82: 877.915304
A83: TC0242/2-s13 | B83: 816 | C83: 1163 | K83: -142 | W83: 0.1128 | X83: 2.023591502 | Y83: 2023.591502
A84: KPH9801 | B84: 833 | C84: 1197 | K84: -118 | W84: 0.1204 | X84: 0.779714487 | Y84: 779.714487
A85: KPH9801/2-1-s2 | B85: 839 | C85: 1206 | K85: -97 | W85: 0.1148 | X85: 1.696255446 | Y85: 1696.255446
A86: TC0248 | B86: 841 | C86: 1241 | K86: -55 | W86: 0.1187 | X86: 1.057950135 | Y86: 1057.950135
A87: TC0248-s11 | B87: 862 | C87: 1285 | K87: -42 | W87: 0.1223 | X87: 0.4687452332 | Y87: 468.7452332
A88: TC0248-s12 | B88: 874 | C88: 1303 | K88: -15 | W88: 0.1224 | X88: 0.4523784303 | Y88: 452.3784303
A89: TC0248-s13 | B89: 875 | C89: 1325 | K89: -10 | W89: 0.1133 | X89: 1.941757488 | Y89: 1941.757488
A90: TC0248-s16 | B90: 882 | C90: 1341 | K90: -2 | W90: 0.1186 | X90: 1.074316938 | Y90: 1074.316938
A91: TC0248-s18 | B91: 897 | C91: 1352 | W91: 0.1186 | X91: 1.074316938 | Y91: 1074.316938
A92: TC0248-s30 | B92: 905 | C92: 1431 | W92: 0.117 | X92: 1.336185783 | Y92: 1336.185783
A93: TC0248-s31 | B93: 912 | C93: 1440 | W93: 0.1193 | X93: 0.9597493182 | Y93: 959.7493182
A94: TC0223 | B94: 920 | C94: 1462 | W94: 0.1274 | X94: -0.3659617114 | Y94: -365.9617114
A95: TC0223-s2 | B95: 921 | C95: 1462 | W95: 0.1241 | X95: 0.1741427822 | Y95: 174.1427822
A96: TC0223-s3 | B96: 926 | C96: 1496 | W96: 0.1212 | X96: 0.6487800643 | Y96: 648.7800643
A97: TC0223-s7 | B97: 938 | C97: 1539 | W97: 0.1272 | X97: -0.3332281057 | Y97: -333.2281057
A98: TC0223-s8 | B98: 949 | C98: 1554 | W98: 0.1231 | X98: 0.3378108105 | Y98: 337.8108105
A99: TC0223-s11 | B99: 961 | C99: 1554 | W99: 0.1247 | X99: 0.07594196515 | Y99: 75.94196515
A100: TC0223-s12 | B100: 975 | C100: 1555 | W100: 0.1214 | X100: 0.6160464587 | Y100: 616.0464587
A101: TC0223-s13 | B101: 986 | C101: 1562 | W101: 0.1281 | X101: -0.4805293312 | Y101: -480.5293312
A102: TC0223-s14 | B102: 987 | C102: 1692 | W102: 0.1214 | X102: 0.6160464587 | Y102: 616.0464587
A103: TC0223-s15 | B103: 1003 | C103: 1716 | W103: 0.1197 | X103: 0.8942821069 | Y103: 894.2821069
A104: PS1-1 | B104: 1033 | C104: 1718 | W104: 0.1271 | X104: -0.3168613029 | Y104: -316.8613029
A105: PSS-4 | B105: 1082 | C105: 1767 | W105: 0.1229 | X105: 0.3705444162 | Y105: 370.5444162
A106: PSS-4-4 | B106: 1088 | C106: 1780 | W106: 0.1142 | X106: 1.794456263 | Y106: 1794.456263
A107: PSS-5 | B107: 1105 | C107: 1832 | W107: 0.1398 | X107: -2.395445263 | Y107: -2395.445263
A108: PSS-10 | B108: 1122 | C108: 1848 | W108: 0.145 | X108: -3.24651901 | Y108: -3246.51901
A109: PSS-12 | B109: 1126 | C109: 1879 | W109: 0.1456 | X109: -3.344719827 | Y109: -3344.719827
A110: TS2 | B110: 1130 | C110: 1886 | W110: 0.1234 | X110: 0.288710402 | Y110: 288.710402
A111: TS2-1R | B111: 1130 | C111: 1909 | W111: 0.1253 | X111: -0.02225885185 | Y111: -22.25885185
A112: TS2-2 | B112: 1143 | C112: 2006 | W112: 0.1178 | X112: 1.205251361 | Y112: 1205.251361
A113: TS2-2R | B113: 1189 | C113: 2009 | W113: 0.1226 | X113: 0.4196448247 | Y113: 419.6448247
A114: TS2-3 | B114: 1217 | C114: 2018 | W114: 0.1226 | X114: 0.4196448247 | Y114: 419.6448247
A115: TS2-4 | B115: 1229 | C115: 2034 | W115: 0.1238 | X115: 0.2232431907 | Y115: 223.2431907
A116: TS2-5 | B116: 1235 | C116: 2057 | W116: 0.1217 | X116: 0.5669460502 | Y116: 566.9460502
A117: TS2-2(3) | B117: 1247 | C117: 2079 | W117: 0.1211 | X117: 0.6651468672 | Y117: 665.1468672
A118: TS2-3(3) | B118: 1251 | C118: 2081 | W118: 0.1196 | X118: 0.9106489097 | Y118: 910.6489097
A119: TS2-4(3) | B119: 1251 | C119: 2087 | W119: 0.1208 | X119: 0.7142472757 | Y119: 714.2472757
A120: TS2-(1) | B120: 1255 | C120: 2091 | W120: 0.1337 | X120: -1.39707029 | Y120: -1397.07029
A121: TS2-(2) | B121: 1269 | C121: 2124 | W121: 0.1517 | X121: -4.3430948 | Y121: -4343.0948
A122: TS3 | B122: 1284 | C122: 2280 | W122: 0.1139 | X122: 1.843556671 | Y122: 1843.556671
A123: TS3-1-1 | B123: 1297 | C123: 2287 | W123: 0.1272 | X123: -0.3332281057 | Y123: -333.2281057
A124: TS3(1) | B124: 1305 | C124: 2373 | W124: 0.1375 | X124: -2.019008798 | Y124: -2019.008798
A125: TS3-3 | B125: 1342 | C125: 2376 | W125: 0.1261 | X125: -0.1531932745 | Y125: -153.1932745
A126: TS3-3-1 | B126: 1358 | C126: 2412 | W126: 0.1278 | X126: -0.4314289227 | Y126: -431.4289227
A127: TS3-3-2 | B127: 1369 | C127: 2467 | W127: 0.1273 | X127: -0.3495949085 | Y127: -349.5949085
A128: TS3-3-3 | B128: 1439 | C128: 2489 | W128: 0.127 | X128: -0.3004945 | Y128: -300.4945
A129: FS2 | B129: 1454 | C129: 2502 | W129: 0.1269 | X129: -0.2841276972 | Y129: -284.1276972
A130: FS2-1-1 | B130: 1482 | C130: 2642 | W130: 0.1272 | X130: -0.3332281057 | Y130: -333.2281057
A131: FS2-2 | B131: 1484 | C131: 2689 | W131: 0.15 | X131: -4.064859152 | Y131: -4064.859152
A132: DM02-4 | B132: 1497 | C132: 2710 | W132: 0.1152 | X132: =(1.04-((W132)/0.12035))/0.050768 -> 1.630788234 | Y132: =(X132 * 1000) -> 1630.788234
A133: DM02-4-2 | B133: 1513 | C133: 2715 | W133: 0.114 | X133: 1.827189868 | Y133: 1827.189868
A134: DM02-4-2b | B134: 1527 | C134: 2735 | W134: 0.1058 | X134: 3.169267701 | Y134: 3169.267701
A135: DM02-4-3 | B135: 1557 | C135: 2749 | W135: 0.1169 | X135: 1.352552586 | Y135: 1352.552586
A136: DM02-5 | B136: 1567 | C136: 2783 | W136: 0.1185 | X136: 1.090683741 | Y136: 1090.683741
A137: DM02-5-2 | B137: 1622 | C137: 2798 | W137: 0.1119 | X137: 2.170892728 | Y137: 2170.892728
A138: DM02-6 | B138: 1623 | C138: 2965 | W138: 0.1229 | X138: 0.3705444162 | Y138: 370.5444162
A139: DM02-11 | B139: 1629 | C139: 2994 | W139: 0.1233 | X139: 0.3050772048 | Y139: 305.0772048
A140: DM02-11-5 | B140: 1674 | C140: 3028 | W140: 0.1211 | X140: 0.6651468672 | Y140: 665.1468672
A141: DM02-13 | B141: 1692 | C141: 3030 | W141: 0.1307 | X141: -0.9060662049 | Y141: -906.0662049
A142: DM02-13-2 | B142: 1700 | C142: 3159 | W142: 0.1311 | X142: -0.9715334162 | Y142: -971.5334162
A143: DM02-15 | B143: 1739 | C143: 3203 | W143: 0.121 | X143: 0.68151367 | Y143: 681.51367
A144: DM02-15-3 | B144: 1744 | C144: 3406 | W144: 0.1173 | X144: 1.287085375 | Y144: 1287.085375
A145: DM02-17 | B145: 1768 | C145: 3433 | W145: 0.1252 | X145: -0.00589204902 | Y145: -5.89204902
A146: DM02-17-2 | B146: 1804 | C146: 3469 | W146: 0.1231 | X146: 0.3378108105 | Y146: 337.8108105
A147: DM02-17-2-1 | B147: 1841 | C147: 3645 | W147: 0.1214 | X147: 0.6160464587 | Y147: 616.0464587
A148: DM02-17-3 | B148: 1866 | C148: 3777 | W148: 0.117 | X148: 1.336185783 | Y148: 1336.185783
A149: DM02-17-3-1 | B149: 1886 | C149: 4102 | W149: 0.1208 | X149: 0.7142472757 | Y149: 714.2472757
A150: DM02-17-4 | B150: 1905 | C150: 4106 | W150: 0.1178 | X150: 1.205251361 | Y150: 1205.251361
A151: DM02-17-5 | B151: 1912 | C151: 4147 | W151: 0.1188 | X151: 1.041583332 | Y151: 1041.583332
A152: DM02-17-7 | B152: 1912 | C152: 4180 | W152: 0.1184 | X152: 1.107050544 | Y152: 1107.050544
A153: DM02-19 | B153: 1929 | C153: 4390 | W153: 0.1248 | X153: 0.05957516232 | Y153: 59.57516232
A154: Hb028 | B154: 1929 | C154: 4551 | W154: 0.1065 | X154: 3.054700081 | Y154: 3054.700081
A155: Hb003 | B155: 1966 | C155: 4631 | W155: 0.1102 | X155: 2.449128376 | Y155: 2449.128376
A156: YT01 | B156: 1973 | C156: 5318 | W156: 0.1165 | X156: 1.418019798 | Y156: 1418.019798
A157: YT03 | B157: 1990 | C157: 5700 | E157: Million Years | F157: Million Years | G157: Million Years | H157: Million Years | I157: Million Years | J157: Million Years | K157: Million Years | L157: Million Years | W157: 0.1389 | X157: -2.248144037 | Y157: -2248.144037
A158: YT03-3 | B158: 1998 | C158: 6001 | E158: 6001 | F158: 6519 | G158: 9449 | H158: 20073 | I158: -87817 | J158: -12854 | K158: -6398 | L158: -4010 | W158: 0.1286 | X158: -0.5623633454 | Y158: -562.3633454
A159: YT05 | B159: 2006 | C159: 6088 | E159: 6088 | F159: 6736 | G159: 10382 | H159: 22664 | I159: -47693 | J159: -10838 | K159: -6203 | L159: -3434 | W159: 0.1278 | X159: -0.4314289227 | Y159: -431.4289227
A160: YT05-4-2 | B160: 2027 | C160: 6106 | E160: 6106 | F160: 7441 | G160: 10701 | H160: 24677 | I160: -27938 | J160: -10501 | K160: -6138 | L160: -3011 | W160: 0.1297 | X160: -0.7423981766 | Y160: -742.3981766
A161: YT07 | B161: 2067 | C161: 6428 | E161: 6428 | F161: 8044 | G161: 10736 | H161: 34329 | I161: -16952 | J161: -7384 | K161: -5956 | L161: -2924 | W161: 0.1245 | X161: 0.1086755708 | Y161: 108.6755708
A162: YT-08 | B162: 2093 | C162: 6470 | E162: 6470 | F162: 8862 | G162: 18606 | H162: 39229 | I162: -15940 | J162: -7124 | K162: -5000 | L162: -2882 | W162: 0.1219 | X162: 0.5342124445 | Y162: 534.2124445
A163: YT-08-8 | B163: 2094 | C163: 6519 | W163: 0.1244 | X163: 0.1250423737 | Y163: 125.0423737
A164: YT-08-8b | B164: 2118 | C164: 6736 | W164: 0.1227 | X164: 0.4032780218 | Y164: 403.2780218
A165: YT09 | B165: 2192 | C165: 7441 | W165: 0.1277 | X165: -0.4150621199 | Y165: -415.0621199
A166: YT09-1-1 | B166: 2230 | C166: 8044 | W166: 0.1231 | X166: 0.3378108105 | Y166: 337.8108105
A167: YT09-1-2 | B167: 2267 | C167: 8862 | W167: 0.1087 | X167: 2.694630419 | Y167: 2694.630419
A168: YT09-2 | B168: 2454 | C168: 9449 | W168: 0.1141 | X168: 1.810823066 | Y168: 1810.823066
A169: YT09-2-1 | B169: 2545 | C169: 10382 | W169: 0.1273 | X169: -0.3495949085 | Y169: -349.5949085
A170: YT09-2-2 | B170: 2640 | C170: 10701 | W170: 0.1397 | X170: -2.37907846 | Y170: -2379.07846
A171: YT09-2-3 | B171: 2681 | C171: 10736 | W171: 0.1224 | X171: 0.4523784303 | Y171: 452.3784303
A172: YT09-2b | B172: 2868 | C172: 18606 | W172: 0.121 | X172: 0.68151367 | Y172: 681.51367
A173: YT09-3 | B173: 2987 | C173: 20073 | W173: 0.1164 | X173: 1.4343866 | Y173: 1434.3866
A174: YT09(1) | B174: 3054 | C174: 22664 | W174: 0.1234 | X174: 0.288710402 | Y174: 288.710402
A175: YT09(2) | B175: 3059 | C175: 24677 | W175: 0.1222 | X175: 0.485112036 | Y175: 485.112036
A176: YT09(3) | B176: 3094 | C176: 34329 | W176: 0.1207 | X176: 0.7306140785 | Y176: 730.6140785
A177: YT09(4) | B177: 3113 | C177: 39229 | W177: 0.1223 | X177: 0.4687452332 | Y177: 468.7452332
A178: Average | B178: =AVERAGE(B3:B177) -> 702.04 | C178: =AVERAGE(C3:C177) -> 837.3428571 | W178: 0.1226 | X178: 0.4196448247 | Y178: 419.6448247
A179: Maximum | B179: =MAX(B3:B178) -> 3113 | C179: =MAX(C3:C178) -> 39229 | W179: 0.1155 | X179: 1.581687826 | Y179: 1581.687826
A180: Minimum | B180: =MIN(B3:B179) -> -6558 | C180: =MIN(C3:C179) -> -87817 | W180: 0.1204 | X180: 0.779714487 | Y180: 779.714487
W181: 0.1261 | X181: -0.1531932745 | Y181: -153.1932745
W182: 0.1442 | X182: -3.115584587 | Y182: -3115.584587
A183: MA (Ga) | B183: Figure 4. | C183: 187Re/188Os | W183: 0.1465 | X183: -3.492021053 | Y183: -3492.021053
A184: Cathaysia Block | B184: 150 | C184: 146 | D184: 149 | E184: 137 | F184: 147 | G184: 146 | H184: 130 | I184: 144 | J184: 116 | K184: 86 | L184: 104 | M184: 89 | N184: 75 | O184: 59 | P184: 34 | W184: 0.1473 | X184: -3.622955475 | Y184: -3622.955475
A185: Negative Age | B185: =-(166-B184)*38.1679389312977 -> -610.6870229 | C185: =-(166-C184)*38.1679389312977 -> -763.3587786 | D185: -648.8549618 | E185: -1106.870229 | F185: -725.1908397 | G185: -763.3587786 | H185: -1374.045802 | I185: -839.6946565 | J185: -1908.396947 | K185: -3053.435115 | L185: -2366.412214 | M185: -2938.931298 | N185: -3473.282443 | O185: -4083.969466 | P185: -5038.167939 | W185: 0.1392 | X185: -2.297244446 | Y185: -2297.244446
W186: 0.1187 | X186: 1.057950135 | Y186: 1057.950135
A187: Cathaysia Block | B187: 324 | C187: 333 | D187: 334 | E187: 342 | F187: 375 | G187: 413 | W187: 0.1251 | X187: 0.01047475381 | Y187: 10.47475381
A188: Positive Age | B188: =(B187-166)*38.3141762452107 -> 6053.639847 | C188: 6398.467433 | D188: 6436.781609 | E188: 6743.295019 | F188: 8007.662835 | G188: 9463.601533 | W188: 0.1691 | X188: -7.190918493 | Y188: -7190.918493
W189: 0.1229 | X189: 0.3705444162 | Y189: 370.5444162
B190: Figure 4. | C190: 187Re/188Os | W190: 0.1128 | X190: 2.023591502 | Y190: 2023.591502
A191: Yangtze Block | B191: 116 | C191: 93 | W191: 0.114 | X191: 1.827189868 | Y191: 1827.189868
A192: Negative Age | B192: =-(166-B191)*38.1679389312977 -> -1908.396947 | C192: =-(166-C191)*38.1679389312977 -> -2786.259542 | W192: 0.1646 | X192: -6.454412366 | Y192: -6454.412366
W193: 0.1074 | X193: 2.907398855 | Y193: 2907.398855
A194: Yangtze Block | B194: 304 | C194: 322 | D194: 398 | W194: 0.1061 | X194: 3.120167292 | Y194: 3120.167292
A195: Positive Age | B195: =(B194-166)*38.3141762452107 -> 5287.356322 | C195: =(C194-166)*38.3141762452107 -> 5977.011494 | D195: =(D194-166)*38.3141762452107 -> 8888.888889 | W195: 0.1195 | X195: 0.9270157125 | Y195: 927.0157125
W196: 0.1162 | X196: =(1.04-((W196)/0.12035))/0.050768 -> 1.467120206 | Y196: =(X196 * 1000) -> 1467.120206
B197: Figure 4. | C197: 187Re/188Os | W197: 0.1367 | X197: -1.888074375 | Y197: -1888.074375
A198: Sino-Korean Block | B198: 157 | C198: 142 | D198: 110 | E198: 108 | F198: 92 | W198: 0.1208 | X198: 0.7142472757 | Y198: 714.2472757
A199: Negative Age | B199: =-(166-B198)*38.1679389312977 -> -343.5114504 | C199: =-(166-C198)*38.1679389312977 -> -916.0305344 | D199: =-(166-D198)*38.1679389312977 -> -2137.40458 | E199: =-(166-E198)*38.1679389312977 -> -2213.740458 | F199: =-(166-F198)*38.1679389312977 -> -2824.427481 | W199: 0.1186 | X199: 1.074316938 | Y199: 1074.316938
W200: 0.124 | X200: 0.190509585 | Y200: 190.509585
... 152 more rows

Sheet F07
A1: Table 2
A2: Sample | B2: 192Os/188Os | C2: 2se | D2: 190Os/188Os | E2: 2se | F2: 189Os/188Os | G2: 2se | H2: 187Os/188Os | I2: 2se | J2: 187Re/188Os | K2: 2se | L2: TRD(Ga) | M2: 2se | N2: TMA(Ga) | O2: 2se
A3: Haer
A4: 53592-2-s2 | B4: 3.0869 | C4: 0.0122 | D4: 1.9774 | E4: 0.009 | F4: 1.2154 | G4: 0.0078 | H4: 0.1165 | I4: 0.0011 | J4: 0.7863 | K4: 0.03 | L4: 1.56 | M4: 0.2 | N4: -1.67 | O4: 0.22
A5: 53604-s0 | B5: 2.9957 | C5: 0.072 | D5: 1.9639 | E5: 0.104 | F5: 1.2169 | G5: 0.042 | H5: 0.1293 | I5: 0.0032 | J5: 0.0419 | K5: 0.0038 | L5: -0.34 | M5: 0.48 | N5: -0.38 | O5: 0.54
A6: 53604-2-s1 | B6: 3.1021 | C6: 0.0174 | D6: 1.9961 | E6: 0.0126 | F6: 1.2252 | G6: 0.0086 | H6: 0.1219 | I6: 0.0012 | J6: 0.313 | K6: 0.0172 | L6: 0.76 | M6: 0.23 | N6: 3.34 | O6: 1.03
A7: 53604-2-s3 | B7: 3.0805 | C7: 0.024 | D7: 1.9888 | E7: 0.0164 | F7: 1.2176 | G7: 0.0118 | H7: 0.1262 | I7: 0.0011 | J7: 0.109 | K7: 0.0028 | L7: 0.12 | M7: 0.17 | N7: 0.17 | O7: 0.23
A8: 53604-2-s6 | B8: 3.1511 | C8: 0.086 | D8: 1.9962 | E8: 0.042 | F8: 1.2395 | G8: 0.042 | H8: 0.128 | I8: 0.0024 | J8: 0.1079 | K8: 0.0032 | L8: -0.14 | M8: 0.36 | N8: -0.2 | O8: 0.49
A9: 53604-3-s1 | B9: 3.0526 | C9: 0.0084 | D9: 1.9681 | E9: 0.005 | F9: 1.2096 | G9: 0.0034 | H9: 0.1247 | I9: 0.0003 | J9: 0.1013 | K9: 0.0046 | L9: 0.35 | M9: 0.05 | N9: 0.46 | O9: 0.06
A10: 53605-s2 | B10: 3.1214 | C10: 0.1 | D10: 1.9862 | E10: 0.116 | F10: 1.2217 | G10: 0.056 | H10: 0.1141 | I10: 0.0038 | J10: 0.1646 | K10: 0.0116 | L10: 1.9 | M10: 0.57 | N10: 3.19 | O10: 0.95
A11: 53605-s3 | B11: 3.0395 | C11: 0.048 | D11: 1.9545 | E11: 0.036 | F11: 1.1846 | G11: 0.019 | H11: 0.1169 | I11: 0.0016 | J11: 0.2288 | K11: 0.006 | L11: 1.5 | M11: 0.25 | N11: 3.42 | O11: 0.56
A12: 53610-s1 | B12: 3.0643 | C12: 0.022 | D12: 1.9617 | E12: 0.0162 | F12: 1.2196 | G12: 0.0128 | H12: 0.1282 | I12: 0.0008 | J12: 0.1465 | K12: 0.0102 | L12: -0.17 | M12: 0.13 | N12: -0.27 | O12: 0.2
A13: 53610-r-s1 | B13: 3.0884 | C13: 0.022 | D13: 1.9973 | E13: 0.0174 | F13: 1.231 | G13: 0.0106 | H13: 0.1238 | I13: 0.0013 | J13: 0.4947 | K13: 0.022 | L13: 0.48 | M13: 0.23 | N13: -2.09 | O13: 1
A14: 53610-2-s1 | B14: 3.0592 | C14: 0.044 | D14: 2.0034 | E14: 0.04 | F14: 1.2336 | G14: 0.038 | H14: 0.1231 | I14: 0.0011 | J14: 0.28 | K14: 0.0062 | L14: 0.58 | M14: 0.17 | N14: 1.89 | O14: 0.54
A15: 53615-3-s1 | B15: 3.0518 | C15: 0.104 | D15: 1.958 | E15: 0.052 | F15: 1.2176 | G15: 0.034 | H15: 0.1212 | I15: 0.0028 | J15: 0.188 | K15: 0.022 | L15: 0.86 | M15: 0.43 | N15: 1.61 | O15: 0.79
A16: 53615-s1 | B16: 3.073 | C16: 0.064 | D16: 1.9698 | E16: 0.042 | F16: 1.1994 | G16: 0.036 | H16: 0.1168 | I16: 0.0024 | J16: 0.1923 | K16: 0.0064 | L16: 1.51 | M16: 0.36 | N16: 2.85 | O16: 0.68
A17: 53615-r-s1 | B17: 3.0814 | C17: 0.02 | D17: 1.9924 | E17: 0.0138 | F17: 1.2187 | G17: 0.0122 | H17: 0.1205 | I17: 0.0013 | J17: 0.2428 | K17: 0.0062 | L17: 0.96 | M17: 0.2 | N17: 2.4 | O17: 0.5
A18: 53615-s2 | B18: 3.0167 | C18: 0.126 | D18: 1.8761 | E18: 0.052 | F18: 1.1799 | G18: 0.056 | H18: 0.1172 | I18: 0.0032 | J18: 0.5902 | K18: 0.03 | L18: 1.45 | M18: 0.53 | N18: -3.22 | O18: 1.17
A19: 53615-s4 | B19: 3.0703 | C19: 0.024 | D19: 1.9849 | E19: 0.022 | F19: 1.2174 | G19: 0.0114 | H19: 0.1313 | I19: 0.0014 | J19: 0.2234 | K19: 0.0194 | L19: -0.65 | M19: 0.22 | N19: -1.47 | O19: 0.5
A20: 53615-2-s1 | B20: 2.985 | C20: 0.07 | D20: 1.9664 | E20: 0.044 | F20: 1.1754 | G20: 0.034 | H20: 0.1276 | I20: 0.0024 | J20: 0.1908 | K20: 0.0148 | L20: -0.08 | M20: 0.36 | N20: -0.16 | O20: 0.68
A21: 53615-2-s1-2 | B21: 3.0233 | C21: 0.058 | D21: 1.9513 | E21: 0.038 | F21: 1.2008 | G21: 0.024 | H21: 0.1306 | I21: 0.0016 | J21: 0.114 | K21: 0.0064 | L21: -0.54 | M21: 0.24 | N21: -0.76 | O21: 0.33
A22: 53615-2-s2 | B22: 3.0851 | C22: 0.0078 | D22: 1.9865 | E22: 0.0062 | F22: 1.2247 | G22: 0.0048 | H22: 0.1185 | I22: 0.0005 | J22: 0.2939 | K22: 0.014 | L22: 1.26 | M22: 0.18 | N22: 4.55 | O22: 0.64
A23: 53615-2-s4 | B23: 3.0706 | C23: 0.0076 | D23: 1.9758 | E23: 0.0054 | F23: 1.2157 | G23: 0.0042 | H23: 0.1183 | I23: 0.0005 | J23: 0.2067 | K23: 0.0184 | L23: 1.28 | M23: 0.14 | N23: 2.61 | O23: 0.29
A24: 53615-3-s2e | B24: 3.025 | C24: 0.06 | D24: 1.9434 | E24: 0.038 | F24: 1.1667 | G24: 0.034 | H24: 0.1179 | I24: 0.0028 | J24: 0.2923 | K24: 0.0074 | L24: 1.34 | M24: 0.42 | N24: 4.77 | O24: 1.51
A25: 53618-s1 | B25: 3.077 | C25: 0.028 | D25: 1.9713 | E25: 0.02 | F25: 1.2143 | G25: 0.0124 | H25: 0.124 | I25: 0.0017 | J25: 0.1514 | K25: 0.026 | L25: 0.45 | M25: 0.26 | N25: 0.71 | O25: 0.41
A26: 53618-s2-1 | B26: 3.2145 | C26: 0.052 | D26: 2.1002 | E26: 0.044 | F26: 1.242 | G26: 0.038 | H26: 0.1297 | I26: 0.0022 | J26: 0.1073 | K26: 0.015 | L26: -0.4 | M26: 0.33 | N26: -0.55 | O26: 0.45
A27: 53618-s2-2 | B27: 3.169 | C27: 0.052 | D27: 2.052 | E27: 0.032 | F27: 1.2508 | G27: 0.034 | H27: 0.1266 | I27: 0.0024 | J27: 0.2112 | K27: 0.024 | L27: 0.06 | M27: 0.37 | N27: 0.12 | O27: 0.76
A28: 53618-s3 | B28: 3.0904 | C28: 0.046 | D28: 1.9603 | E28: 0.038 | F28: 1.1783 | G28: 0.032 | H28: 0.1236 | I28: 0.0019 | J28: 0.1022 | K28: 0.0064 | L28: 0.5 | M28: 0.29 | N28: 0.67 | O28: 0.38
A29: 53618-s3-1 | B29: 3.097 | C29: 0.05 | D29: 2.0001 | E29: 0.046 | F29: 1.2402 | G29: 0.036 | H29: 0.1268 | I29: 0.0026 | J29: 0.1891 | K29: 0.0052 | L29: 0.03 | M29: 0.4 | N29: 0.05 | O29: 0.73
A30: 53618-s4 | B30: 3.0354 | C30: 0.052 | D30: 1.9438 | E30: 0.044 | F30: 1.1875 | G30: 0.026 | H30: 0.1225 | I30: 0.0018 | J30: 0.1573 | K30: 0.0126 | L30: 0.67 | M30: 0.27 | N30: 1.1 | O30: 0.44
A31: 53618-s9 | B31: 3.098 | C31: 0.058 | D31: 1.9952 | E31: 0.048 | F31: 1.2277 | G31: 0.022 | H31: 0.1268 | I31: 0.0019 | J31: 0.1261 | K31: 0.0038 | L31: 0.04 | M31: 0.29 | N31: 0.05 | O31: 0.41
A32: 53618-2-s2 | B32: 3.1028 | C32: 0.12 | D32: 2.0196 | E32: 0.052 | F32: 1.2289 | G32: 0.058 | H32: 0.1248 | I32: 0.0036 | J32: 0.0438 | K32: 0.0066 | L32: 0.32 | M32: 0.54 | N32: 0.36 | O32: 0.6
A33: 53618-2-s3 | B33: 3.0826 | C33: 0.042 | D33: 1.9781 | E33: 0.032 | F33: 1.2202 | G33: 0.024 | H33: 0.1235 | I33: 0.0015 | J33: 0.0978 | K33: 0.0048 | L33: 0.53 | M33: 0.23 | N33: 0.69 | O33: 0.3
A34: 53618-2-s6 | B34: 3.0677 | C34: 0.022 | D34: 1.9799 | E34: 0.015 | F34: 1.226 | G34: 0.0104 | H34: 0.1195 | I34: 0.0014 | J34: 0.4131 | K34: 0.0134 | L34: 11.12 | M34: 13.36 | N34: 65.63 | O34: 78.89
A35: Zala | L35: TRD(Ga) | M35: 2se | N35: TMA(Ga)
A36: 53786-2-s1-1 | B36: 3.1264 | C36: 0.09 | D36: 2.0045 | E36: 0.076 | F36: 1.2366 | G36: 0.054 | H36: 0.1175 | I36: 0.0032 | J36: 1.0488 | K36: 0.056 | L36: 1.41 | M36: 0.49 | N36: -0.89 | O36: 0.31
A37: 53786-2-s1-2 | B37: 3.1511 | C37: 0.114 | D37: 2.0203 | E37: 0.086 | F37: 1.2887 | G37: 0.064 | H37: 0.1177 | I37: 0.002 | J37: 0.7164 | K37: 0.048 | L37: 1.37 | M37: 0.36 | N37: -1.8 | O37: 0.47
A38: 53786-2-s3 | B38: 3.1045 | C38: 0.096 | D38: 1.992 | E38: 0.058 | F38: 1.2459 | G38: 0.05 | H38: 0.1215 | I38: 0.0015 | J38: 0.258 | K38: 0.0182 | L38: 0.82 | M38: 0.25 | N38: 2.25 | O38: 0.68
A39: 53790-s-s1 | B39: 3.1328 | C39: 0.09 | D39: 1.9995 | E39: 0.052 | F39: 1.2097 | G39: 0.068 | H39: 0.1247 | I39: 0.0028 | J39: 0.1515 | K39: 0.024 | L39: 0.34 | M39: 0.42 | N39: 0.55 | O39: 0.67
A40: 53790-s-s2 | B40: 3.0952 | C40: 0.0076 | D40: 1.9912 | E40: 0.0072 | F40: 1.2264 | G40: 0.0044 | H40: 0.1238 | I40: 0.0007 | J40: 0.1496 | K40: 0.0042 | L40: 0.48 | M40: 0.11 | N40: 0.76 | O40: 0.17
A41: 53790-s-s3 | B41: 2.9894 | C41: 0.066 | D41: 1.952 | E41: 0.046 | F41: 1.2161 | G41: 0.03 | H41: 0.1235 | I41: 0.0028 | J41: 0.3334 | K41: 0.0136 | L41: 0.53 | M41: 0.43 | N41: 3.02 | O41: 2.47
A42: 53796-2-s1 | B42: 3.0092 | C42: 0.09 | D42: 1.9396 | E42: 0.084 | F42: 1.1525 | G42: 0.08 | H42: 0.1174 | I42: 0.004 | J42: 0.095 | K42: 0.02 | L42: 1.42 | M42: 0.6 | N42: 1.85 | O42: 0.78
A43: 53796-2-s2 | B43: 3.0224 | C43: 0.044 | D43: 1.9636 | E43: 0.026 | F43: 1.1792 | G43: 0.02 | H43: 0.1097 | I43: 0.0016 | J43: 0.9589 | K43: 0.094 | L43: 2.53 | M43: 0.49 | N43: -1.89 | O43: 0.36
A44: 53803-s2 | B44: 3.0935 | C44: 0.009 | D44: 1.9835 | E44: 0.006 | F44: 1.2251 | G44: 0.0038 | H44: 0.1229 | I44: 0.0006 | J44: 0.036 | K44: 0.0006 | L44: 0.61 | M44: 0.09 | N44: 0.67 | O44: 0.1
A45: 53803-2-s2 | B45: 3.0491 | C45: 0.064 | D45: 1.9593 | E45: 0.056 | F45: 1.1947 | G45: 0.038 | H45: 0.1178 | I45: 0.0036 | J45: 0.0273 | K45: 0.0034 | L45: 1.35 | M45: 0.53 | N45: 1.45 | O45: 0.57
A46: 53803-3-s5 | B46: 3.0508 | C46: 0.062 | D46: 1.9429 | E46: 0.064 | F46: 1.2432 | G46: 0.068 | H46: 0.1249 | I46: 0.0034 | J46: 0.0123 | K46: 0.0022 | L46: 0.32 | M46: 0.51 | N46: 0.33 | O46: 0.52
A47: 53803-3-1 | B47: 3.016 | C47: 0.052 | D47: 1.9392 | E47: 0.03 | F47: 1.1953 | G47: 0.024 | H47: 0.1219 | I47: 0.0018 | J47: 0.0829 | K47: 0.0028 | L47: 0.76 | M47: 0.26 | N47: 0.95 | O47: 0.33
A48: 54422-2-s1-1 | B48: 3.0798 | C48: 0.046 | D48: 1.9808 | E48: 0.054 | F48: 1.2164 | G48: 0.046 | H48: 0.1164 | I48: 0.0028 | J48: 0.6337 | K48: 0.084 | L48: 1.57 | M48: 0.7 | N48: -2.81 | O48: 1.26
A49: 54422-2-s2e | B49: 3.0932 | C49: 0.0112 | D49: 1.9895 | E49: 0.0084 | F49: 1.2215 | G49: 0.0052 | H49: 0.124 | I49: 0.0005 | J49: 0.0216 | K49: 0.0005 | L49: 0.45 | M49: 0.08 | N49: 0.48 | O49: 0.08
A50: 54427-s1 | B50: 3.085 | C50: 0.056 | D50: 1.9554 | E50: 0.042 | F50: 1.195 | G50: 0.022 | H50: 0.1258 | I50: 0.0022 | J50: 0.4922 | K50: 0.02 | L50: 0.18 | M50: 0.34 | N50: -0.8 | O50: 1.48
A51: 54427-s1 | B51: 3.0405 | C51: 0.036 | D51: 1.9714 | E51: 0.028 | F51: 1.2096 | G51: 0.0192 | H51: 0.1213 | I51: 0.0015 | J51: 0.2993 | K51: 0.048 | L51: 0.85 | M51: 0.46 | N51: 3.25 | O51: 1.76
A52: 54427-2-s3 | B52: 3.1521 | C52: 0.056 | D52: 2.0323 | E52: 0.042 | F52: 1.2512 | G52: 0.03 | H52: 0.1201 | I52: 0.0022 | J52: 0.3951 | K52: 0.036 | L52: 1.02 | M52: 5.48 | N52: 42.32 | O52: 226.7
A53: 54430-2-s1 | B53: 3.1148 | C53: 0.03 | D53: 1.9905 | E53: 0.0144 | F53: 1.2389 | G53: 0.0134 | H53: 0.1198 | I53: 0.0012 | J53: 0.6566 | K53: 0.062 | L53: 1.08 | M53: 0.32 | N53: -1.74 | O53: 0.51
A54: 54433-s2 | B54: 3.0843 | C54: 0.02 | D54: 1.9731 | E54: 0.0162 | F54: 1.2174 | G54: 0.0098 | H54: 0.1259 | I54: 0.0012 | J54: 0.2151 | K54: 0.012 | L54: 0.16 | M54: 0.18 | N54: 0.34 | O54: 0.38
A55: 54433-s5 | B55: 3.1034 | C55: 0.094 | D55: 1.9903 | E55: 0.054 | F55: 1.2196 | G55: 0.038 | H55: 0.1238 | I55: 0.0028 | J55: 0.1889 | K55: 0.0054 | L55: 0.47 | M55: 0.42 | N55: 0.89 | O55: 0.78
A56: 54433-3-s1-3 | B56: 3.034 | C56: 0.0168 | D56: 1.9626 | E56: 0.0164 | F56: 1.2178 | G56: 0.0098 | H56: 0.1273 | I56: 0.001 | J56: 0.1753 | K56: 0.0158 | L56: -0.05 | M56: 0.14 | N56: -0.09 | O56: 0.26
A57: 54438-s2-1 | B57: 3.0731 | C57: 0.042 | D57: 1.9702 | E57: 0.026 | F57: 1.2023 | G57: 0.017 | H57: 0.118 | I57: 0.0018 | J57: 0.2706 | K57: 0.02 | L57: 1.34 | M57: 0.33 | N57: 4 | O57: 0.99
A58: 54438-2-s1 | B58: 3.0827 | C58: 0.0076 | D58: 1.9875 | E58: 0.0066 | F58: 1.2243 | G58: 0.0046 | H58: 0.12 | I58: 0.0005 | J58: 0.1083 | K58: 0.0026 | L58: 1.04 | M58: 0.07 | N58: 1.42 | O58: 0.09
A59: 54438-2-s4 | B59: 3.083 | C59: 0.084 | D59: 1.9945 | E59: 0.04 | F59: 1.199 | G59: 0.024 | H59: 0.1281 | I59: 0.0036 | J59: 0.1906 | K59: 0.03
A60: 54438-2-s4 | B60: 3.0849 | C60: 0.0178 | D60: 1.9866 | E60: 0.0128 | F60: 1.2241 | G60: 0.0076 | H60: 0.1178 | I60: 0.001 | J60: 0.1318 | K60: 0.0174 | L60: 1.37 | M60: 0.17 | N60: 2.02 | O60: 0.25
A61: 54442-s1 | B61: 3.0727 | C61: 0.024 | D61: 1.9542 | E61: 0.0188 | F61: 1.2236 | G61: 0.013 | H61: 0.1234 | I61: 0.0018 | J61: 0.3379 | K61: 0.0048 | L61: 0.54 | M61: 0.28 | N61: 3.28 | O61: 1.69
A62: 54442-2-s1 | B62: 3.0145 | C62: 0.224 | D62: 1.9879 | E62: 0.104 | F62: 1.208 | G62: 0.08 | H62: 0.1187 | I62: 0.0038 | J62: 0.3733 | K62: 0.052 | L62: 1.23 | M62: 2.32 | N62: 15.37 | O62: 28.89
A63: 54443-s1 | B63: 2.975 | C63: 0.146 | D63: 1.9594 | E63: 0.104 | F63: 1.197 | G63: 0.074 | H63: 0.117 | I63: 0.0026 | J63: 0.0994 | K63: 0.024 | L63: 1.48 | M63: 0.4 | N63: 1.96 | O63: 0.53
A64: 54443-2-s1 | B64: 3.0519 | C64: 0.022 | D64: 1.9658 | E64: 0.0144 | F64: 1.2056 | G64: 0.0078 | H64: 0.1165 | I64: 0.0011 | J64: 0.2637 | K64: 0.0066 | L64: 1.55 | M64: 0.18 | N64: 4.4 | O64: 0.51
A65: 54443-2-s2 | B65: 3.0752 | C65: 0.032 | D65: 1.9819 | E65: 0.022 | F65: 1.2172 | G65: 0.0136 | H65: 0.1183 | I65: 0.0017 | J65: 0.0552 | K65: 0.0007 | L65: 1.29 | M65: 0.25 | N65: 1.5 | O65: 0.28
A66: 54443-2-s3 | B66: 3.098 | C66: 0.0152 | D66: 1.9874 | E66: 0.0086 | F66: 1.2284 | G66: 0.0074 | H66: 0.1203 | I66: 0.0006 | J66: 0.0409 | K66: 0.0096 | L66: 0.99 | M66: 0.1 | N66: 1.1 | O66: 0.11
A67: 54443-2-s5 | B67: 3.1287 | C67: 0.066 | D67: 1.981 | E67: 0.046 | F67: 1.2658 | G67: 0.034 | H67: 0.1195 | I67: 0.0028 | J67: 0.2973 | K67: 0.04 | L67: 1.12 | M67: 0.6 | N67: 4.18 | O67: 2.23
A68: 54438-3-s1 | B68: 2.9979 | C68: 0.038 | D68: 1.9235 | E68: 0.034 | F68: 1.2057 | G68: 0.02 | H68: 0.1203 | I68: 0.0019 | J68: 0.1681 | K68: 0.019 | L68: 0.99 | M68: 0.29 | N68: 1.69 | O68: 0.49
A69: 54438-3-s2i-f | B69: 3.0594 | C69: 0.024 | D69: 1.9698 | E69: 0.0198 | F69: 1.2024 | G69: 0.0144 | H69: 0.1275 | I69: 0.0014 | J69: 0.2446 | K69: 0.0198 | L69: -0.08 | M69: 0.2 | N69: -0.2 | O69: 0.53
A70: 54438-s-s3i-f | B70: 3.1296 | C70: 0.05 | D70: 2.0094 | E70: 0.054 | F70: 1.2256 | G70: 0.028 | H70: 0.1285 | I70: 0.0024 | J70: 0.24 | K70: 0.0086 | L70: -0.22 | M70: 0.36 | N70: -0.54 | O70: 0.9
A71: 54438-s-s6i-f | B71: 3.0093 | C71: 0.076 | D71: 1.9553 | E71: 0.054 | F71: 1.18 | G71: 0.052 | H71: 0.1269 | I71: 0.0032 | J71: 0.2426 | K71: 0.0088 | L71: 0.02 | M71: 0.51 | N71: 0.05 | O71: 1.21
A72: 54438-s-s7i-f | B72: 3.04 | C72: 0.046 | D72: 1.9392 | E72: 0.034 | F72: 1.2033 | G72: 0.026 | H72: 0.14 | I72: 0.003 | J72: 0.3482 | K72: 0.032 | L72: -1.96 | M72: 1.26 | N72: -16.57 | O72: 10.61
A73: 54438-s-s8i-f | B73: 3.0697 | C73: 0.082 | D73: 2.05 | E73: 0.064 | F73: 1.2549 | G73: 0.048 | H73: 0.1359 | I73: 0.0036 | J73: 0.4036 | K73: 0.024 | L73: -1.34 | M73: 18.45 | N73: 108.49 | O73: 1494.32
A74: ZL0815-s1e | B74: 3.0754 | C74: 0.046 | D74: 1.9624 | E74: 0.042 | F74: 1.199 | G74: 0.026 | H74: 0.1251 | I74: 0.0024 | J74: 0.2987 | K74: 0.008 | L74: 0.43 | M74: 0.35 | N74: 1.47 | O74: 1.16
A75: ZL0815-s2e-ol | B75: 3.0851 | C75: 0.032 | D75: 1.9868 | E75: 0.024 | F75: 1.2115 | G75: 0.0162 | H75: 0.1265 | I75: 0.001 | J75: 0.1285 | K75: 0.0092 | L75: 0.24 | M75: 0.14 | N75: 0.33 | O75: 0.2
A76: ZL0815-s3ecpx | B76: 3.0483 | C76: 0.062 | D76: 1.9626 | E76: 0.032 | F76: 1.1999 | G76: 0.022 | H76: 0.1259 | I76: 0.0024 | J76: 0.3614 | K76: 0.05 | L76: 0.32 | M76: 0.44 | N76: 2.18 | O76: 2.37
A77: ZL0833-s1 | B77: 3.1061 | C77: 0.028 | D77: 1.9842 | E77: 0.0152 | F77: 1.2084 | G77: 0.02 | H77: 0.1205 | I77: 0.0024 | J77: 0.0166 | K77: 0.006 | L77: 1.08 | M77: 0.34 | N77: 1.12 | O77: 0.35
A78: Shavaryn-Tsaram | L78: TRD(Ga) | M78: 2se | N78: TMA(Ga)
A79: ST0802-S3e | B79: 3.0627 | C79: 0.054 | D79: 1.9925 | E79: 0.03 | F79: 1.2367 | G79: 0.024 | H79: 0.1211 | I79: 0.0019 | J79: 0.5463 | K79: 0.066 | L79: 1 | M79: 0.59 | N79: -3.48 | O79: 0.93
A80: ST0802-S4e-r | B80: 3.0579 | C80: 0.03 | D80: 1.9961 | E80: 0.022 | F80: 1.2316 | G80: 0.0198 | H80: 0.1259 | I80: 0.0014 | J80: 0.4044 | K80: 0.034 | L80: 0.31 | M80: 0.67 | N80: 7.32 | O80: 4.81
A81: ST0802r-s5f | B81: 3.0318 | C81: 0.058 | D81: 1.9852 | E81: 0.044 | F81: 1.2291 | G81: 0.03 | H81: 0.1234 | I81: 0.0034 | J81: 0.64 | K81: 0.022 | L81: 0.67 | M81: 0.49 | N81: -1.3 | O81: 0.94
A82: ST0802r-s9f | B82: 3.1038 | C82: 0.058 | D82: 2.0203 | E82: 0.04 | F82: 1.2361 | G82: 0.024 | H82: 0.1248 | I82: 0.0034 | J82: 0.6426 | K82: 0.044 | L82: 0.48 | M82: 0.5 | N82: -0.91 | O82: 0.93
A83: ST0803-s1f | B83: 3.0453 | C83: 0.052 | D83: 1.9696 | E83: 0.038 | F83: 1.2007 | G83: 0.03 | H83: 0.1185 | I83: 0.0026 | J83: 0.6483 | K83: 0.03 | L83: 1.36 | M83: 0.41 | N83: -2.59 | O83: 0.7
A84: ST0803-s3f-r | B84: 3.0465 | C84: 0.044 | D84: 1.9793 | E84: 0.032 | F84: 1.2069 | G84: 0.028 | H84: 0.1263 | I84: 0.0018 | J84: 0.1825 | K84: 0.0118 | L84: 0.26 | M84: 0.26 | N84: 0.44 | O84: 0.46
A85: ST0803-s4f-r | B85: 3.0465 | C85: 0.044 | D85: 1.9793 | E85: 0.032 | F85: 1.2069 | G85: 0.028 | H85: 0.1263 | I85: 0.0018 | J85: 0.1825 | K85: 0.0118 | L85: 0.26 | M85: 0.26 | N85: 0.44 | O85: 0.46
A86: ST0803-s5f-r | B86: 3.0749 | C86: 0.0032 | D86: 1.9792 | E86: 0.0026 | F86: 1.2191 | G86: 0.0022 | H86: 0.1265 | I86: 0.0002 | J86: 0.0335 | K86: 0.002 | L86: 0.22 | M86: 0.03 | N86: 0.24 | O86: 0.04
A87: St0803r-s8e-f-r | B87: 3.0756 | C87: 0.01 | D87: 1.9836 | E87: 0.008 | F87: 1.2262 | G87: 0.0064 | H87: 0.1243 | I87: 0.0005 | J87: 0.2509 | K87: 0.032 | L87: 0.55 | M87: 0.13 | N87: 1.34 | O87: 0.19
A88: ST0804-s1e | B88: 3.0521 | C88: 0.0182 | D88: 1.9723 | E88: 0.0102 | F88: 1.2016 | G88: 0.0092 | H88: 0.1266 | I88: 0.0008 | J88: 0.507 | K88: 0.042 | L88: 0.22 | M88: 0.16 | N88: -1.07 | O88: 0.55
A89: ST0804-s3e-f | B89: 3.0399 | C89: 0.0114 | D89: 1.9676 | E89: 0.0086 | F89: 1.22 | G89: 0.0068 | H89: 0.1267 | I89: 0.0005 | J89: 0.1151 | K89: 0.0088 | L89: 0.2 | M89: 0.08 | N89: 0.27 | O89: 0.1
A90: ST0804-s4e | B90: 3.0605 | C90: 0.034 | D90: 1.9353 | E90: 0.034 | F90: 1.1791 | G90: 0.022 | H90: 0.1235 | I90: 0.0019 | J90: 0.4993 | K90: 0.032 | L90: 0.66 | M90: 0.38 | N90: -3.66 | O90: 1.52
A91: ST0804-s5e-f | B91: 3.0711 | C91: 0.042 | D91: 1.9788 | E91: 0.032 | F91: 1.2164 | G91: 0.024 | H91: 0.1236 | I91: 0.0014 | J91: 0.0711 | K91: 0.0019 | L91: 0.65 | M91: 0.2 | N91: 0.77 | O91: 0.24
A92: ST0804-s8f | B92: 3.0588 | C92: 0.052 | D92: 1.9722 | E92: 0.032 | F92: 1.1834 | G92: 0.028 | H92: 0.1267 | I92: 0.0026 | J92: 0.2265 | K92: 0.016 | L92: 0.2 | M92: 0.38 | N92: 0.42 | O92: 0.8
A93: ST0804-s9f | B93: 3.1257 | C93: 0.05 | D93: 2.0011 | E93: 0.026 | F93: 1.2717 | G93: 0.028 | H93: 0.1286 | I93: 0.0024 | J93: 0.3339 | K93: 0.0108 | L93: -0.06 | M93: 0.32 | N93: -0.33 | O93: 1.66
A94: ST0804-s12f | B94: 3.0272 | C94: 0.06 | D94: 1.9489 | E94: 0.046 | F94: 1.1908 | G94: 0.03 | H94: 0.1235 | I94: 0.0026 | J94: 0.2077 | K94: 0.0148 | L94: 0.66 | M94: 0.37 | N94: 1.29 | O94: 0.72
A95: ST0804-s13e-f | B95: 3.0595 | C95: 0.036 | D95: 1.9711 | E95: 0.028 | F95: 1.2217 | G95: 0.02 | H95: 0.1204 | I95: 0.0017 | J95: 0.246 | K95: 0.007 | L95: 1.09 | M95: 0.24 | N95: 2.57 | O95: 0.57
A96: ST0804-s15e-fr | B96: 3.0812 | C96: 0.038 | D96: 1.979 | E96: 0.022 | F96: 1.2202 | G96: 0.0192 | H96: 0.127 | I96: 0.0017 | J96: 0.1472 | K96: 0.024 | L96: 0.16 | M96: 0.25 | N96: 0.24 | O96: 0.38
A97: ST0804r-s17-18e-r | B97: 3.1309 | C97: 0.024 | D97: 2.0339 | E97: 0.0164 | F97: 1.2351 | G97: 0.0136 | H97: 0.126 | I97: 0.0012 | J97: 0.1771 | K97: 0.009 | L97: 0.3 | M97: 0.17 | N97: 0.52 | O97: 0.29
A98: ST0804r-s19e-r | B98: 3.0746 | C98: 0.046 | D98: 1.9626 | E98: 0.038 | F98: 1.2265 | G98: 0.026 | H98: 0.1274 | I98: 0.0024 | J98: 0.2258 | K98: 0.04 | L98: 0.11 | M98: 0.36 | N98: 0.23 | O98: 0.74
A99: ST0804r-s20er-f | B99: 3.075 | C99: 0.0112 | D99: 1.9768 | E99: 0.0104 | F99: 1.2197 | G99: 0.0052 | H99: 0.1245 | I99: 0.0006 | J99: 0.05 | K99: 0.0018 | L99: 0.52 | M99: 0.08 | N99: 0.58 | O99: 0.09
A100: ST0804r-s23f | B100: 3.0876 | C100: 0.024 | D100: 1.9888 | E100: 0.0156 | F100: 1.2241 | G100: 0.0126 | H100: 0.1214 | I100: 0.0014 | J100: 0.2001 | K100: 0.0124 | L100: 0.95 | M100: 0.2 | N100: 1.79 | O100: 0.36
A101: ST0804r-24e-f | B101: 3.0823 | C101: 0.046 | D101: 1.9866 | E101: 0.036 | F101: 1.2164 | G101: 0.034 | H101: 0.121 | I101: 0.0028 | J101: 0.2489 | K101: 0.0068 | L101: 1 | M101: 0.4 | N101: 2.41 | O101: 0.96
A102: ST0804r-25e-fr | B102: 3.1179 | C102: 0.028 | D102: 1.9958 | E102: 0.0166 | F102: 1.2404 | G102: 0.0106 | H102: 0.127 | I102: 0.0009 | J102: 0.1758 | K102: 0.0094 | L102: 0.16 | M102: 0.14 | N102: 0.27 | O102: 0.23
A103: ST0804r-26f-r | B103: 3.0713 | C103: 0.0124 | D103: 1.9724 | E103: 0.0094 | F103: 1.2122 | G103: 0.008 | H103: 0.1261 | I103: 0.0006 | J103: 0.0971 | K103: 0.007 | L103: 0.28 | M103: 0.08 | N103: 0.36 | O103: 0.1
A104: ST0804r-28f-e | B104: 3.0668 | C104: 0.036 | D104: 1.9762 | E104: 0.024 | F104: 1.2258 | G104: 0.0176 | H104: 0.1268 | I104: 0.0014 | J104: 0.1121 | K104: 0.0036 | L104: 0.19 | M104: 0.2 | N104: 0.25 | O104: 0.26
A105: St0805-s1e | B105: 3.0337 | C105: 0.03 | D105: 1.9662 | E105: 0.022 | F105: 1.206 | G105: 0.0198 | H105: 0.1195 | I105: 0.0012 | J105: 0.3374 | K105: 0.022 | L105: 1.22 | M105: 0.36 | N105: 5.89 | O105: 0.8
A106: ST0806-s1e-r | B106: 3.0856 | C106: 0.004 | D106: 1.9813 | E106: 0.0024 | F106: 1.2229 | G106: 0.0028 | H106: 0.1267 | I106: 0.0002 | J106: 0.1143 | K106: 0.0108 | L106: 0.2 | M106: 0.04 | N106: 0.27 | O106: 0.05
A107: ST0806-s2f-r | B107: 3.0624 | C107: 0.056 | D107: 1.9353 | E107: 0.056 | F107: 1.2135 | G107: 0.038 | H107: 0.1241 | I107: 0.0036 | J107: 0.1821 | K107: 0.0092 | L107: 0.57 | M107: 0.51 | N107: 0.99 | O107: 0.9
A108: ST0806-r-s6f-r | B108: 3.0881 | C108: 0.0078 | D108: 1.9932 | E108: 0.0056 | F108: 1.2249 | G108: 0.0042 | H108: 0.1288 | I108: 0.0007 | J108: 0.1422 | K108: 0.014 | L108: -0.1 | M108: 0.09 | N108: -0.16 | O108: 0.14
A109: ST0807-s2e | B109: 3.0864 | C109: 0.0164 | D109: 1.9839 | E109: 0.0102 | F109: 1.2269 | G109: 0.0084 | H109: 0.1233 | I109: 0.0008 | J109: 0.1218 | K109: 0.0011 | L109: 0.68 | M109: 0.11 | N109: 0.96 | O109: 0.15
A110: ST0807-s3f | B110: 3.0231 | C110: 0.098 | D110: 1.9869 | E110: 0.062 | F110: 1.1866 | G110: 0.042 | H110: 0.1214 | I110: 0.0036 | J110: 0.1622 | K110: 0.0054 | L110: 0.95 | M110: 0.51 | N110: 1.54 | O110: 0.82
A111: ST0807r-s4r-fe | B111: 3.0221 | C111: 0.024 | D111: 1.9517 | E111: 0.0188 | F111: 1.2106 | G111: 0.0122 | H111: 0.1243 | I111: 0.0011 | J111: 0.0971 | K111: 0.0108 | L111: 0.54 | M111: 0.15 | N111: 0.7 | O111: 0.2
A112: ST0808-s1f | B112: 3.081 | C112: 0.0196 | D112: 1.9832 | E112: 0.0198 | F112: 1.214 | G112: 0.0142 | H112: 0.1213 | I112: 0.0011 | J112: 0.0673 | K112: 0.0084 | L112: 0.97 | M112: 0.16 | N112: 1.14 | O112: 0.18
A113: ST0808r-s2e | B113: 3.0832 | C113: 0.0088 | D113: 1.9811 | E113: 0.0066 | F113: 1.2159 | G113: 0.0048 | H113: 0.1249 | I113: 0.0003 | J113: 0.0693 | K113: 0.0022 | L113: 0.46 | M113: 0.05 | N113: 0.55 | O113: 0.06
A114: ST0809-s1f | B114: 3.0677 | C114: 0.01 | D114: 1.9762 | E114: 0.0064 | F114: 1.2239 | G114: 0.0052 | H114: 0.1162 | I114: 0.0004 | J114: 0.0557 | K114: 0.006 | L114: 1.67 | M114: 0.07 | N114: 1.92 | O114: 0.07
A115: ST0809-s1f | B115: 3.06 | C115: 0.0126 | D115: 1.9656 | E115: 0.0092 | F115: 1.2195 | G115: 0.0078 | H115: 0.1156 | I115: 0.0006 | J115: 0.0624 | K115: 0.006 | L115: 1.76 | M115: 0.09 | N115: 2.06 | O115: 0.1
A116: ST0809-s2f | B116: 3.0437 | C116: 0.042 | D116: 1.9738 | E116: 0.028 | F116: 1.2199 | G116: 0.0164 | H116: 0.1172 | I116: 0.0017 | J116: 0.1569 | K116: 0.0058 | L116: 1.54 | M116: 0.24 | N116: 2.42 | O116: 0.37
A117: ST0812-s1r-f | B117: 3.0551 | C117: 0.042 | D117: 1.985 | E117: 0.028 | F117: 1.225 | G117: 0.026 | H117: 0.1224 | I117: 0.002 | J117: 0.0994 | K117: 0.003 | L117: 0.81 | M117: 0.28 | N117: 1.05 | O117: 0.36
A118: ST0812-s3r-f | B118: 3.0784 | C118: 0.005 | D118: 1.9859 | E118: 0.0042 | F118: 1.224 | G118: 0.0024 | H118: 0.1246 | I118: 0.0003 | J118: 0.1119 | K118: 0.009 | L118: 0.49 | M118: 0.05 | N118: 0.67 | O118: 0.06
A119: ST0812-s4r-f | B119: 3.0097 | C119: 0.072 | D119: 1.9317 | E119: 0.052 | F119: 1.2158 | G119: 0.062 | H119: 0.1227 | I119: 0.003 | J119: 0.2307 | K119: 0.0108 | L119: 0.77 | M119: 0.43 | N119: 1.69 | O119: 0.93
A120: ST0812-s5r-f | B120: 3.064 | C120: 0.06 | D120: 2.0023 | E120: 0.04 | F120: 1.2459 | G120: 0.036 | H120: 0.1207 | I120: 0.0017 | J120: 0.2697 | K120: 0.03 | L120: 1.05 | M120: 0.32 | N120: 2.86 | O120: 0.65
A121: ST0812-s6r-f | B121: 3.0819 | C121: 0.048 | D121: 2.0331 | E121: 0.038 | F121: 1.232 | G121: 0.028 | H121: 0.1235 | I121: 0.0019 | J121: 0.2317 | K121: 0.0176 | L121: 0.66 | M121: 0.28 | N121: 1.44 | O121: 0.59
A122: ST0812r-s8f | B122: 3.0753 | C122: 0.0116 | D122: 1.9786 | E122: 0.0102 | F122: 1.2182 | G122: 0.0098 | H122: 0.1176 | I122: 0.0013 | J122: 0.3405 | K122: 0.0074 | L122: 1.48 | M122: 0.22 | N122: 7.35 | O122: 0.89
A123: ST0812r-s9f | B123: 3.0843 | C123: 0.044 | D123: 1.9868 | E123: 0.03 | F123: 1.2106 | G123: 0.0194 | H123: 0.1247 | I123: 0.0018 | J123: 0.197 | K123: 0.026 | L123: 0.48 | M123: 0.27 | N123: 0.89 | O123: 0.49
A124: ST0812r-s8-1f | B124: 3.0704 | C124: 0.0074 | D124: 1.977 | E124: 0.004 | F124: 1.2136 | G124: 0.0044 | H124: 0.1247 | I124: 0.0005 | J124: 0.0706 | K124: 0.0064 | L124: 0.49 | M124: 0.07 | N124: 0.59 | O124: 0.09
A125: ST0813-s1f | B125: 3.0718 | C125: 0.062 | D125: 1.9975 | E125: 0.04 | F125: 1.2233 | G125: 0.028 | H125: 0.1275 | I125: 0.002 | J125: 0.2582 | K125: 0.0074 | L125: 0.08 | M125: 0.3 | N125: 0.21 | O125: 0.74
A126: ST0815-s1e | B126: 3.0711 | C126: 0.013 | D126: 1.97 | E126: 0.0094 | F126: 1.2186 | G126: 0.0074 | H126: 0.1223 | I126: 0.0007 | J126: 0.3724 | K126: 0.036 | L126: 0.82 | M126: 0.62 | N126: 6.73 | O126: 0.8
A127: ST0815-s2f | B127: 3.01 | C127: 0.028 | D127: 1.966 | E127: 0.024 | F127: 1.1775 | G127: 0.02 | H127: 0.1237 | I127: 0.0015 | J127: 0.3892 | K127: 0.03 | L127: 0.62 | M127: 0.63 | N127: 7.73 | O127: 2.64
A128: ST0815-s3e-f | B128: 3.0559 | C128: 0.082 | D128: 1.9632 | E128: 0.06 | F128: 1.2148 | G128: 0.038 | H128: 0.1181 | I128: 0.0028 | J128: 0.4424 | K128: 0.0176 | L128: 1.42 | M128: 1.23 | N128: -37.96 | O128: 11.71
A129: ST0815r-s4f | B129: 2.9324 | C129: 0.1 | D129: 1.9227 | E129: 0.084 | F129: 1.1737 | G129: 0.06 | H129: 0.1181 | I129: 0.003 | J129: 0.3604 | K129: 0.014 | L129: 1.41 | M129: 0.53 | N129: 9.16 | O129: 2.79
A130: Horgo | L130: TRD(Ga) | M130: 2se | N130: TMA(Ga)
A131: HG0801-s3r | B131: 3.016 | C131: 0.036 | D131: 1.9402 | E131: 0.026 | F131: 1.2044 | G131: 0.017 | H131: 0.1298 | I131: 0.0015 | J131: 0.1667 | K131: 0.0084 | L131: -0.24 | M131: 0.21 | N131: -0.41 | O131: 0.36
A132: HG0801-s6f | B132: 3.0656 | C132: 0.06 | D132: 1.9816 | E132: 0.046 | F132: 1.205 | G132: 0.026 | H132: 0.1246 | I132: 0.0024 | J132: 0.3327 | K132: 0.0164 | L132: 0.51 | M132: 0.36 | N132: 2.36 | O132: 1.6
A133: HG0801r-s8f | B133: 3.0739 | C133: 0.024 | D133: 1.9636 | E133: 0.0152 | F133: 1.212 | G133: 0.0082 | H133: 0.1271 | I133: 0.0014 | J133: 0.2723 | K133: 0.0102 | L133: 0.15 | M133: 0.2 | N133: 0.41 | O133: 0.56
A134: HG0801r-s9r | B134: 3.0947 | C134: 0.0192 | D134: 1.9895 | E134: 0.0156 | F134: 1.2259 | G134: 0.0124 | H134: 0.1275 | I134: 0.0011 | J134: 0.1732 | K134: 0.026 | L134: 0.09 | M134: 0.17 | N134: 0.15 | O134: 0.27
A135: HG0801r-s10f | B135: 3.0396 | C135: 0.05 | D135: 1.9229 | E135: 0.032 | F135: 1.2171 | G135: 0.024 | H135: 0.1239 | I135: 0.002 | J135: 0.4186 | K135: 0.024 | L135: 0.6 | M135: 6.01 | N135: 60.78 | O135: 57.64
A136: HG0801r-s12f | B136: 3.064 | C136: 0.094 | D136: 1.9615 | E136: 0.062 | F136: 1.2303 | G136: 0.048 | H136: 0.1248 | I136: 0.0038 | J136: 0.2837 | K136: 0.0106 | L136: 0.47 | M136: 0.55 | N136: 1.42 | O136: 1.64
A137: HG0802-1-s1i | B137: 3.111 | C137: 0.06 | D137: 2.0131 | E137: 0.048 | F137: 1.255 | G137: 0.024 | H137: 0.1262 | I137: 0.002 | J137: 0.2572 | K137: 0.0126 | L137: 0.27 | M137: 0.29 | N137: 0.68 | O137: 0.73
A138: HG0803-s3r-f | B138: 3.1194 | C138: 0.054 | D138: 2.0117 | E138: 0.04 | F138: 1.249 | G138: 0.04 | H138: 0.1291 | I138: 0.0032 | J138: 0.6884 | K138: 0.074 | L138: -0.14 | M138: 0.45 | N138: 0.22 | O138: 0.72
A139: HG0804-s1r-e | B139: 3.0312 | C139: 0.0168 | D139: 1.9684 | E139: 0.015 | F139: 1.2106 | G139: 0.0084 | H139: 0.1208 | I139: 0.0013 | J139: 0.548 | K139: 0.056 | L139: 1.03 | M139: 0.49 | N139: -3.53 | O139: 0.64
A140: HG0804-s2e-f | B140: 3.1069 | C140: 0.086 | D140: 1.9972 | E140: 0.06 | F140: 1.255 | G140: 0.042 | H140: 0.1267 | I140: 0.0038 | J140: 0.4354 | K140: 0.015 | L140: 0.2 | M140: 0.59 | N140: -6.14 | O140: 16.78
A141: HG0804-s3r-e | B141: 3.0941 | C141: 0.0184 | D141: 1.9979 | E141: 0.0142 | F141: 1.2315 | G141: 0.0106 | H141: 0.1227 | I141: 0.0011 | J141: 0.3995 | K141: 0.022 | L141: 0.76 | M141: 0.8 | N141: 13.37 | O141: 2.83
A142: HG0804-s4e-f | B142: 3.0924 | C142: 0.0172 | D142: 1.9927 | E142: 0.0122 | F142: 1.2201 | G142: 0.0112 | H142: 0.1214 | I142: 0.0015 | J142: 0.3356 | K142: 0.0046 | L142: 0.95 | M142: 0.22 | N142: 4.53 | O142: 1.05
A143: HG0804-s6r-e | B143: 3.0923 | C143: 0.028 | D143: 2.0127 | E143: 0.026 | F143: 1.2337 | G143: 0.022 | H143: 0.123 | I143: 0.0017 | J143: 0.4942 | K143: 0.026 | L143: 0.73 | M143: 0.35 | N143: -4.33 | O143: 1.45
A144: HG0804r-s7r-f | B144: 3.0318 | C144: 0.052 | D144: 1.9565 | E144: 0.036 | F144: 1.1993 | G144: 0.026 | H144: 0.1216 | I144: 0.002 | J144: 0.5954 | K144: 0.024 | L144: 0.92 | M144: 0.31 | N144: -2.27 | O144: 0.7
A145: HG0805-s2e-f | B145: 3.0684 | C145: 0.024 | D145: 1.9775 | E145: 0.015 | F145: 1.2282 | G145: 0.0096 | H145: 0.1276 | I145: 0.0016 | J145: 0.5067 | K145: 0.0098 | L145: 0.07 | M145: 0.24 | N145: -0.34 | O145: 1.12
A146: HG0805-s3r | B146: 3.0461 | C146: 0.056 | D146: 1.9785 | E146: 0.032 | F146: 1.2031 | G146: 0.028 | H146: 0.129 | I146: 0.0022 | J146: 0.2256 | K146: 0.006 | L146: -0.13 | M146: 0.3 | N146: -0.28 | O146: 0.68
A147: HG0805r-s5f | B147: 3.0924 | C147: 0.002 | D147: 1.9853 | E147: 0.0013 | F147: 1.2182 | G147: 0.0011 | H147: 0.1065 | I147: 0.0001 | J147: 0.0068 | K147: 0.0007 | L147: 3 | M147: 0.02 | N147: 3.05 | O147: 0.02
A148: HG0808-s1f-2i | B148: 3.0595 | C148: 0.05 | D148: 1.9575 | E148: 0.038 | F148: 1.1931 | G148: 0.032 | H148: 0.1225 | I148: 0.0024 | J148: 0.4242 | K148: 0.0138 | L148: 0.79 | M148: 3.41 | N148: - | O148: -
A149: HG0809-s1f | B149: 3.0633 | C149: 0.052 | D149: 1.963 | E149: 0.04 | F149: 1.196 | G149: 0.024 | H149: 0.1219 | I149: 0.0024 | J149: 0.3682 | K149: 0.0118 | L149: 0.89 | M149: 0.39 | N149: 6.71 | O149: 2.6
A150: HG0812-s1e-r | B150: 3.041 | C150: 0.076 | D150: 1.9363 | E150: 0.05 | F150: 1.2108 | G150: 0.034 | H150: 0.1212 | I150: 0.0024 | J150: 0.4558 | K150: 0.0136 | L150: 0.98 | M150: 0.51 | N150: -13.24 | O150: 4.7
A151: Horgo | L151: TRD(Ga) | M151: 2se | N151: TMA(Ga)
A152: HG0812-s2e-r | B152: 3.0675 | C152: 0.038 | D152: 1.9773 | E152: 0.026 | F152: 1.2179 | G152: 0.0142 | H152: 0.1232 | I152: 0.0014 | J152: 0.2638 | K152: 0.0098 | L152: 0.7 | M152: 0.2 | N152: 1.84 | O152: 0.51
A153: HG0815-s2eol-opx | B153: 3.0778 | C153: 0.03 | D153: 1.9936 | E153: 0.0168 | F153: 1.2217 | G153: 0.0164 | H153: 0.1328 | I153: 0.0018 | J153: 0.5022 | K153: 0.04 | L153: -0.66 | M153: 0.41 | N153: 3.34 | O153: 1.27
A154: HG0815-s3e | B154: 3.0516 | C154: 0.032 | D154: 1.9723 | E154: 0.026 | F154: 1.2088 | G154: 0.0128 | H154: 0.1244 | I154: 0.0017 | J154: 0.4082 | K154: 0.0046 | L154: 0.53 | M154: 0.31 | N154: 15.18 | O154: 7.35
A155: HG0815-s4r-e | B155: 3.1159 | C155: 0.024 | D155: 1.9982 | E155: 0.0172 | F155: 1.2266 | G155: 0.0126 | H155: 0.124 | I155: 0.001 | J155: 0.5237 | K155: 0.0054 | L155: 0.58 | M155: 0.15 | N155: -2.43 | O155: 0.6
A156: HG0815-s5i | B156: 3.0515 | C156: 0.0126 | D156: 1.9625 | E156: 0.0152 | F156: 1.2135 | G156: 0.0094 | H156: 0.1233 | I156: 0.001 | J156: 0.1823 | K156: 0.03 | L156: 0.69 | M156: 0.16 | N156: 1.2 | O156: 0.24
A157: HG0815-s5-1i | B157: 3.0595 | C157: 0.046 | D157: 1.9882 | E157: 0.042 | F157: 1.218 | G157: 0.036 | H157: 0.124 | I157: 0.0022 | J157: 0.1379 | K157: 0.0094 | L157: 0.58 | M157: 0.31 | N157: 0.86 | O157: 0.46
A158: HG0815-s6f | B158: 3.0103 | C158: 0.06 | D158: 1.9712 | E158: 0.036 | F158: 1.2267 | G158: 0.036 | H158: 0.1216 | I158: 0.0024 | J158: 0.2531 | K158: 0.0134 | L158: 0.93 | M158: 0.35 | N158: 2.29 | O158: 0.84
A159: HG0815-s7f-i | B159: 3.0648 | C159: 0.062 | D159: 1.9988 | E159: 0.046 | F159: 1.2318 | G159: 0.034 | H159: 0.1278 | I159: 0.0024 | J159: 0.5008 | K159: 0.034 | L159: 0.05 | M159: 0.37 | N159: -0.26 | O159: 1.81
A160: HG0815r-s9 | B160: 3.0895 | C160: 0.022 | D160: 1.9955 | E160: 0.0188 | F160: 1.2295 | G160: 0.0128 | H160: 0.1239 | I160: 0.0016 | J160: 0.4294 | K160: 0.0114 | L160: 0.61 | M160: 0.85 | N160: -42.2 | O160: 17.83
A161: HG0815r-s11-4i | B161: 3.0663 | C161: 0.072 | D161: 2.014 | E161: 0.042 | F161: 1.2422 | G161: 0.032 | H161: 0.1302 | I161: 0.0024 | J161: 0.2409 | K161: 0.024 | L161: -0.29 | M161: 0.34 | N161: -0.7 | O161: 0.8
A162: HG0815r-s13i | B162: 3.0931 | C162: 0.056 | D162: 2.005 | E162: 0.042 | F162: 1.2608 | G162: 0.038 | H162: 0.1277 | I162: 0.0028 | J162: 0.3016 | K162: 0.022 | L162: 0.06 | M162: 0.43 | N162: 0.2 | O162: 1.41
A163: HG0819-s1i | B163: 3.0659 | C163: 0.028 | D163: 1.9621 | E163: 0.0148 | F163: 1.2055 | G163: 0.011 | H163: 0.1195 | I163: 0.0015 | J163: 0.4201 | K163: 0.0056 | L163: 1.22 | M163: 8.02 | N163: 144.55 | O163: 262.28
A164: HG0819r-s2f | B164: 3.022 | C164: 0.028 | D164: 1.9526 | E164: 0.022 | F164: 1.2088 | G164: 0.0194 | H164: 0.1228 | I164: 0.0018 | J164: 0.438 | K164: 0.0156 | L164: 0.75 | M164: 0.73 | N164: -22.27 | O164: 7.9
A165: HG0819r-s2-1f | B165: 3.0619 | C165: 0.032 | D165: 1.9503 | E165: 0.024 | F165: 1.2066 | G165: 0.0198 | H165: 0.1225 | I165: 0.0016 | J165: 0.4286 | K165: 0.0184 | L165: 0.8 | M165: 1.93 | N165: -79.14 | O165: 28.78
A166: HG0819r-s3f | B166: 3.0826 | C166: 0.078 | D166: 1.969 | E166: 0.05 | F166: 1.2298 | G166: 0.032 | H166: 0.1271 | I166: 0.0034 | J166: 0.6764 | K166: 0.018 | L166: 0.15 | M166: 0.5 | N166: -0.24 | O166: 0.8
A167: HG0822-s1f | B167: 3.0874 | C167: 0.052 | D167: 1.9858 | E167: 0.022 | F167: 1.2515 | G167: 0.03 | H167: 0.1247 | I167: 0.0028 | J167: 0.5172 | K167: 0.028 | L167: 0.49 | M167: 0.43 | N167: -2.16 | O167: 1.78
A168: HG0822r-s2e-r | B168: 3.0698 | C168: 0.036 | D168: 1.9818 | E168: 0.024 | F168: 1.2215 | G168: 0.024 | H168: 0.1223 | I168: 0.002 | J168: 0.353 | K168: 0.005 | L168: 0.82 | M168: 0.29 | N168: 4.89 | O168: 1.7
A169: HG0822r-s3e | B169: 3.033 | C169: 0.03 | D169: 1.9584 | E169: 0.028 | F169: 1.2067 | G169: 0.038 | H169: 0.1177 | I169: 0.0022 | J169: 0.2542 | K169: 0.003 | L169: 1.46 | M169: 0.31 | N169: 3.62 | O169: 0.77
A170: HG0833-s1e | B170: 3.0933 | C170: 0.002 | D170: 1.9798 | E170: 0.0013 | F170: 1.2103 | G170: 0.0009 | H170: 0.1235 | I170: 0.0002 | J170: 0.0059 | K170: 0.0005 | L170: 0.65 | M170: 0.03 | N170: 0.66 | O170: 0.03
A171: SMR | L171: TRD(Ga) | M171: 2se | N171: TMA(Ga)
A172: SMR0806-s2f | B172: 3.0856 | C172: 0.062 | D172: 1.9722 | E172: 0.042 | F172: 1.2393 | G172: 0.03 | H172: 0.1238 | I172: 0.002 | J172: 0.4439 | K172: 0.0096 | L172: 0.61 | M172: 0.38 | N172: -12.5 | O172: 5.85
A173: SMR0806-s3-1r | B173: 3.0697 | C173: 0.028 | D173: 1.9675 | E173: 0.022 | F173: 1.2199 | G173: 0.02 | H173: 0.1275 | I173: 0.0014 | J173: 0.2369 | K173: 0.0176 | L173: 0.09 | M173: 0.21 | N173: 0.2 | O173: 0.45
A174: SMR0806-s3-2r | B174: 3.0971 | C174: 0.022 | D174: 1.9941 | E174: 0.0164 | F174: 1.206 | G174: 0.0102 | H174: 0.1259 | I174: 0.0012 | J174: 0.2225 | K174: 0.0156 | L174: 0.32 | M174: 0.17 | N174: 0.67 | O174: 0.35
A175: SMR0806-s3-4r | B175: 3.0351 | C175: 0.036 | D175: 1.9564 | E175: 0.024 | F175: 1.2053 | G175: 0.02 | H175: 0.1234 | I175: 0.0016 | J175: 0.1753 | K175: 0.0106 | L175: 0.68 | M175: 0.23 | N175: 1.15 | O175: 0.39
A176: SMR0806-s4e | B176: 3.082 | C176: 0.0172 | D176: 1.9852 | E176: 0.0142 | F176: 1.2269 | G176: 0.0084 | H176: 0.1235 | I176: 0.0013 | J176: 0.5636 | K176: 0.0048 | L176: 0.66 | M176: 0.19 | N176: -1.97 | O176: 0.57
A177: Tsagan | L177: TRD(Ga) | M177: 2se | N177: TMA(Ga)
A178: TS0807-s1 | B178: 3.0235 | C178: 0.076 | D178: 1.9562 | E178: 0.052 | F178: 1.1934 | G178: 0.03 | H178: 0.1362 | I178: 0.0036 | J178: 0.6197 | K178: 0.026 | L178: -1.16 | M178: 0.54 | N178: 2.4 | O178: 1.07
A179: TS0807-s2 | B179: 3.0695 | C179: 0.015 | D179: 1.971 | E179: 0.0118 | F179: 1.2235 | G179: 0.0088 | H179: 0.1312 | I179: 0.0011 | J179: 0.4458 | K179: 0.0062 | L179: -0.44 | M179: 0.19 | N179: 7.09 | O179: 2.48
A180: TS0807-s3 | B180: 3.0843 | C180: 0.0026 | D180: 1.9847 | E180: 0.0016 | F180: 1.2182 | G180: 0.0012 | H180: 0.1245 | I180: 0.0002 | J180: 0.0895 | K180: 0.0046 | L180: 0.51 | M180: 0.04 | N180: 0.64 | O180: 0.04
A181: TS0807-s4 | B181: 3.0606 | C181: 0.0098 | D181: 1.9822 | E181: 0.0064 | F181: 1.2187 | G181: 0.006 | H181: 0.1356 | I181: 0.0011 | J181: 0.5494 | K181: 0.054 | L181: -1.08 | M181: 0.48 | N181: 3.41 | O181: 0.49
A182: TS0807-s6 | B182: 3.0597 | C182: 0.034 | D182: 1.9719 | E182: 0.026 | F182: 1.2149 | G182: 0.013 | H182: 0.1401 | I182: 0.0022 | J182: 0.6576 | K182: 0.042 | L182: -1.72 | M182: 0.44 | N182: 2.96 | O182: 0.55
A183: TS0807-s6-1 | B183: 3.0607 | C183: 0.0098 | D183: 1.9741 | E183: 0.0054 | F183: 1.2128 | G183: 0.0046 | H183: 0.1323 | I183: 0.0009 | J183: 0.4172 | K183: 0.032 | L183: -0.59 | M183: 4.96
A184: TS0807-s7 | B184: 3.0459 | C184: 0.0104 | D184: 1.9713 | E184: 0.0084 | F184: 1.2051 | G184: 0.005 | H184: 0.1372 | I184: 0.0009 | J184: 0.642 | K184: 0.03 | L184: -1.31 | M184: 0.22 | N184: 2.43 | O184: 0.25
A185: TS0807-s8 | B185: 3.0802 | C185: 0.0096 | D185: 1.9811 | E185: 0.0082 | F185: 1.2187 | G185: 0.0046 | H185: 0.1495 | I185: 0.004 | J185: 1.1397 | K185: 0.182 | L185: -3.13 | M185: 0.98 | N185: 1.76 | O185: 0.33
A186: TS0807-s9 | B186: 3.0917 | C186: 0.009 | D186: 1.989 | E186: 0.0064 | F186: 1.2192 | G186: 0.005 | H186: 0.1345 | I186: 0.001 | J186: 0.5433 | K186: 0.024 | L186: -0.92 | M186: 0.23 | N186: 3.07 | O186: 0.49
A187: TS0807-r-s1 | B187: 3.0722 | C187: 0.046 | D187: 2.0107 | E187: 0.028 | F187: 1.2202 | G187: 0.024 | H187: 0.145 | I187: 0.0028 | J187: 0.9866 | K187: 0.0136 | L187: -2.45 | M187: 0.41 | N187: 1.76 | O187: 0.29
A188: TS0807-r-s4e-r | B188: 3.0544 | C188: 0.0092 | D188: 1.968 | E188: 0.0104 | F188: 1.2071 | G188: 0.0054 | H188: 0.1402 | I188: 0.0011 | J188: 0.7639 | K188: 0.076 | L188: -1.75 | M188: 0.42 | N188: 2.09 | O188: 0.19
A189: TS0807-r-s5 | B189: 3.0249 | C189: 0.04 | D189: 1.9719 | E189: 0.024 | F189: 1.2291 | G189: 0.018 | H189: 0.1352 | I189: 0.002 | J189: 0.4886 | K189: 0.022 | L189: -1.01 | M189: 0.43 | N189: 5.98 | O189: 1.67
A190: TS0807-r-s6 | B190: 3.0641 | C190: 0.0146 | D190: 1.9776 | E190: 0.0114 | F190: 1.2223 | G190: 0.0082 | H190: 0.139 | I190: 0.001 | J190: 0.6668 | K190: 0.0114 | L190: -1.56 | M190: 0.16 | N190: 2.6 | O190: 0.24
A191: TS0807-r-s7e-r | B191: 3.087 | C191: 0.007 | D191: 1.9868 | E191: 0.0034 | F191: 1.2188 | G191: 0.0026 | H191: 0.127 | I191: 0.0008 | J191: 0.1827 | K191: 0.002 | L191: 0.17 | M191: 0.11 | N191: 0.29 | O191: 0.19
A192: TS0807-r-s9e-r | B192: 3.0887 | C192: 0.0038 | D192: 1.9883 | E192: 0.0019 | F192: 1.2235 | G192: 0.0019 | H192: 0.1281 | I192: 0.001 | J192: 0.2229 | K192: 0.022 | L192: 0 | M192: 0.05 | N192: -0.01 | O192: 0.3
A193: TS0807-r-s10er | B193: 3.0709 | C193: 0.0128 | D193: 1.9907 | E193: 0.0098 | F193: 1.2188 | G193: 0.0074 | H193: 0.1365 | I193: 0.0013 | J193: 0.5618 | K193: 0.0084 | L193: -1.2 | M193: 0.2 | N193: 3.47 | O193: 0.54
A194: TS0809-s1 | B194: 3.0256 | C194: 0.048 | D194: 1.9617 | E194: 0.032 | F194: 1.2348 | G194: 0.03 | H194: 0.153 | I194: 0.0034 | J194: 1.1373 | K194: 0.042 | L194: -3.66 | M194: 0.54 | N194: 2.05 | O194: 0.28
A195: TS0809-s2 | B195: 3.0796 | C195: 0.036 | D195: 1.9947 | E195: 0.026 | F195: 1.226 | G195: 0.0136 | H195: 0.136 | I195: 0.0024 | J195: 0.3138 | K195: 0.06 | L195: -1.13 | M195: 0.72 | N195: -4.57 | O195: 1.4
A196: TS0809-s3 | B196: 3.0464 | C196: 0.052 | D196: 1.9501 | E196: 0.04 | F196: 1.207 | G196: 0.028 | H196: 0.1287 | I196: 0.003 | J196: 0.4455 | K196: 0.0086 | L196: -0.08 | M196: 0.41 | N196: 1.47 | O196: 7.27
A197: TS0809-s4 | B197: 3.0887 | C197: 0.026 | D197: 2.0043 | E197: 0.02 | F197: 1.2251 | G197: 0.0146 | H197: 0.1292 | I197: 0.0014 | J197: 0.2906 | K197: 0.0056 | L197: -0.15 | M197: 0.19 | N197: -0.51 | O197: 0.65
A198: TS0809-r-s1 | B198: 3.0778 | C198: 0.01 | D198: 1.9898 | E198: 0.0076 | F198: 1.225 | G198: 0.0044 | H198: 0.1274 | I198: 0.0005 | J198: 0.3158 | K198: 0.0106 | L198: 0.1 | M198: 0.08 | N198: 0.39 | O198: 0.3
A199: TS-0812-r-s1 | B199: 2.9504 | C199: 0.026 | D199: 1.919 | E199: 0.0192 | F199: 1.2012 | G199: 0.0108 | H199: 0.1366 | I199: 0.0012 | J199: 0.6306 | K199: 0.042 | L199: -1.21 | M199: 0.3 | N199: 2.38 | O199: 0.34
K200: Average | L200: =AVERAGE(L1:L199) -> 0.4786243386 | M200: =AVERAGE(M1:M199) -> 0.6465079365 | N200: =AVERAGE(N1:N199) -> 2.280106952 | O200: =AVERAGE(O1:O199) -> 12.78320856
... 2 more rows

Sheet F08
B2: Million Years | C2: Nd | D2: Nd | E2: Hf | F2: Hf
A3: CKH39 | C3: -194 | D3: -1051 | E3: 7 | F3: -18
A4: CKH64 | C4: 209 | D4: -514 | E4: 14 | F4: -5
A5: CKH63 | C5: -659 | D5: -3297 | E5: 1706 | F5: 2478
A6: CKH58 | C6: 1137 | D6: 1649 | E6: 1152 | F6: 1719
B21: CKH63
B22: Sample | C22: 206Pb/238U | D22: 207Pb/235U | E22: 207Pb/206Pb | F22: Hf | G22: Hf | H22: Nd | I22: Nd
B23: 63a | C23: 426 | D23: 611 | E23: 1371 | F23: 1706 | G23: 2478 | H23: -659 | I23: -3297
B24: 63d | C24: 317 | D24: 490 | E24: 1410 | F24: 1706 | G24: 2478 | H24: -659 | I24: -3297
B25: 63e | C25: 98 | D25: 161 | E25: 1238 | F25: 1706 | G25: 2478 | H25: -659 | I25: -3297
B26: 63j | C26: 430 | D26: 622 | E26: 1402 | F26: 1706 | G26: 2478 | H26: -659 | I26: -3297
B27: 63g | C27: 136 | D27: 242 | E27: 1457 | F27: 1706 | G27: 2478 | H27: -659 | I27: -3297
B28: 63b | C28: 319 | D28: 483 | E28: 1362 | F28: 1706 | G28: 2478 | H28: -659 | I28: -3297
B29: 63c | C29: 425 | D29: 624 | E29: 1429 | F29: 1706 | G29: 2478 | H29: -659 | I29: -3297

Sheet F09
A1: Table 5
A2: Sample | B2: 87Rb/86Sr | C2: Error
A3: M42 | B3: -14.7 | C3: 22
A4: BM42a | B4: -13.3 | C4: 1
A5: BK21 | B5: -11 | C5: 0.7
A6: BK21-A | B6: 4.79 | C6: 0.6
A7: BK21-A | B7: 12 | C7: 0.3
A8: BK21-A | B8: 31.4 | C8: 0.1
A9: BK21-A | B9: 32.2 | C9: 0.2
A10: BK21-A | B10: 33.9 | C10: 0.3
A11: BK21-A | B11: 44 | C11: 0.3
A12: BK18 | B12: 65.2 | C12: 2
A13: BK18 | B13: 79 | C13: 2
A14: BK18 | B14: 80 | C14: 2
A15: BK18 | B15: 103 | C15: 2
A16: BK18 | B16: 201 | C16: 0.05
A19: Table 4 | G19: Age | H19: Age
A20: Sample | B20: 238U/204Pb | C20: 206Pb/238U | D20: 207Pb/204Pb | E20: 206Pb/204Pb | F20: 207Pb/206Pb | G20: 206Pb/238U | H20: 207Pb/206Pb
A21: BK6 | B21: 18.6 | C21: =(E21/B21) -> 1.007741935 | D21: 15.646 | E21: 18.744 | F21: =(D21/E21) -> 0.8347204439 | G21: =[1]!AgePb6U8(C21) -> 4493.219503 | H21: =[1]!AgePb76(F21) -> 4982.164239
A22: BK19 | B22: 4.3 | C22: =(E22/B22) -> 4.358604651 | D22: 15.674 | E22: 18.742 | F22: =(D22/E22) -> 0.8363034895 | G22: =[1]!AgePb6U8(C22) -> 10821.61879 | H22: =[1]!AgePb76(F22) -> 4984.855348
A23: BK18 | B23: 5.32 | C23: 3.522556391 | D23: 15.666 | E23: 18.74 | F23: 0.8359658485 | G23: =[1]!AgePb6U8(C23) -> 9728.138 | H23: =[1]!AgePb76(F23) -> 4984.281828
A24: BM42a | B24: 4 | C24: 4.6965 | D24: 15.661 | E24: 18.786 | F24: 0.8336527201 | G24: =[1]!AgePb6U8(C24) -> 11215.80629 | H24: =[1]!AgePb76(F24) -> 4980.34609
A25: BM42c | B25: 4.18 | C25: 4.491866029 | D25: 15.669 | E25: 18.776 | F25: 0.8345227951 | G25: =[1]!AgePb6U8(C25) -> 10979.9716 | H25: =[1]!AgePb76(F25) -> 4981.827864
A26: BM42b | B26: 3.68 | C26: 5.102445652 | D26: 15.669 | E26: 18.777 | F26: 0.8344783512 | G26: =[1]!AgePb6U8(C26) -> 11659.5624 | H26: =[1]!AgePb76(F26) -> 4981.752214
A27: BK21 | B27: 9.29 | C27: 2.02378902 | D27: 15.676 | E27: 18.801 | F27: 0.8337854369 | G27: =[1]!AgePb6U8(C27) -> 7133.026189 | H27: =[1]!AgePb76(F27) -> 4980.572219
A28: BM42 | B28: 4.88 | C28: 3.841803279 | D28: 15.652 | E28: 18.748 | F28: 0.8348623853 | G28: =[1]!AgePb6U8(C28) -> 10167.84677 | H28: =[1]!AgePb76(F28) -> 4982.405755
A29: BK28 | B29: 4.65 | C29: 3.892688172 | D29: 15.749 | E29: 18.101 | F29: 0.8700624275 | G29: =[1]!AgePb6U8(C29) -> 10235.24178 | H29: =[1]!AgePb76(F29) -> 5040.990372
A30: BK29 | B30: 7.09 | C30: 2.550070522 | D30: 15.623 | E30: 18.08 | F30: 0.8641039823 | G30: =[1]!AgePb6U8(C30) -> 8167.397058 | H30: =[1]!AgePb76(F30) -> 5031.252467
A33: Table 2
A34: 238U/204Pb | B34: 26.1 | C34: 25.6 | D34: 23 | E34: 24.5 | F34: 16.6 | G34: 15.9 | H34: 14.8 | I34: 14.2 | J34: 13.6 | K34: 14.6 | L34: 7.85
A35: 206Pb/204Pb | B35: 39.098 | C35: 39.086 | D35: 39.102 | E35: 39.173 | F35: 39.076 | G35: 39.147 | H35: 38.999 | I35: 39.058 | J35: 39.054 | K35: 38.873 | L35: 38.888
A36: 207Pb/204Pb | B36: 15.687 | C36: 15.682 | D36: 15.683 | E36: 15.707 | F36: 15.678 | G36: 15.699 | H36: 15.708 | I36: 15.699 | J36: 15.702 | K36: 15.664 | L36: 15.664
A37: 206Pb/204Pb | B37: 19.52 | C37: 19.512 | D37: 19.434 | E37: 19.461 | F37: 19.399 | G37: 19.419 | H37: 19.573 | I37: 19.373 | J37: 19.351 | K37: 19.06 | L37: 19.056
A38: 206Pb/238U | B38: =[1]!AgePb6U8(B35/B34) -> 5901.650149 | C38: =[1]!AgePb6U8(C35/C34) -> 5975.519377 | D38: =[1]!AgePb6U8(D35/D34) -> 6403.119927 | E38: =[1]!AgePb6U8(E35/E34) -> 6156.889562 | F38: =[1]!AgePb6U8(F35/F34) -> 7801.105425 | G38: =[1]!AgePb6U8(G35/G34) -> 8005.597141 | H38: =[1]!AgePb6U8(H35/H34) -> 8319.920702 | I38: =[1]!AgePb6U8(I35/I34) -> 8521.553995 | J38: =[1]!AgePb6U8(J35/J34) -> 8726.333063 | K38: =[1]!AgePb6U8(K35/K34) -> 8368.446897 | L38: =[1]!AgePb6U8(L35/L34) -> 11500.68659 | M38: Age
A39: 207Pb/206Pb | B39: =[1]!AgePb76(B36/B35) -> 3913.666197 | C39: =[1]!AgePb76(C36/C35) -> 3913.648434 | D39: =[1]!AgePb76(D36/D35) -> 3913.129095 | E39: =[1]!AgePb76(E36/E35) -> 3912.700739 | F39: =[1]!AgePb76(F36/F35) -> 3913.649601 | G39: =[1]!AgePb76(G36/G35) -> 3912.93296 | H39: =[1]!AgePb76(H36/H35) -> 3919.48681 | I39: =[1]!AgePb76(I36/I35) -> 3916.353921 | J39: =[1]!AgePb76(J36/J35) -> 3916.794992 | K39: =[1]!AgePb76(K36/K35) -> 3920.134445 | L39: =[1]!AgePb76(L36/L35) -> 3919.554776 | M39: Age
D41: Table 2 | E41: Table 2 | F41: Table 4 | G41: Table 4 | H41: Table 5
D42: 206Pb/238U | E42: 207Pb/206Pb | F42: 206Pb/238U | G42: 207Pb/206Pb | H42: 87Rb/86Sr
D43: 5902 | E43: 3913 | F43: 4493.219503 | G43: 4982.164239 | H43: -14.7
D44: 5976 | E44: 3913 | F44: 7133.026189 | G44: 4984.855348 | H44: -13.3
D45: 6403 | E45: 3913 | F45: 8167.397058 | G45: 4984.281828 | H45: -11
D46: 6157 | E46: 3914 | F46: 9728.138 | G46: 4980.34609 | H46: 4.79
D47: 7801 | E47: 3914 | F47: 10167.84677 | G47: 4981.827864 | H47: 12
D48: 8006 | E48: 3914 | F48: 10235.24178 | G48: 4981.752214 | H48: 31.4
D49: 8320 | E49: 3916 | F49: 10821.61879 | G49: 4980.572219 | H49: 32.2
D50: 8522 | E50: 3917 | F50: 10979.9716 | G50: 4982.405755 | H50: 33.9
D51: 8726 | E51: 3919 | F51: 11215.80629 | G51: 5040.990372 | H51: 44
D52: 8368 | E52: 3920 | F52: 11659.5624 | G52: 5031.252467 | H52: 65.2
D53: 11501 | E53: 3920 | H53: 79

Sheet F11
M1: Nd/Sm | P1: 147Sm/144Nd | Q1: 87Rb/86Sr
A2: Sample | B2: 87Rb/86Sr | C2: 87Sr/86Sr | E2: (87Sr/86Sr)i | H2: 147Sm/144Nd | I2: 143Nd/144Nd | K2: (143Nd/144Nd)i | M2: TMA (Ma) | P2: 2.18788563 | Q2: 1.50352979
A3: AT24 | B3: 0.011 | C3: 0.703271 | D3: 13 | E3: 0.703271 | F3: 0.024 | G3: 0.059 | H3: 0.243483 | I3: 0.512958 | J3: 37 | K3: 0.512957 | L3: 6.24 | M3: -2192 | P3: 1.908706821 | Q3: 1.494625459
A4: AT24 | B4: 0.004 | C4: 0.703136 | D4: 9 | E4: 0.703136 | F4: 1.31 | G4: 5 | H4: 0.153728 | I4: 0.512928 | J4: 11 | K4: 0.512928 | L4: 5.66 | M4: -1115 | P4: 1.80701749 | Q4: 1.457181324
A5: AT24 | B5: 0.051 | C5: 0.704392 | D5: 29 | E5: 0.704392 | F5: 0.744 | G5: 0.707 | H5: 0.617561 | I5: 0.512962 | J5: 16 | K5: 0.51296 | L5: 6.29 | M5: -573 | P5: 1.643655646 | Q5: 0.4002988459
A6: AT31 | B6: 0.002 | C6: 0.703625 | D6: 9 | E6: 0.703625 | F6: 1.862 | G6: 7.26 | H6: 0.150509 | I6: 0.512801 | J6: 13 | K6: 0.5128 | L6: 3.18 | M6: -59 | P6: 1.622545033
A7: AT31 | B7: 0.002 | C7: 0.703607 | D7: 11 | E7: 0.703607 | F7: 1.78 | G7: 6.909 | H7: 0.151169 | I7: 0.5128 | J7: 10 | K7: 0.5128 | L7: 3.17 | M7: 181 | P7: 1.12863356
A8: AT37 | B8: 2.309 | C8: 0.70391 | D8: 18 | E8: 0.703861 | F8: 0.059 | G8: 0.188 | H8: 0.188574 | I8: 0.51277 | J8: 43 | K8: 0.512768 | L8: 2.58 | M8: 416 | P8: 1.06981147
A9: AT37 | B9: 0.006 | C9: 0.703482 | D9: 9 | E9: 0.703482 | F9: 2.031 | G9: 8.589 | H9: 0.143002 | I9: 0.512783 | J9: 12 | K9: 0.512782 | L9: 2.83 | M9: 639 | P9: 1.016452216
A10: AT37 | B10: 3.888 | C10: 0.704939 | D10: 22 | E10: 0.704856 | F10: 4.573 | G10: 9.903 | H10: 0.279228 | I10: 0.5123 | J10: 17 | K10: 0.512297 | L10: -6.61 | M10: 664 | P10: 0.6283206656
A11: AT41 | B11: 26.04 | C11: 0.703979 | D11: 23 | E11: 0.703831 | F11: 0.028 | G11: 0.127 | H11: 0.135549 | I11: 0.512718 | J11: 96 | K11: 0.512717 | L11: 1.57 | M11: 669 | P11: 0.4954505451
A12: AT41 | B12: 0.002 | C12: 0.703522 | D12: 10 | E12: 0.703522 | F12: 7.685 | G12: 33.23 | H12: 0.139847 | I12: 0.512757 | J12: 10 | K12: 0.512755 | L12: 2.32 | M12: 676
A13: AT57 | B13: 0.012 | C13: 0.703584 | D13: 11 | E13: 0.703584 | F13: 1.788 | G13: 7.06 | H13: 0.148548 | I13: 0.512778 | J13: 34 | K13: 0.512778 | L13: 2.73 | M13: 698
A14: AT65 | B14: 0 | C14: 0.704797 | D14: 11 | E14: 0.704797 | F14: 4.143 | G14: 15.63 | H14: 0.160302 | I14: 0.5124 | J14: 8 | K14: 0.512398 | L14: -4.64 | M14: 698
A15: AT65 | B15: 0.003 | C15: 0.704865 | D15: 13 | E15: 0.704865 | F15: 3.524 | G15: 12.59 | H15: 0.169323 | I15: 0.512416 | J15: 11 | K15: 0.512414 | L15: -4.33 | M15: 1564
A16: AT65 | B16: 0.145 | C16: 0.704569 | D16: 18 | E16: 0.704566 | F16: 0.034 | G16: 0.06 | H16: 0.34267 | I16: 0.512662 | J16: 25 | K16: 0.512662 | L16: 0.47 | M16: 1760
A17: AT69 | B17: 0.002 | C17: 0.70302 | D17: 24 | E17: 0.70302 | F17: 1.217 | G17: 4.379 | H17: 0.163115 | I17: 0.513044 | J17: 9 | K17: 0.513044 | L17: 7.93 | M17: 2013
A20: Rubidium | B20: Table 2 | J20: Table 2
B21: Initial | C21: Today | D21: Today | E21: The Ratio | F21: Half | G21: Decay | H21: 2.303/Delta | I21: Age | J21: Age | K21: Age
A22: Sample | B22: 87Sr/86Sr | C22: 87Sr/86Sr | D22: 87Rb/86Sr | E22: Plus One | F22: Life | G22: Constant | H22: Constant | I22: Years | J22: Million Years | K22: Billion Years
A23: AT24 | B23: 0.703271 | C23: 0.703271 | D23: 0.011 | E23: =1+((C23-B23)/D23) -> 1 | F23: 48800000000 | G23: =(0.693/F23) -> 1.420081967e-11 | H23: =(2.303/G23) -> 1.621737374e+11 | I23: =(LOG(E23))*(H23) -> 0 | J23: =(I23/1000000) -> 0 | K23: =(J23/1000) -> 0
A24: AT24 | B24: 0.703136 | C24: 0.703136 | D24: 0.004 | E24: =1+((C24-B24)/D24) -> 1 | F24: 48800000000 | G24: =(0.693/F24) -> 1.420081967e-11 | H24: =(2.303/G24) -> 1.621737374e+11 | I24: =(LOG(E24))*(H24) -> 0 | J24: =(I24/1000000) -> 0 | K24: =(J24/1000) -> 0
A25: AT24 | B25: 0.704392 | C25: 0.704392 | D25: 0.051 | E25: =1+((C25-B25)/D25) -> 1 | F25: 48800000000 | G25: =(0.693/F25) -> 1.420081967e-11 | H25: =(2.303/G25) -> 1.621737374e+11 | I25: =(LOG(E25))*(H25) -> 0 | J25: =(I25/1000000) -> 0 | K25: =(J25/1000) -> 0
A26: AT31 | B26: 0.703625 | C26: 0.703625 | D26: 0.002 | E26: =1+((C26-B26)/D26) -> 1 | F26: 48800000000 | G26: =(0.693/F26) -> 1.420081967e-11 | H26: =(2.303/G26) -> 1.621737374e+11 | I26: =(LOG(E26))*(H26) -> 0 | J26: =(I26/1000000) -> 0 | K26: =(J26/1000) -> 0
A27: AT31 | B27: 0.703607 | C27: 0.703607 | D27: 0.002 | E27: =1+((C27-B27)/D27) -> 1 | F27: 48800000000 | G27: =(0.693/F27) -> 1.420081967e-11 | H27: =(2.303/G27) -> 1.621737374e+11 | I27: =(LOG(E27))*(H27) -> 0 | J27: =(I27/1000000) -> 0 | K27: =(J27/1000) -> 0
A28: AT37 | B28: 0.703861 | C28: 0.70391 | D28: 2.309 | E28: 1.000021221 | F28: 48800000000 | G28: 1.420081967e-11 | H28: 1.621737374e+11 | I28: 1494625.459 | J28: 1.494625459 | K28: 0.001494625459
A29: AT37 | B29: 0.703482 | C29: 0.703482 | D29: 0.006 | E29: 1 | F29: 48800000000 | G29: 1.420081967e-11 | H29: 1.621737374e+11 | I29: 0 | J29: 0 | K29: 0
A30: AT37 | B30: 0.704856 | C30: 0.704939 | D30: 3.888 | E30: 1.000021348 | F30: 48800000000 | G30: 1.420081967e-11 | H30: 1.621737374e+11 | I30: 1503529.79 | J30: 1.50352979 | K30: 0.00150352979
A31: AT41 | B31: 0.703831 | C31: 0.703979 | D31: 26.04 | E31: 1.000005684 | F31: 48800000000 | G31: 1.420081967e-11 | H31: 1.621737374e+11 | I31: 400298.8459 | J31: 0.4002988459 | K31: 0.0004002988459
A32: AT41 | B32: 0.703522 | C32: 0.703522 | D32: 0.002 | E32: 1 | F32: 48800000000 | G32: 1.420081967e-11 | H32: 1.621737374e+11 | I32: 0 | J32: 0 | K32: 0
A33: AT57 | B33: 0.703584 | C33: 0.703584 | D33: 0.012 | E33: 1 | F33: 48800000000 | G33: 1.420081967e-11 | H33: 1.621737374e+11 | I33: 0 | J33: 0 | K33: 0
A34: AT65 | B34: 0.704797 | C34: 0.704797 | D34: 0 | E34: 0 | F34: 48800000000 | G34: 1.420081967e-11 | H34: 1.621737374e+11 | I34: 0 | J34: 0 | K34: 0
A35: AT65 | B35: 0.704865 | C35: 0.704865 | D35: 0.003 | E35: 1 | F35: 48800000000 | G35: 1.420081967e-11 | H35: 1.621737374e+11 | I35: 0 | J35: 0 | K35: 0
A36: AT65 | B36: 0.704566 | C36: 0.704569 | D36: 0.145 | E36: 1.00002069 | F36: 48800000000 | G36: 1.420081967e-11 | H36: 1.621737374e+11 | I36: 1457181.324 | J36: 1.457181324 | K36: 0.001457181324
A37: AT69 | B37: 0.70302 | C37: 0.70302 | D37: 0.002 | E37: 1 | F37: 48800000000 | G37: 1.420081967e-11 | H37: 1.621737374e+11 | I37: 0 | J37: 0 | K37: 0
A40: Neodymium | K40: Table 2
A41: Samarium | B41: Initial | C41: Today | D41: Today | E41: The Ratio | F41: Half | G41: Decay | H41: 2.303/Delta | I41: Age | J41: Age | K41: Age
A42: Sample | B42: 143Nd/144Nd | C42: 143Nd/144Nd | D42: 147Sm/144Nd | E42: Plus One | F42: Life | G42: Constant | H42: Constant | I42: Years | J42: Million Years | K42: Billion Years
A43: AT24 | B43: 0.512957 | C43: 0.512958 | D43: 0.243483 | E43: =1+((C43-B43)/D43) -> 1.000004107 | F43: 106000000000 | G43: =(0.693/F43) -> 6.537735849e-12 | H43: =(2.303/G43) -> 3.522626263e+11 | I43: =(LOG(E43))*(H43) -> 628320.6656 | J43: =(I43/1000000) -> 0.6283206656 | K43: =(J43/1000) -> 0.0006283206656
A44: AT24 | B44: 0.512928 | C44: 0.512928 | D44: 0.153728 | E44: =1+((C44-B44)/D44) -> 1 | F44: 106000000000 | G44: =(0.693/F44) -> 6.537735849e-12 | H44: =(2.303/G44) -> 3.522626263e+11 | I44: =(LOG(E44))*(H44) -> 0 | J44: =(I44/1000000) -> 0 | K44: =(J44/1000) -> 0
A45: AT24 | B45: 0.51296 | C45: 0.512962 | D45: 0.617561 | E45: =1+((C45-B45)/D45) -> 1.000003239 | F45: 106000000000 | G45: =(0.693/F45) -> 6.537735849e-12 | H45: =(2.303/G45) -> 3.522626263e+11 | I45: =(LOG(E45))*(H45) -> 495450.5451 | J45: =(I45/1000000) -> 0.4954505451 | K45: =(J45/1000) -> 0.0004954505451
A46: AT31 | B46: 0.5128 | C46: 0.512801 | D46: 0.150509 | E46: =1+((C46-B46)/D46) -> 1.000006644 | F46: 106000000000 | G46: =(0.693/F46) -> 6.537735849e-12 | H46: =(2.303/G46) -> 3.522626263e+11 | I46: =(LOG(E46))*(H46) -> 1016452.216 | J46: =(I46/1000000) -> 1.016452216 | K46: =(J46/1000) -> 0.001016452216
A47: AT31 | B47: 0.5128 | C47: 0.5128 | D47: 0.151169 | E47: =1+((C47-B47)/D47) -> 1 | F47: 106000000000 | G47: =(0.693/F47) -> 6.537735849e-12 | H47: =(2.303/G47) -> 3.522626263e+11 | I47: =(LOG(E47))*(H47) -> 0 | J47: =(I47/1000000) -> 0 | K47: =(J47/1000) -> 0
A48: AT37 | B48: 0.512768 | C48: 0.51277 | D48: 0.188574 | E48: =1+((C48-B48)/D48) -> 1.000010606 | F48: 106000000000 | G48: =(0.693/F48) -> 6.537735849e-12 | H48: =(2.303/G48) -> 3.522626263e+11 | I48: =(LOG(E48))*(H48) -> 1622545.033 | J48: =(I48/1000000) -> 1.622545033 | K48: =(J48/1000) -> 0.001622545033
A49: AT37 | B49: 0.512782 | C49: 0.512783 | D49: 0.143002 | E49: 1.000006993 | F49: 106000000000 | G49: 6.537735849e-12 | H49: 3.522626263e+11 | I49: 1069811.47 | J49: 1.06981147 | K49: 0.00106981147
A50: AT37 | B50: 0.512297 | C50: 0.5123 | D50: 0.279228 | E50: 1.000010744 | F50: 106000000000 | G50: 6.537735849e-12 | H50: 3.522626263e+11 | I50: 1643655.646 | J50: 1.643655646 | K50: 0.001643655646
A51: AT41 | B51: 0.512717 | C51: 0.512718 | D51: 0.135549 | E51: 1.000007377 | F51: 106000000000 | G51: 6.537735849e-12 | H51: 3.522626263e+11 | I51: 1128633.56 | J51: 1.12863356 | K51: 0.00112863356
A52: AT41 | B52: 0.512755 | C52: 0.512757 | D52: 0.139847 | E52: 1.000014301 | F52: 106000000000 | G52: 6.537735849e-12 | H52: 3.522626263e+11 | I52: 2187885.63 | J52: 2.18788563 | K52: 0.00218788563
A53: AT57 | B53: 0.512778 | C53: 0.512778 | D53: 0.148548 | E53: 1 | F53: 106000000000 | G53: 6.537735849e-12 | H53: 3.522626263e+11 | I53: 0 | J53: 0 | K53: 0
A54: AT65 | B54: 0.512398 | C54: 0.5124 | D54: 0.160302 | E54: 1.000012476 | F54: 106000000000 | G54: 6.537735849e-12 | H54: 3.522626263e+11 | I54: 1908706.821 | J54: 1.908706821 | K54: 0.001908706821
A55: AT65 | B55: 0.512414 | C55: 0.512416 | D55: 0.169323 | E55: 1.000011812 | F55: 106000000000 | G55: 6.537735849e-12 | H55: 3.522626263e+11 | I55: 1807017.49 | J55: 1.80701749 | K55: 0.00180701749
A56: AT65 | B56: 0.512662 | C56: 0.512662 | D56: 0.34267 | E56: 1 | F56: 106000000000 | G56: 6.537735849e-12 | H56: 3.522626263e+11 | I56: 0 | J56: 0 | K56: 0
A57: AT69 | B57: 0.513044 | C57: 0.513044 | D57: 0.163115 | E57: 1 | F57: 106000000000 | G57: 6.537735849e-12 | H57: 3.522626263e+11 | I57: 0 | J57: 0 | K57: 0
F64: 87Rb/86Sr | G64: 147Sm/144Nd | H64: Model Age
F65: 0 | G65: 0.6283206656 | H65: -2192
F66: 0 | G66: 0 | H66: -1115
F67: 0 | G67: 0.4954505451 | H67: -573
F68: 0 | G68: 1.016452216 | H68: -59
F69: 0 | G69: 0 | H69: 181
F70: 1.494625459 | G70: 1.622545033 | H70: 416
F71: 0 | G71: 1.06981147 | H71: 639
F72: 1.50352979 | G72: 1.643655646 | H72: 664
F73: 0.4002988459 | G73: 1.12863356 | H73: 669
F74: 0 | G74: 2.18788563 | H74: 676
F75: 0 | G75: 0 | H75: 698
F76: 0 | G76: 1.908706821 | H76: 698
F77: 0 | G77: 1.80701749 | H77: 1564
F78: 1.457181324 | G78: 0 | H78: 1760
F79: 0 | G79: 0 | H79: 2013

Sheet F12
A1: Sample | B1: Billion | C1: Billion
A2: Number | B2: 187Re/188Os | C2: 187Re/188Os
A3: NSDZ01(FC) | B3: 600 | C3: 2000
A4: NSDZ02(FC) | B4: 900 | C4: 2100
A5: NSDZ02(FC) | B5: 1200 | C5: 2200
A6: 04XG14(FC) | B6: 1400 | C6: 1900
A7: 04XG26(FC) | B7: 1400 | C7: 2000
A8: 04XG26(EM) | B8: 1500 | C8: 2200
A9: ZK4-13U | B9: 1600 | C9: 4200
A10: ZK4-56L | B10: 1700 | C10: Negative
A11: ZK84-10U | B11: 1800 | C11: Negative
A12: ZK84-48L | B12: 1800 | C12: 2100
A13: ZK84-58L | B13: 1800 | C13: 1600
A14: ZK84-69L | B14: 1800 | C14: 1500
A15: ZK90-5U | B15: 1900 | C15: Negative
A16: ZK90-7U | B16: 2000 | C16: 7330
A17: ZK92-12U | B17: Negative | C17: 3300

Sheet F13
B1: 147Sm/144Nd | C1: 176Lu/177Hf | K1: Sample | L1: 147Sm/144Nd | M1: 176Lu/177Hf | N1: 187Re/188Os | O1: 187Re/188Os
A2: Table 2 | B2: Billion Years | C2: Billion Years | G2: Billion Years | K2: KL-3-24 | L2: 820 | M2: -30 | N2: -330 | O2: -3830
A3: BCR-1 | B3: 0.49 | C3: -9.27 | D3: =(C3*1000) -> -9270 | G3: -9.27 | K3: KL-3-26 | L3: 1150 | M3: -30 | N3: -30 | O3: -2490
A4: BHVO-2 | B4: 0.57 | C4: -0.52 | D4: =(C4*1000) -> -520 | G4: -3.83 | K4: KL3-27-1 | L4: 1280 | M4: 390 | N4: 160 | O4: -1780
A5: KL-3-24 | B5: 0.82 | C5: -0.03 | D5: -30 | G5: 5.91 | K5: KL3-27-2 | L5: 1390 | M5: 430 | N5: 280 | O5: -1170
A6: KL-3-26 | B6: 1.15 | C6: -0.03 | D6: -30 | G6: 10.62 | K6: KL3-28 | L6: 1430 | M6: 440 | N6: 390 | O6: -640
A7: KL3-27-1 | B7: 1.28 | C7: 0.39 | D7: 390 | G7: 14.65 | K7: KL3-30 | L7: 1520 | M7: 470 | N7: 560 | O7: -620
A8: KL3-27-2 | B8: 1.39 | C8: 0.43 | D8: 430 | K8: KL3-38 | L8: 1820 | M8: 540 | N8: 600 | O8: -200
A9: KL3-28 | B9: 1.43 | C9: 0.44 | D9: 440 | K9: 08KL-01 | L9: 2310 | M9: 590 | N9: 1030 | O9: -20
A10: KL3-30 | B10: 1.52 | C10: 0.47 | D10: 470 | K10: 08KL-03 | L10: 2310 | M10: 630 | N10: 1050 | O10: 10
A11: KL3-38 | B11: 1.82 | C11: 0.54 | D11: 540 | K11: 08KL-04 | L11: 3470 | M11: 690 | N11: 1110 | O11: 690
A12: 08KL-01 | B12: 2.31 | C12: 0.59 | D12: 590 | K12: 08KL-05 | L12: 4350 | M12: 700 | N12: 1120 | O12: 1010
A13: 08KL-03 | B13: 2.31 | C13: 0.63 | D13: 630 | K13: 08KL-07 | L13: 5910 | M13: 740 | N13: 1220 | O13: 1380
A14: 08KL-04 | B14: 3.47 | C14: 0.69 | D14: 690 | K14: 08KL-09 | M14: 760 | N14: 1280 | O14: 1420
A15: 08KL-05 | B15: 4.35 | C15: 0.7 | D15: 700 | K15: 08KL-10 | M15: 1280 | N15: 1420 | O15: 2170
A16: 08KL-07 | B16: 5.91 | C16: 0.74 | D16: 740 | K16: 08KL-11 | M16: 14650 | N16: 1890 | O16: 2640
A17: 08KL-09 | C17: 0.76 | D17: 760 | K17: 08KL-12 | N17: 1910 | O17: 6520
A18: 08KL-10 | C18: 1.28 | D18: 1280 | K18: 08KL-13 | N18: 2090 | O18: 10620
A19: 08KL-11 | C19: 14.65 | D19: 14650
A20: 08KL-12
A21: 08KL-13
B24: 187Re/188Os | C24: 187Re/188Os
A25: Table 3 | B25: Billion Years | C25: Billion Years
A26: KL3-24 | B26: -0.33 | C26: -3.83 | D26: =(C26*1000) -> -3830
A27: KL3-26 | B27: -0.03 | C27: -2.49 | D27: =(C27*1000) -> -2490
A28: KL3-27-1 | B28: 0.16 | C28: -1.78 | D28: -1780
A29: KL3-27-2 | B29: 0.28 | C29: -1.17 | D29: -1170
A30: KL3-28 | B30: 0.39 | C30: -0.64 | D30: -640
A31: KL3-30 | B31: 0.56 | C31: -0.62 | D31: -620
A32: KL3-31 | B32: 0.6 | C32: -0.2 | D32: -200
A33: KL3-38 | B33: 0.71 | C33: -0.15 | D33: -150
A34: KL3-40 | B34: 0.74 | C34: -0.1 | D34: -100
A35: KL3-41 | B35: 0.88 | C35: -0.04 | D35: -40
A36: 08KL-01 | B36: 1.03 | C36: -0.02 | D36: -20
A37: 08KL-02 | B37: 1.05 | C37: 0.01 | D37: 10
A38: 08KL-03 | B38: 1.11 | C38: 0.69 | D38: 690
A39: 08KL-04 | B39: 1.12 | C39: 1.01 | D39: 1010
A40: 08KL-05 | B40: 1.22 | C40: 1.38 | D40: 1380
A41: 08KL-07 | B41: 1.28 | C41: 1.42 | D41: 1420
A42: 08KL-09 | B42: 1.42 | C42: 2.17 | D42: 2170
A43: 08KL-10 | B43: 1.61 | C43: 2.54 | D43: 2540
A44: 08KL-11 | B44: 1.89 | C44: 2.64 | D44: 2640
A45: 08KL-12 | B45: 1.91 | C45: 6.52 | D45: 6520
A46: 08KL-13 | B46: 2.09 | C46: 10.62 | D46: 10620
A47: Max Age | B47: =MAX(B26:B46) -> 2.09 | C47: =MAX(C26:C46) -> 10.62
A48: Min Age | B48: =MIN(B26:B47) -> -0.33 | C48: =MIN(C26:C47) -> -3.83

Sheet F14
G1: 187Os/188Os | H1: 187Re/188Os | I1: 187Re/188Os
G2: -1217.035459 | H2: Future Age | I2: Future Age
A3: Future Age | B3: Future Age | G3: -284.1276972 | H3: 255 | I3: 662
A4: 255 | B4: 662 | G4: -316.8613029 | H4: 271 | I4: 633
A5: 271 | B5: 633 | G5: -136.8264717 | H5: 472 | I5: 732
A6: 472 | B6: 732 | G6: -104.092866 | H6: 483 | I6: 710
A7: 483 | B7: 710 | G7: -22.25885185 | H7: 541 | I7: 843
A8: 541 | B8: 843 | G8: 534.2124445 | H8: 1150 | I8: 1550
A9: 1150 | B9: 1550 | G9: -153.1932745 | H9: 449 | I9: 679
A10: 449 | B10: 679 | G10: 174.1427822 | H10: 740 | I10: 1080
A11: 740 | B11: 1080 | G11: 92.30876798 | H11: 473 | I11: 1090
A12: 473 | B12: 1090 | G12: -333.2281057 | H12: 448 | I12: 637
A13: 448 | B13: 637 | G13: -87.72606319 | H13: 480 | I13: 545
A14: 480 | B14: 545 | G14: -758.7649794 | H14: Future Age | I14: Future Age
A15: Future Age | B15: Future Age | G15: -235.0272887 | H15: 209 | I15: 248
A16: 209 | B16: 248 | G16: -169.5600774 | H16: 540 | I16: 562
A17: 540 | B17: 562 | G17: -1347.969881
G18: -54.99245752
G19: 386.911219
B22: Sample A | C22: Sample A
A23: 187Os/188Os | B23: Billion Years | C23: Million Years
A24: 0.1326 | B24: =(1.04-((A24)/0.12035))/0.050768 -> -1.217035459 | C24: =(B24 * 1000) -> -1217.035459
A25: 0.1269 | B25: =(1.04-((A25)/0.12035))/0.050768 -> -0.2841276972 | C25: =(B25 * 1000) -> -284.1276972
A26: 0.1271 | B26: -0.3168613029 | C26: -316.8613029
A27: 0.126 | B27: -0.1368264717 | C27: -136.8264717
A28: 0.1258 | B28: -0.104092866 | C28: -104.092866
A29: 0.1253 | B29: -0.02225885185 | C29: -22.25885185
A30: 0.1219 | B30: 0.5342124445 | C30: 534.2124445
A31: 0.1261 | B31: -0.1531932745 | C31: -153.1932745
A32: 0.1241 | B32: 0.1741427822 | C32: 174.1427822
A33: 0.1246 | B33: 0.09230876798 | C33: 92.30876798
A34: 0.1272 | B34: -0.3332281057 | C34: -333.2281057
A35: 0.1257 | B35: -0.08772606319 | C35: -87.72606319
A36: 0.1298 | B36: -0.7587649794 | C36: -758.7649794
A37: 0.1266 | B37: -0.2350272887 | C37: -235.0272887
A38: 0.1262 | B38: -0.1695600774 | C38: -169.5600774
A39: 0.1334 | B39: -1.347969881 | C39: -1347.969881
A40: 0.1255 | B40: -0.05499245752 | C40: -54.99245752
A41: 0.1228 | B41: 0.386911219 | C41: 386.911219

Sheet F16
I1: 5669 | J1: 894 | K1: 32.62 | L1: dl | M1: 0.0801 | N1: 2.26 | O1: 0.17 | P1: F | Q1: 0.003 | R1: 0.143 | S1: F | T1: 0.0004 | U1: 0.142 | V1: 13.9 | W1: .4.3
A2: Table 1 | B2: 187Re/188Os | M2: 0.0248 | N2: 3.76 | O2: 0.0318 | P2: F | Q2: 0.0015 | R2: 0.1301 | S2: F | T2: 0.0004 | U2: 0.1299 | V2: 4.2 | W2: .0.5
A3: DW339B | B3: 9.1 | I3: 7517 | J3: 566 | K3: 22.66 | L3: dl | M3: 0.528 | N3: 2.81 | O3: 0.91 | P3: F | Q3: 0.018 | R3: 0.143 | S3: F | T3: 0.0004 | U3: 0.1377 | V3: 10.5 | W3: 1.9
A4: DW339C2 | B4: 8.8 | I4: 1136 | J4: 307 | K4: 16.91 | L4: dl | M4: 0.179 | N4: 0.385 | O4: 2.33 | P4: F | Q4: 0.05 | R4: 0.4337 | S4: F | T4: 0.0013 | U4: 0.42 | V4: 237 | W4: 8.8
A5: DW321B | B5: 6.2 | I5: 1016 | J5: 255 | K5: 17.38 | L5: dl | M5: 0.0264 | N5: 0.065 | O5: 2.02 | P5: F | Q5: 0.1 | R5: 0.394 | S5: F | T5: 0.003 | U5: 0.382 | V5: 207 | W5: 9.1
A6: DW339E | B6: -0.5 | I6: 2493 | J6: 355 | K6: 19.69 | L6: dl | M6: 0.0633 | N6: 0.648 | O6: 0.47 | P6: F | Q6: 0.01 | R6: 0.1346 | S6: F | T6: 0.0004 | U6: 0.1318 | V6: 5.7 | W6: 6.2
A7: DW317A | B7: -4.3 | I7: 108 | J7: 106 | K7: 14.34 | L7: 180 | M7: 0.172 | N7: 0.0107 | O7: 83.1 | P7: F | Q7: 1.5 | R7: 0.661 | S7: F | T7: 0.034 | U7: 0.175 | V7: 40 | W7: 0.4
I8: 204 | J8: 66 | K8: 14.12 | L8: dl | M8: 0.0352 | N8: 0.0254 | O8: 6.77 | P8: F | Q8: 0.27 | R8: 0.265 | S8: F | T8: 0.009 | U8: 0.225 | V8: 80.4 | W8: 1.3
A9: WV1 | B9: 0.4 | I9: 369 | J9: 313 | K9: 13.4 | L9: 120 | M9: 1.64 | N9: 0.211 | O9: 41.4 | P9: F | Q9: 0.7 | R9: 0.928 | S9: F | T9: 0.004 | U9: 0.686 | V9: 450 | W9: 1.2
A10: WV2 | B10: 1.3 | I10: 563 | J10: 192 | K10: 12.18 | L10: dl | M10: 0.0112 | N10: 0.0204 | O10: 2.7 | P10: F | Q10: 0.05 | R10: 0.256 | S10: F | T10: 0.003 | U10: 0.24 | V10: 92.8 | W10: 3.3 | X10: 3.3
A11: PW221 | B11: 1.2 | I11: 2494 | J11: 1108 | K11: 26.08 | L11: 1590 | M11: 2.24 | N11: 0.506 | O11: 22.4 | P11: F | Q11: 0.4 | R11: 0.525 | S11: F | T11: 0.002 | U11: 0.394 | V11: 216 | W11: 1.1
A12: SL58 | B12: 3.3 | I12: 3077 | J12: 1875 | K12: 32.13 | L12: 230 | M12: 0.737 | N12: 1.68 | O12: 2.13 | P12: F | Q12: 0.04 | R12: 0.1902 | S12: F | T12: 0.0006 | U12: 0.1777 | V12: 42.5 | W12: 2.1
A13: DW236 | B13: 1.1 | I13: 1505 | J13: 591 | K13: 23.27 | L13: dl | M13: 0.123 | N13: 0.591 | O13: 1.01 | P13: F | Q13: 0.02 | R13: 0.1714 | S13: F | T13: 0.0006 | U13: 0.1655 | V13: 32.8 | W13: 4.3
A14: DW238 | B14: 2.1
A15: DW302B | B15: 4.3
A16: DW339D | B16: 1.9
A21: Rhenium | K21: Table 1
A22: Osmium | B22: Initial | C22: Today | D22: Today | E22: The Ratio | F22: Half | G22: Decay | H22: 2.303/Delta | I22: Age | J22: Age | K22: Age | L22: Tch Age | M22: Age | N22: Age Ratio
A23: Dating | B23: 187Os/188Os | C23: 187Os/188Os | D23: 187Re/188Os | E23: Plus One | F23: Life | G23: Constant | H23: Constant | I23: Years | J23: Million Years | K23: Billion Years | L23: Billion Years | M23: Difference | N23: Percentage
B24: 0.142 | C24: 0.143 | D24: 0.17 | E24: =1+((C24-B24)/D24) -> 1.005882353 | F24: 41600000000 | G24: =(0.693/F24) -> 1.665865385e-11 | H24: =(2.303/G24) -> 1.382464646e+11 | I24: =(LOG(E24))*(H24) -> 352139876 | J24: =(I24/1000000) -> 352.139876 | K24: =(J24/1000) -> 0.352139876 | L24: -4300 | M24: =J24 +ABS(L24) -> 4652.139876 | N24: =ABS(L24/J24) *100 -> 1221.105672
B25: 0.1299 | C25: 0.1301 | D25: 0.0318 | E25: =1+((C25-B25)/D25) -> 1.006289308 | F25: 41600000000 | G25: =(0.693/F25) -> 1.665865385e-11 | H25: =(2.303/G25) -> 1.382464646e+11 | I25: =(LOG(E25))*(H25) -> 376425538.6 | J25: =(I25/1000000) -> 376.4255386 | K25: =(J25/1000) -> 0.3764255386 | L25: -500 | M25: =J25 +ABS(L25) -> 876.4255386 | N25: =ABS(L25/J25) *100 -> 132.8283947
B26: 0.1377 | C26: 0.143 | D26: 0.91 | E26: =1+((C26-B26)/D26) -> 1.005824176 | F26: 41600000000 | G26: =(0.693/F26) -> 1.665865385e-11 | H26: =(2.303/G26) -> 1.382464646e+11 | I26: =(LOG(E26))*(H26) -> 348667266.8 | J26: =(I26/1000000) -> 348.6672668 | K26: =(J26/1000) -> 0.3486672668 | L26: 1900 | M26: =J26 +ABS(L26) -> 2248.667267 | N26: 544.9321405
B27: 0.42 | C27: 0.4337 | D27: 2.33 | E27: 1.005879828 | F27: 41600000000 | G27: 1.665865385e-11 | H27: 1.382464646e+11 | I27: 351989185.1 | J27: 351.9891851 | K27: 0.3519891851 | L27: 8800 | M27: =J27 +ABS(L27) -> 9151.989185 | N27: 2500.076813
B28: 0.382 | C28: 0.394 | D28: 2.02 | E28: 1.005940594 | F28: 41600000000 | G28: 1.665865385e-11 | H28: 1.382464646e+11 | I28: 355616104.2 | J28: 355.6161042 | K28: 0.3556161042 | L28: 9100 | M28: 9455.616104 | N28: 2558.93923
B29: 0.1318 | C29: 0.1346 | D29: 0.47 | E29: 1.005957447 | F29: 41600000000 | G29: 1.665865385e-11 | H29: 1.382464646e+11 | I29: 356621954 | J29: 356.621954 | K29: 0.356621954 | L29: 6200 | M29: 6556.621954 | N29: 1738.535704
B30: 0.175 | C30: 0.661 | D30: 83.1 | E30: 1.005848375 | F30: 41600000000 | G30: 1.665865385e-11 | H30: 1.382464646e+11 | I30: 350111774 | J30: 350.111774 | K30: 0.350111774 | L30: 400 | M30: 750.111774 | N30: 114.2492283
B31: 0.225 | C31: 0.265 | D31: 6.77 | E31: 1.005908419 | F31: 41600000000 | G31: 1.665865385e-11 | H31: 1.382464646e+11 | I31: 353695731.2 | J31: 353.6957312 | K31: 0.3536957312 | L31: 1300 | M31: 1653.695731 | N31: 367.5475515
B32: 0.686 | C32: 0.928 | D32: 41.4 | E32: 1.005845411 | F32: 41600000000 | G32: 1.665865385e-11 | H32: 1.382464646e+11 | I32: 349934801.7 | J32: 349.9348017 | K32: 0.3499348017 | L32: 1200 | M32: 1549.934802 | N32: 342.9210225
B33: 0.24 | C33: 0.256 | D33: 2.7 | E33: 1.005925926 | F33: 41600000000 | G33: 1.665865385e-11 | H33: 1.382464646e+11 | I33: 354740628.7 | J33: 354.7406287 | K33: 0.3547406287 | L33: 3300 | M33: 3654.740629 | N33: 930.2571325
B34: 0.394 | C34: 0.525 | D34: 22.4 | E34: 1.005848214 | F34: 41600000000 | G34: 1.665865385e-11 | H34: 1.382464646e+11 | I34: 350102153.9 | J34: 350.1021539 | K34: 0.3501021539 | L34: 1100 | M34: 1450.102154 | N34: 314.194011
B35: 0.1777 | C35: 0.1902 | D35: 2.13 | E35: 1.005868545 | F35: 41600000000 | G35: 1.665865385e-11 | H35: 1.382464646e+11 | I35: 351315670.2 | J35: 351.3156702 | K35: 0.3513156702 | L35: 2100 | M35: 2451.31567 | N35: 597.7530118
B36: 0.1655 | C36: 0.1714 | D36: 1.01 | E36: 1.005841584 | F36: 41600000000 | G36: 1.665865385e-11 | H36: 1.382464646e+11 | I36: 349706396.4 | J36: 349.7063964 | K36: 0.3497063964 | L36: 4300 | M36: 4649.706396 | N36: 1229.602902
J42: 187Os/188Os | K42: 187Re/188Os
J43: 352.139876 | K43: -4300
J44: 376.4255386 | K44: -500
J45: 348.6672668 | K45: 1900
J46: 351.9891851 | K46: 8800
J47: 355.6161042 | K47: 9100
J48: 356.621954 | K48: 6200
J49: 350.111774 | K49: 400
J50: 353.6957312 | K50: 1300
J51: 349.9348017 | K51: 1200
J52: 354.7406287 | K52: 3300
J53: 350.1021539 | K53: 1100
J54: 351.3156702 | K54: 2100
J55: 349.7063964 | K55: 4300

Sheet F17
A1: Table 1.
E2: 187Os/188Os | F2: Billion Years | G2: Million Years | I2: 187Re/188Os | J2: 187Re/188Os | K2: 187Os/188Os
A3: AL-40 | B3: lherz | D3: 2.23 | E3: 0.1284 | F3: =(1.04-((E3)/0.12035))/0.050768 -> -0.5296297397 | G3: =(F3 * 1000) -> -529.6297397 | J3: 80 | K3: -529.6297397
A4: AL-42 | B4: lherz | C4: 0.187 | D4: 1.5 | E4: 0.12568 | F4: =(1.04-((E4)/0.12035))/0.050768 -> -0.08445270262 | G4: =(F4 * 1000) -> -84.45270262 | H4: 0.5995 | I4: Future | J4: 460 | K4: -84.45270262
A5: AL-46 | B5: lherz | D5: 0.15 | E5: 0.13081 | F5: -0.924069688 | G5: -924.069688 | J5: Future | K5: -924.069688
A6: AL-47 | B6: lherz | D6: 2.19 | E6: 0.12541 | F6: -0.04026233497 | G6: -40.26233497 | J6: 500 | K6: -40.26233497
A7: AL-75 | B7: lherz | C7: 0.09 | D7: 1.06 | E7: 0.12591 | F7: -0.1220963491 | G7: -122.0963491 | H7: 0.4088 | I7: Future | J7: 430 | K7: -122.0963491
A8: AL-76a | B8: lherz | C8: 0.31 | D8: 1.81 | E8: 0.1283 | F8: -0.5132629369 | G8: -513.2629369 | H8: 0.822 | I8: Future | J8: 100 | K8: -513.2629369
A9: AL-86 | B9: lherz | C9: 0.144 | D9: 0.73 | E9: 0.12531 | F9: -0.02389553214 | G9: -23.89553214 | H9: 0.9537 | I9: Future | J9: 520 | K9: -23.89553214
A10: AL-88a | B10: lherz | C10: 0.289 | D10: 1.53 | E10: 0.1316 | F10: -1.05336743 | G10: -1053.36743 | H10: 0.9075 | I10: 320 | J10: Future | K10: -1053.36743
A11: AL-41 | B11: harz | C11: 0.179 | D11: 1.14 | E11: 0.12554 | F11: -0.06153917866 | G11: -61.53917866 | H11: 0.7518 | I11: Future | J11: 480 | K11: -61.53917866
A12: AL-49 | B12: harz | D12: 0.68 | E12: 0.12098 | F12: 0.6847870306 | G12: 684.7870306 | J12: 1110 | K12: 684.7870306
A13: AL-52a | B13: harz | C13: 0.093 | D13: 0.78 | E13: 0.1274 | F13: -0.3659617114 | G13: -365.9617114 | H13: 0.5742 | I13: Future | J13: 220 | K13: -365.9617114
A14: AL-53 | B14: harz | D14: 1.71 | E14: 0.12531 | F14: -0.02389553214 | G14: -23.89553214 | J14: 520 | K14: -23.89553214
A15: AL-54 | B15: harz | C15: 0.057 | D15: 1.76 | E15: 0.12648 | F15: -0.2153871253 | G15: -215.3871253 | H15: 0.1559 | I15: 550 | J15: 350 | K15: -215.3871253
A16: AL-56 | B16: harz | C16: 0.082 | D16: 1.02 | E16: 0.12724 | F16: -0.3397748268 | G16: -339.7748268 | H16: 0.3849 | I16: 2400 | J16: 250 | K16: -339.7748268
A17: XLG-30N | B17: lherz | C17: 0.36 | D17: 4.47 | E17: 0.1245 | F17: 0.1086755708 | G17: 108.6755708 | H17: 0.3872 | I17: 4500 | J17: 630 | K17: 108.6755708
A18: XLG-29A | B18: lherz | C18: 0.195 | D18: 0.51 | E18: 0.12236 | F18: 0.4589251515 | G18: 458.9251515 | H18: 1.8416 | I18: Future | J18: 920 | K18: 458.9251515
A19: XLG-12A | B19: harz | C19: 0.003 | D19: 0.41 | E19: 0.12957 | F19: -0.7211213329 | G19: -721.1213329 | H19: 0.0349 | I19: Future | J19: Future | K19: -721.1213329
A20: XLG-25A | B20: harz | C20: 0.014 | D20: 0.05 | E20: 0.13728 | F20: -1.983001831 | G20: -1983.001831 | H20: 1.3403 | I20: 540 | J20: Future | K20: -1983.001831
A21: RRX-19 | B21: harz | C21: 0.045 | D21: 3.14 | E21: 0.12443 | F21: 0.1201323328 | G21: 120.1323328 | H21: 0.029 | I21: 680 | J21: 640 | K21: 120.1323328
A22: RRX-21 | B22: harz | C22: 0.019 | D22: 1.34 | E22: 0.12532 | F22: -0.02553221242 | G22: -25.53221242 | H22: 0.068 | I22: 610 | J22: 510 | K22: -25.53221242
A23: KLX-47 | B23: harz | C23: 0.028 | D23: 1.26 | E23: 0.12661 | F23: -0.236663969 | G23: -236.663969 | H23: 0.1064 | I23: Future | J23: 330 | K23: -236.663969
A24: KRX-11b | B24: lherz | C24: 0.011 | D24: 1.17 | E24: 0.12363 | F24: 0.2510667555 | G24: 251.0667555 | H24: 0.0451 | I24: 840 | J24: 750 | K24: 251.0667555
D25: 0.77 | E25: 0.12494 | F25: 0.03666163835 | G25: 36.66163835 | K25: 36.66163835
A26: BTX-26b | B26: lherz | C26: 0.054 | D26: 1.05 | E26: 0.1309 | F26: -0.9387998106 | G26: -938.7998106 | H26: 0.2463 | I26: Future | J26: Future | K26: -938.7998106
C27: 0.071 | D27: 1.23 | E27: 0.13111 | F27: -0.9731700965 | G27: -973.1700965 | H27: 0.2762 | K27: -973.1700965

Sheet F19
A2: Yangyuan | O2: TCHUR | P2: 187Os/188Os | R2: TRD
A3: YYB-1 | B3: 81.3 | C3: 1.2 | D3: 16.3 | E3: 3.4 | F3: 1040 | G3: 0.63 | H3: 91.6 | I3: 0.58 | J3: 0.7034 | K3: 15 | L3: 0.512911 | M3: 9 | N3: 5.3 | O3: -0.5 | P3: 0.121 | Q3: 1624.6 | R3: 1.18
A4: YYB-2 | B4: 64.5 | C4: 1.8 | D4: 31.4 | E4: 0.9 | G4: 1.45 | H4: 91.8 | I4: 0.31 | J4: 0.703089 | K4: 17 | P4: 0.1124 | Q4: 1404.2 | R4: 2.14
A5: YYB-3 | B5: 57.6 | C5: 7 | D5: 32.9 | E5: 1.2 | F5: 872 | G5: 2.1 | H5: 91.1 | I5: 0.18 | J5: 0.704437 | K5: 15 | L5: 0.512077 | M5: 9 | N5: -11 | O5: 1 | P5: 0.1325 | Q5: 558.8 | R5: -0.53
A6: YYB-4 | B6: 56.9 | C6: 6.4 | D6: 35 | E6: 0.8 | F6: 1079 | G6: 2.15 | H6: 91.9 | I6: 0.22 | J6: 0.703234 | K6: 18 | L6: 0.513019 | M6: 13 | N6: 7.4 | O6: 9.7 | P6: 0.1146 | Q6: 797 | R6: 2.11
A7: YYB-5 | B7: 66.9 | C7: 2.1 | D7: 29 | E7: 0.7 | F7: 832 | G7: 1.33 | H7: 91 | I7: 0.23 | J7: 0.704282 | K7: 14 | L7: 0.512694 | M7: 10 | N7: 1.1 | O7: -0.2
A8: YYB-6 | B8: 58.9 | C8: 7.1 | D8: 31.1 | E8: 1.5 | F8: 1092 | G8: 2.7 | H8: 90.9 | I8: 0.15 | J8: 0.703266 | K8: 11 | L8: 0.513102 | M8: 14 | N8: 9.1 | O8: 2.6 | P8: 0.1174 | Q8: 573.1 | R8: 1.71
A9: YYB-7 | B9: 71.5 | C9: 0.6 | D9: 25.7 | E9: 0.2 | F9: 1103 | G9: 0.89 | H9: 91.8 | I9: 0.36 | J9: 0.702909 | K9: 14 | L9: 0.513102 | M9: 12 | N9: 8.9 | O9: -10.8 | P9: 0.111 | Q9: 1369.7 | R9: 2.63
A10: YYB-8 | B10: 57.8 | C10: 6.7 | D10: 31.6 | E10: 1.2 | F10: 1022 | G10: 2.37 | H10: 91.3 | I10: 0.17 | J10: 0.704708 | K10: 17 | L10: 0.513056 | M10: 10 | N10: 8.1 | P10: 0.1193 | Q10: 1593.3 | R10: 1.43
A11: YYB-9 | B11: 64.8 | C11: 1.4 | D11: 31.4 | E11: 1.6 | F11: 983 | G11: 0.72 | H11: 91.9 | I11: 0.56 | J11: 0.70471 | K11: 14 | L11: 0.51226 | M11: 13 | N11: -7.4 | O11: 0.5
A12: YYB-10 | B12: 60.8 | C12: 8.4 | D12: 27.5 | E12: 1 | F12: 1113 | G12: 2.22 | H12: 91.4 | I12: 0.19 | J12: 0.703405 | K12: 17 | L12: 0.513658 | M12: 13 | N12: 19.6 | O12: 2 | P12: 0.1192 | Q12: 1610.9 | R12: 1.45
A13: YG-2 | B13: 61.7 | C13: 18.8 | D13: 16.9 | E13: 2.7 | F13: 977 | G13: 3.69 | L13: 0.513498 | M13: 9 | N13: 17.5 | O13: 2.8 | P13: 0.1268 | Q13: 776.2 | R13: 0.33
A14: YG-5 | B14: 69.2 | C14: 3.6 | D14: 25.3 | E14: 1.7 | F14: 883 | G14: 1.74 | H14: 90.5 | I14: 0.24 | J14: 0.703348 | K14: 16 | L14: 0.512914 | M14: 6 | N14: 6 | O14: -3.5 | P14: 0.1187 | Q14: 365.9 | R14: 1.52
A15: YG-12 | B15: 59.8 | C15: 14.3 | D15: 22.8 | E15: 2.2 | F15: 901 | G15: 3.09 | H15: 90.5 | I15: 0.11 | L15: 0.513595 | M15: 10 | N15: 19 | O15: 2.2 | P15: 0.1208 | Q15: 376 | R15: 1.21
A16: YG-18 | B16: 81.9 | C16: 2.5 | D16: 13.6 | E16: 1.6 | F16: 942 | G16: 1.2 | H16: 90.6 | I16: 0.16 | P16: 0.1106 | Q16: 2674.1 | R16: 2.69
A17: YG-19 | G17: 0.36 | H17: 90.1 | I17: 0.26 | P17: 0.1311 | Q17: 9258.9 | R17: -0.31
A18: Fansi
A19: FS-1 | B19: 47.2 | C19: 15 | D19: 33.3 | E19: 2.6 | F19: 982 | G19: 4 | H19: 89.2 | I19: 0.09 | P19: 0.1262 | Q19: 783.8 | R19: 0.42
A20: FS-2 | F20: 914 | G20: 1.97 | H20: 90.3 | I20: 0.18 | P20: 0.1176 | Q20: 709 | R20: 1.68
A21: SF-18 | G21: 2.57 | P21: 0.1173 | Q21: 879.7 | R21: 1.72
A22: SF-23 | B22: 63.4 | C22: 9.8 | D22: 23.8 | E22: 1.9 | F22: 959 | G22: 2.24 | H22: 89.1 | I22: 0.17 | P22: 0.1194 | Q22: 563.1 | R22: 1.42
O29: 187Os/188Os | P29: Billion Years | Q29: Million Years
O30: 0.121 | P30: =(1.04-((O30)/0.12035))/0.050768 -> 0.68151367 | Q30: =(P30 * 1000) -> 681.51367
G31: 187Re/188Os | H31: 187Re/188Os | I31: 187Os/188Os | O31: 0.1124 | P31: =(1.04-((O31)/0.12035))/0.050768 -> 2.089058714 | Q31: =(P31 * 1000) -> 2089.058714
G32: -500 | H32: 1180 | I32: 681.51367 | O32: 0.1325 | P32: -1.200668656 | Q32: -1200.668656
H33: 2140 | I33: 2089.058714 | O33: 0.1146 | P33: 1.728989051 | Q33: 1728.989051
G34: 1000 | H34: -530 | I34: -1200.668656 | P34: 20.4853451 | Q34: .
G35: 9700 | H35: 2110 | I35: 1728.989051 | O35: 0.1174 | P35: 1.270718572 | Q35: 1270.718572
G36: -200 | O36: 0.111 | P36: 2.318193953 | Q36: 2318.193953
G37: 2600 | H37: 1710 | I37: 1270.718572 | O37: 0.1193 | P37: 0.9597493182 | Q37: 959.7493182
G38: -10800 | H38: 2630 | I38: 2318.193953 | P38: 20.4853451 | Q38: .
H39: 1430 | I39: 959.7493182 | O39: 0.1192 | P39: 0.976116121 | Q39: 976.116121
G40: 500 | O40: 0.1268 | P40: -0.2677608944 | Q40: -267.7608944
G41: 2000 | H41: 1450 | I41: 976.116121 | O41: 0.1187 | P41: 1.057950135 | Q41: 1057.950135
G42: 2800 | H42: 330 | I42: -267.7608944 | O42: 0.1208 | P42: 0.7142472757 | Q42: 714.2472757
G43: -3500 | H43: 1520 | I43: 1057.950135 | O43: 0.1106 | P43: 2.383661165 | Q43: 2383.661165
G44: 2200 | H44: 1210 | I44: 714.2472757 | O44: 0.1311 | P44: -0.9715334162 | Q44: -971.5334162
H45: 2690 | I45: 2383.661165 | P45: 20.4853451 | Q45: .
H46: -310 | I46: -971.5334162 | O46: 0.1262 | P46: -0.1695600774 | Q46: -169.5600774
H47: 420 | I47: -169.5600774 | O47: 0.1176 | P47: 1.237984966 | Q47: 1237.984966
H48: 1680 | I48: 1237.984966 | O48: 0.1173 | P48: 1.287085375 | Q48: 1287.085375
H49: 1720 | I49: 1287.085375 | O49: 0.1194 | P49: 0.9433825154 | Q49: 943.3825154
H50: 1420 | I50: 943.3825154
F51: Max Age | G51: =MAX(G32:G50) -> 9700 | H51: 2690 | I51: =MAX(I32:I50) -> 2383.661165
F52: Min Age | G52: =MIN(G32:G51) -> -10800 | H52: -530 | I52: =MIN(I32:I51) -> -1200.668656

Sheet F21
R1: 187Os/188Os | S1: 187Re/188Os | T1: 187Re/188Os | U1: 187Re/188Os | V1: 187Os/188Os | W1: 187Re/188Os | X1: 187Re/188Os | Y1: 187Re/188Os | Z1: 187Os/188Os | AA1: 187Re/188Os | AB1: 187Re/188Os | AC1: 187Re/188Os
R2: Age | S2: Model Age | T2: Depletion Age | U2: Eruption | V2: Age | W2: Model Age | X2: Depletion Age | Y2: Eruption | Z2: Age | AA2: Model Age | AB2: Depletion Age | AC2: Eruption
A3: Table 1 | B3: Million Years | R3: 1815.733106 | S3: -3214 | T3: 1990 | U3: 2911 | V3: 2149.615884 | W3: 3330 | X3: 2313 | Y3: 2363 | Z3: 2920.492298 | AA3: 4788 | AB3: 2813 | AC3: 3048
A4: TMa | B4: -3214 | C4: 2745 | D4: 3720 | E4: 3711 | F4: 2778 | G4: 935 | H4: 3951 | I4: 2735 | J4: 5485 | K4: 3428 | L4: 3469 | M4: 2268 | R4: 2012.13474 | S4: 2745 | T4: 2217 | U4: 2327 | V4: 2239.6333 | W4: 2769 | X4: 2388 | Y4: 2410 | Z4: 2445.855016 | AA4: 5793 | AB4: 2559 | AC4: 2877
A5: TRD | B5: 1990 | C5: 2217 | D5: 2435 | E5: 2356 | F5: 2620 | G5: 552 | H5: 2886 | I5: 2426 | J5: 2761 | K5: 2610 | L5: 2456 | M5: 1858 | R5: 2295.280429 | S5: 3720 | T5: 2435 | U5: 2632 | V5: 359.0876542 | W5: 1075 | X5: 805 | Y5: 846 | Z5: 2941.769141 | AA5: 3834 | AB5: 2968 | AC5: 3096
A6: TRDe | B6: 2911 | C6: 2327 | D6: 2632 | E6: 2565 | F6: 2653 | G6: 789 | H6: 3039 | I6: 2490 | J6: 3043 | K6: 2746 | L6: 2623 | M6: 1961 | R6: 2201.989653 | S6: 3711 | T6: 2356 | U6: 2565 | V6: 1393.469593 | W6: -14258 | X6: 1681 | Y6: 1862 | Z6: 2692.993738 | AA6: 3060 | AB6: 2763 | AC6: 2818
A7: TMa | B7: 3920 | C7: 3051 | D7: 3018 | E7: 2985 | F7: 4845 | G7: 3348 | H7: -552 | I7: 2961 | J7: 775 | K7: 2899 | L7: 1445 | M7: 5872 | N7: 2304 | O7: 2966 | P7: 2614 | R7: 2519.505628 | S7: 2778 | T7: 2620 | U7: 2653 | V7: 545.6692065 | W7: -1066 | X7: 964 | Y7: 1274 | Z7: 2490.045383 | AA7: 2844 | AB7: 2596 | AC7: 2646
A8: TRD | B8: 2202 | C8: 2836 | D8: 2800 | E8: 2618 | F8: 2876 | G8: 1808 | H8: 1460 | I8: 2790 | J8: 546 | K8: 2802 | L8: 987 | M8: 2876 | N8: 1723 | O8: 2726 | P8: 2141 | R8: 62.84852288 | S8: 935 | T8: 552 | U8: 789 | V8: 2133.249081 | W8: 3719 | X8: 2299 | Y8: 2361 | Z8: 2437.671614 | AA8: 2738 | AB8: 2552 | AC8: 2562
A9: TRDe | B9: 2453 | C9: 2876 | D9: 2841 | E9: 2688 | F9: 3106 | G9: 2071 | H9: 3523 | I9: 2823 | J9: 717 | K9: 2821 | L9: 1170 | M9: 3165 | N9: 1868 | O9: 2772 | P9: 2244 | R9: 2841.931644 | S9: 3951 | T9: 2886 | U9: 3039 | V9: 1393.469593 | W9: -14209 | X9: 1680 | Y9: 1861 | Z9: 2786.284514 | AA9: 3099 | AB9: 2841 | AC9: 2854
R10: 2285.460348 | S10: 2735 | T10: 2426 | U10: 2490 | V10: 1598.054629 | W10: 3384 | X10: 1852 | Y10: 1925 | Z10: -112.2762674 | AA10: 442 | AB10: 402 | AC10: 416
A11: Table 2 | B11: Million Years | R11: 2710.997221 | S11: 5485 | T11: 2761 | U11: 3043 | V11: 1648.791718 | W11: 5325 | X11: 1896 | Y11: 2000 | Z11: 2458.948458 | AA11: 6950 | AB11: 2569 | AC11: 2670
A12: TMa | B12: 3330 | C12: 2769 | D12: 1075 | E12: -14258 | F12: -1066 | G12: 3719 | H12: -14209 | I12: 3384 | J12: 5325 | K12: 5571 | L12: -609 | M12: 2471 | R12: 2506.412186 | S12: 3428 | T12: 2610 | U12: 2746 | V12: 2246.180021 | W12: 5571 | X12: 2393 | Y12: 2485 | Z12: 2409.848049 | AA12: 2688 | AB12: 2530 | AC12: 2542
A13: TRD | B13: 2313 | C13: 2388 | D13: 805 | E13: 1681 | F13: 964 | G13: 2299 | H13: 1680 | I13: 1852 | J13: 1896 | K13: 2393 | L13: 1589 | M13: 1935 | R13: 2321.467314 | S13: 3469 | T13: 2456 | U13: 2623 | V13: 1283.812014 | W13: -609 | X13: 1589 | Y13: 2170
A14: TRDe | B14: 2363 | C14: 2410 | D14: 846 | E14: 1862 | F14: 1274 | G14: 2361 | H14: 1861 | I14: 1925 | J14: 2000 | K14: 2485 | L14: 2170 | M14: 1971 | R14: 1604.60135 | S14: 2268 | T14: 1858 | U14: 1961 | V14: 1696.255446 | W14: 2471 | X14: 1935 | Y14: 1971
A15: TMa | B15: 600 | C15: 3359 | D15: 4482 | E15: 2385 | F15: 6994 | G15: 2601 | H15: 2588 | I15: 4331 | J15: 1242 | K15: 5643 | L15: -14258 | M15: 6994 | R15: 2017.044781 | S15: 3920 | T15: 2202 | U15: 2453 | V15: -105.7295463 | W15: 600 | X15: 408 | Y15: 460
A16: TRD | B16: 408 | C16: 2571 | D16: 1862 | E16: 1969 | F16: 1738 | G16: 2100 | H16: 2218 | I16: 2081 | J16: 1837 | K16: 557 | L16: 408 | M16: 2571 | R16: 2781.374474 | S16: 3051 | T16: 2836 | U16: 2876 | V16: 2460.585138 | W16: 3359 | X16: 2571 | Y16: 2609
A17: TRDe | B17: 460 | C17: 2609 | D17: 1957 | E17: 1997 | F17: 2168 | G17: 2210 | H17: 2299 | I17: 2378 | J17: 1980 | K17: 545 | L17: 460 | M17: 2609 | R17: 2737.184106 | S17: 3018 | T17: 2800 | U17: 2841 | V17: 1609.511391 | W17: 4482 | X17: 1862 | Y17: 1957
R18: 2517.868948 | S18: 2985 | T18: 2618 | U18: 2688 | V18: 1737.172453 | W18: 2385 | X18: 1969 | Y18: 1997
A19: Table 3 | B19: Million Years | R19: 2828.838202 | S19: 4845 | T19: 2876 | U19: 3106 | V19: 1460.573485 | W19: 6994 | X19: 1738 | Y19: 2168
A20: TMa | B20: 4788 | C20: 5793 | D20: 3834 | E20: 3060 | F20: 2844 | G20: 2738 | H20: 3099 | I20: 442 | J20: 6950 | K20: 2688 | R20: 1519.493975 | S20: 3348 | T20: 1808 | U20: 2071 | V20: 1894.29376 | W20: 2601 | X20: 2100 | Y20: 2210
A21: TRD | B21: 2813 | C21: 2559 | D21: 2968 | E21: 2763 | F21: 2596 | G21: 2552 | H21: 2841 | I21: 402 | J21: 2569 | K21: 2530 | R21: 1098.867142 | S21: -552 | T21: 1460 | U21: 3523 | V21: 2035.048264 | W21: 2588 | X21: 2218 | Y21: 2299
A22: TRDe | B22: 3048 | C22: 2877 | D22: 3096 | E22: 2818 | F22: 2646 | G22: 2562 | H22: 2854 | I22: 416 | J22: 2670 | K22: 2542 | R22: 2725.727344 | S22: 2961 | T22: 2790 | U22: 2823 | V22: 1870.889232 | W22: 4331 | X22: 2081 | Y22: 2378
R23: 56.30180175 | S23: 775 | T23: 546 | U23: 717 | V23: 1583.324506 | W23: 1242 | X23: 1837 | Y23: 1980
R24: 2740.457467 | S24: 2899 | T24: 2802 | U24: 2821 | V24: 19830.67299 | W24: 5643 | X24: 557 | Y24: 545
R25: 571.856091 | S25: 1445 | T25: 987 | U25: 1170 | V25: 2460.585138 | W25: -14258 | X25: 408 | Y25: 460
R26: 2828.838202 | S26: 5872 | T26: 2876 | U26: 3165 | V26: -105.7295463 | W26: 6994 | X26: 2571 | Y26: 2609
R27: 1444.206682 | S27: 2304 | T27: 1723 | U27: 1868
A28: 187Os/188Os | R28: 2647.16669 | S28: 2966 | T28: 2726 | U28: 2772
A29: Table 1 | B29: Billion Years | C29: Million Years | R29: 1941.757488 | S29: 2614 | T29: 2141 | U29: 2244
A30: 0.11407 | B30: =(1.04-((A30)/0.12035))/0.050768 -> 1.815733106 | C30: =(B30 * 1000) -> 1815.733106 | Q30: Max Age | R30: =MAX(R3:R29) -> 2841.931644 | S30: =MAX(S3:S29) -> 5872 | T30: 2886 | U30: 3523 | V30: 19830.67299 | W30: 6994 | X30: 2571 | Y30: 2609 | Z30: 2941.769141 | AA30: 6950 | AB30: 2968 | AC30: 3096
A31: 0.11287 | B31: =(1.04-((A31)/0.12035))/0.050768 -> 2.01213474 | C31: =(B31 * 1000) -> 2012.13474 | Q31: Min Age | R31: =MIN(R3:R30) -> 56.30180175 | S31: =MIN(S3:S30) -> -3214 | T31: 546 | U31: 717 | V31: -105.7295463 | W31: -14258 | X31: 408 | Y31: 460 | Z31: -112.2762674 | AA31: 442 | AB31: 402 | AC31: 416
A32: 0.11114 | B32: 2.295280429 | C32: 2295.280429 | R32: Table 1 | S32: Table 1 | T32: Table 1 | U32: Table 1 | V32: Table 2 | W32: Table 2 | X32: Table 2 | Y32: Table 2 | Z32: Table 3 | AA32: Table 3 | AB32: Table 3 | AC32: Table 3
A33: 0.11171 | B33: 2.201989653 | C33: 2201.989653
A34: 0.10977 | B34: 2.519505628 | C34: 2519.505628
A35: 0.12478 | B35: 0.06284852288 | C35: 62.84852288
A36: 0.1078 | B36: 2.841931644 | C36: 2841.931644
A37: 0.1112 | B37: 2.285460348 | C37: 2285.460348
A38: 0.1086 | B38: 2.710997221 | C38: 2710.997221
A39: 0.10985 | B39: 2.506412186 | C39: 2506.412186
A40: 0.11098 | B40: 2.321467314 | C40: 2321.467314
A41: 0.11536 | B41: 1.60460135 | C41: 1604.60135
A42: 0.11284 | B42: 2.017044781 | C42: 2017.044781
A43: 0.10817 | B43: 2.781374474 | C43: 2781.374474
A44: 0.10844 | B44: 2.737184106 | C44: 2737.184106
A45: 0.10978 | B45: 2.517868948 | C45: 2517.868948
A46: 0.10788 | B46: 2.828838202 | C46: 2828.838202
A47: 0.11588 | B47: 1.519493975 | C47: 1519.493975
A48: 0.11845 | B48: 1.098867142 | C48: 1098.867142
A49: 0.10851 | B49: 2.725727344 | C49: 2725.727344
A50: 0.12482 | B50: 0.05630180175 | C50: 56.30180175
A51: 0.10842 | B51: 2.740457467 | C51: 2740.457467
A52: 0.12167 | B52: 0.571856091 | C52: 571.856091
A53: 0.10788 | B53: 2.828838202 | C53: 2828.838202
A54: 0.11634 | B54: 1.444206682 | C54: 1444.206682
A55: 0.10899 | B55: 2.64716669 | C55: 2647.16669
A56: 0.1133 | B56: 1.941757488 | C56: 1941.757488
A57: Table 2
A58: 0.11203 | B58: 2.149615884 | C58: 2149.615884
A59: 0.11148 | B59: 2.2396333 | C59: 2239.6333
A60: 0.12297 | B60: 0.3590876542 | C60: 359.0876542
A61: 0.11665 | B61: 1.393469593 | C61: 1393.469593
A62: 0.12183 | B62: 0.5456692065 | C62: 545.6692065
A63: 0.11213 | B63: 2.133249081 | C63: 2133.249081
A64: 0.11665 | B64: 1.393469593 | C64: 1393.469593
A65: 0.1154 | B65: 1.598054629 | C65: 1598.054629
A66: 0.11509 | B66: 1.648791718 | C66: 1648.791718
A67: 0.11144 | B67: 2.246180021 | C67: 2246.180021
A68: 0.11732 | B68: 1.283812014 | C68: 1283.812014
A69: 0.1148 | B69: 1.696255446 | C69: 1696.255446
A70: 0.12581 | B70: -0.1057295463 | C70: -105.7295463
A71: 0.11013 | B71: 2.460585138 | C71: 2460.585138
A72: 0.11533 | B72: 1.609511391 | C72: 1609.511391
A73: 0.11455 | B73: 1.737172453 | C73: 1737.172453
A74: 0.11624 | B74: 1.460573485 | C74: 1460.573485
A75: 0.11359 | B75: 1.89429376 | C75: 1894.29376
A76: 0.11273 | B76: 2.035048264 | C76: 2035.048264
A77: 0.113733 | B77: 1.870889232 | C77: 1870.889232
A78: 0.11549 | B78: 1.583324506 | C78: 1583.324506
A79: 0.004 | B79: 19.83067299 | C79: 19830.67299
A80: 0.11013 | B80: 2.460585138 | C80: 2460.585138
A81: 0.12581 | B81: -0.1057295463 | C81: -105.7295463
A82: Table 3
A83: 0.10732 | B83: 2.920492298 | C83: 2920.492298
A84: 0.11022 | B84: 2.445855016 | C84: 2445.855016
A85: 0.10719 | B85: 2.941769141 | C85: 2941.769141
A86: 0.10871 | B86: 2.692993738 | C86: 2692.993738
A87: 0.10995 | B87: 2.490045383 | C87: 2490.045383
A88: 0.11027 | B88: 2.437671614 | C88: 2437.671614
A89: 0.10814 | B89: 2.786284514 | C89: 2786.284514
A90: 0.12585 | B90: -0.1122762674 | C90: -112.2762674
A91: 0.11014 | B91: 2.458948458 | C91: 2458.948458
A92: 0.11044 | B92: 2.409848049 | C92: 2409.848049

Sheet F23
A1: Sample | B1: Billion | C1: Billion
A2: Number | B2: Years | C2: Years
A3: KRX-11 | B3: 0.8363 | C3: 0.7488
A4: KRX-14 | C4: 0.0561
A5: LPX-18 | B5: <0 | C5: 0.1443
A6: BTX-26 | B6: <0 | C6: <0
A7: BTX-23 | B7: 0.966 | C7: 0.3217
A8: BTX-16 | B8: 0.6242 | C8: 0.3635
A9: RRX-10 | C9: 0.217
A10: RRX-14 | C10: 0.675
A11: VM-10 | B11: 0.8074 | C11: <0
A12: FS-41 | C12: 0.3482
A13: CL-3 | C13: 0.5417
A14: CL-17 | C14: 0.1764
E17: Age | F17: Age
C18: Location | D18: 187Os/188Os | E18: Billion Years | F18: Million Years | G18: 187Re/188Os | H18: 187Re/188Os
C19: West Kettle River | D19: 0.12363 | E19: =(1.04-((D19)/0.12035))/0.050768 -> 0.2510667555 | F19: =(E19 * 1000) -> 251.0667555 | G19: 836.3 | H19: 748.8
C20: West Kettle River | D20: 0.12494 | E20: =(1.04-((D20)/0.12035))/0.050768 -> 0.03666163835 | F20: =(E20 * 1000) -> 36.66163835
C21: West Kettle River | D21: 0.1222 | E21: 0.485112036 | F21: 485.112036
C22: West Kettle River | D22: 0.1286 | E22: -0.5623633454 | F22: -562.3633454 | H22: 56.1
C23: Lightning Peak | D23: 0.12797 | E23: -0.4592524875 | F23: -459.2524875 | G23: Negative | H23: 144.3
C24: Big Timothy | D24: 0.1309 | E24: -0.9387998106 | F24: -938.7998106 | G24: Negative | H24: Negative
C25: Big Timothy | D25: 0.13111 | E25: -0.9731700965 | F25: -973.1700965
C26: Big Timothy | D26: 0.1379 | E26: -2.084476009 | F26: -2084.476009
C27: Big Timothy | D27: 0.1267 | E27: -0.2513940915 | F27: -251.3940915 | G27: 966 | H27: 321.7
C28: Big Timothy | D28: 0.1264 | E28: -0.202293683 | F28: -202.293683 | G28: 624.2 | H28: 363.5
C29: Rayfield River | D29: 0.12745 | E29: -0.3741451128 | F29: -374.1451128 | H29: 217
C30: Rayfield River | D30: 0.12416 | E30: 0.1643227005 | F30: 164.3227005 | H30: 675
C31: Fort Selkirk | D31: 0.1301 | E31: -0.8078653879 | F31: -807.8653879 | G31: 807.4 | H31: Negative
C32: Fort Selkirk | D32: 0.12651 | E32: -0.2202971661 | F32: -220.2971661 | H32: 348.2
C33: Clinton | D33: 0.12512 | E33: 0.007201393247 | F33: 7.201393247 | H33: 541.7
C34: Clinton | D34: 0.12774 | E34: -0.421608841 | F34: -421.608841 | H34: 176.4

Sheet F26
A1: Sample Number | B1: Billion Years | C1: Billion Years | D1: Table 4.
A2: OI-61 | B2: -1.89 | C2: -7.12
A3: OI-63 | B3: -1.3 | C3: -3.54
A4: OI-67 | B4: -1.2 | C4: -1.99
A5: VR481 | B5: -0.94 | C5: -1.1
A6: VR50882 | B6: -0.92 | C6: -0.75
A7: VR40383a | B7: -0.62 | C7: -0.75
A8: VR19674 | B8: -0.62 | C8: -0.04
A9: VR50904 | B9: -0.03 | C9: 0.12
A10: VR16367 | B10: 0.05 | C10: 0.32
A11: A-s1 | B11: 0.13 | C11: 1.2
A12: A-s2 | B12: 0.97 | C12: 2.01
A13: A-s3 | B13: 0.98 | C13: 2.06
A14: A-s4 | B14: 1.21 | C14: 2.21
A15: C-s3 | B15: 1.49 | C15: 2.39
A16: E-s9 | B16: 1.57 | C16: 2.62
A17: E-s6 | B17: 1.83 | C17: 2.75
A18: E-s1 | B18: 1.92 | C18: 2.78
A19: E-s4 | B19: 2.13 | C19: 2.89
A20: Wholerock | B20: 2.3 | C20: 2.96
A21: b-s3a | B21: 2.32 | C21: 3.02
A22: b-s3b | B22: 2.54 | C22: 3.28
A23: b-s1 | B23: 2.86 | C23: 3.35
A24: b-s4 | B24: 2.98 | C24: 3.56
A25: a-s1 | B25: 3.03 | C25: 3.91
A26: Whole | B26: 3.52 | C26: 7.69
B29: Billion Years | C29: Billion Years
B30: -1.89 | C30: -7.12
B31: -1.3 | C31: -3.54
B32: -1.2 | C32: -1.99
B33: 3.52 | C33: 7.69
B34: 5.41 | C34: 14.81
A43: TABLE 2 | B43: 2 | H43: 187Os/188Os | P43: 187Os/188Os | Q43: Billion Years | R43: Million Years
A44: DTM | B44: 3.08044 | C44: 4e-05 | D44: 1.98297 | E44: 2e-05 | F44: 1.21948 | G44: 2e-05 | H44: 0.17397 | I44: 1e-05 | J44: 0.12016 | P44: =(H44) -> 0.17397 | Q44: =(1.04-((P44)/0.12035))/0.050768 -> -7.987981791 | R44: =(Q44 * 1000) -> -7987.981791
A45: DTM | B45: 3.07983 | C45: 0.00019 | D45: 1.98276 | E45: 0.00012 | F45: 1.2194 | G45: 8e-05 | H45: 0.17373 | I45: 6e-05 | J45: 0.1203 | P45: =(H45) -> 0.17373 | Q45: =(1.04-((P45)/0.12035))/0.050768 -> -7.948701464 | R45: =(Q45 * 1000) -> -7948.701464
A46: DTM | B46: 3.07543 | C46: 0.00018 | D46: 1.98117 | E46: 0.0001 | F46: 1.21889 | G46: 7e-05 | H46: 0.17374 | I46: 7e-05 | J46: — | P46: 0.17374 | Q46: -7.950338145 | R46: -7950.338145
A47: DTM | B47: 3.08261 | C47: 0.00029 | D47: 1.98373 | E47: 0.00016 | F47: 1.21984 | G47: 0.00012 | H47: 0.17369 | I47: 9e-05 | J47: 0.12093 | P47: 0.17369 | Q47: -7.942154743 | R47: -7942.154743
A48: DTM | B48: 3.07947 | C48: 0.0002 | D48: 1.98261 | E48: 0.00011 | F48: 1.2194 | G48: 8e-05 | H48: 0.17376 | I48: 7e-05 | J48: 0.1206 | P48: 0.17376 | Q48: -7.953611505 | R48: -7953.611505
A49: ANU | B49: 3.08024 | C49: 6e-05 | D49: 1.98298 | E49: 5e-05 | F49: 1.21947 | G49: 3e-05 | H49: 0.12351 | I49: 1e-05 | J49: 0.12004 | P49: 0.12351 | Q49: 0.2707069189 | R49: 270.7069189
A50: ANU | B50: 3.08288 | C50: 0.00014 | D50: 1.98379 | E50: 8e-05 | F50: 1.21968 | G50: 5e-05 | H50: 0.12341 | I50: 3e-05 | J50: 0.11996 | P50: 0.12341 | Q50: 0.2870737217 | R50: 287.0737217
A51: ANU | B51: 3.07998 | C51: 0.00018 | D51: 1.98275 | E51: 9e-05 | F51: 1.21945 | G51: 7e-05 | H51: 0.12335 | I51: 5e-05 | J51: 0.12007 | P51: 0.12335 | Q51: 0.2968938034 | R51: 296.8938034
A52: ANU | B52: 3.08058 | C52: 0.00011 | D52: 1.98305 | E52: 6e-05 | F52: 1.2195 | G52: 4e-05 | H52: 0.12347 | I52: 2e-05 | J52: 0.12003 | P52: 0.12347 | Q52: 0.27725364 | R52: 277.25364
A53: ANU | B53: 3.08035 | C53: 0.00034 | D53: 1.98312 | E53: 0.00018 | F53: 1.2196 | G53: 0.00013 | H53: 0.12325 | I53: 0.00013 | J53: 0.12018 | P53: 0.12325 | Q53: 0.3132606062 | R53: 313.2606062
A54: JM | B54: 3.0796 | C54: 8e-05 | D54: 1.98263 | E54: 5e-05 | F54: 1.2193 | G54: 3e-05 | H54: 0.1069 | I54: 6e-05 | J54: 0.1208 | P54: 0.1069 | Q54: 2.98923287 | R54: 2989.23287
A55: JM | B55: 3.08112 | C55: 9e-05 | D55: 1.98332 | E55: 5e-05 | F55: 1.2196 | G55: 3e-05 | H55: 0.10691 | I55: 2e-05 | J55: 0.12045 | P55: 0.10691 | Q55: 2.987596189 | R55: 2987.596189
A56: JM | B56: 3.07963 | C56: 0.00022 | D56: 1.98287 | E56: 0.00013 | F56: 1.21932 | G56: 9e-05 | H56: 0.10695 | I56: 4e-05 | J56: 0.12094 | P56: 0.10695 | Q56: 2.981049468 | R56: 2981.049468
A57: JM | B57: 3.07962 | C57: 0.00027 | D57: 1.98272 | E57: 0.00016 | F57: 1.21932 | G57: 0.00011 | H57: 0.10684 | I57: 8e-05 | J57: 0.12063 | P57: 0.10684 | Q57: 2.999052951 | R57: 2999.052951
A58: JM | B58: 3.08043 | C58: 0.00117 | D58: 1.99177 | E58: 0.00068 | F58: 1.21963 | G58: 0.00046 | H58: 0.10687 | I58: 0.00011 | J58: 0.12148 | P58: 0.10687 | Q58: 2.99414291 | R58: 2994.14291
A59: JM | B59: 3.0801 | C59: 0.00022 | D59: 1.98341 | E59: 0.00013 | F59: 1.21941 | G59: 9e-05 | H59: 0.10692 | I59: 4e-05 | J59: 0.12079 | P59: 0.10692 | Q59: 2.985959509 | R59: 2985.959509
A60: JM | B60: 3.08001 | C60: 0.00027 | D60: 1.98273 | E60: 0.00017 | F60: 1.21947 | G60: 0.00011 | H60: 0.107 | I60: 3e-05 | J60: 0.12064 | P60: 0.107 | Q60: 2.972866067 | R60: 2972.866067
A61: JM | B61: 3.07981 | C61: 0.00029 | D61: 1.98285 | E61: 0.00018 | F61: 1.21939 | G61: 0.00012 | H61: 0.10691 | I61: 8e-05 | J61: 0.12107 | P61: 0.10691 | Q61: 2.987596189 | R61: 2987.596189
A62: JM | B62: 3.08214 | C62: 0.00026 | D62: 1.98353 | E62: 0.00014 | F62: 1.21985 | G62: 0.0001 | H62: 0.10694 | I62: 0.00012 | J62: 0.12076 | P62: 0.10694 | Q62: 2.982686148 | R62: 2982.686148
A63: JM | B63: 3.08002 | C63: 0.00028 | D63: 1.98287 | E63: 0.00017 | F63: 1.21944 | G63: 0.00011 | H63: 0.10694 | I63: 7e-05 | J63: 0.12094 | P63: 0.10694 | Q63: 2.982686148 | R63: 2982.686148
A66: TABLE 3
A67: 187Os/188Os | E67: 187Os/188Os | F67: Billion Years | G67: Million Years
A68: 0.10657 | B68: 0.000139 | E68: =(A68) -> 0.10657 | F68: =(1.04-((E68)/0.12035))/0.050768 -> 3.043243319 | G68: =(F68 * 1000) -> 3043.243319
A69: 0.10641 | B69: 0.000197 | E69: =(A69) -> 0.10641 | F69: =(1.04-((E69)/0.12035))/0.050768 -> 3.069430204 | G69: =(F69 * 1000) -> 3069.430204
A70: 0.10647 | B70: 0.000328 | E70: 0.10647 | F70: 3.059610122 | G70: 3059.610122
A71: 0.10636 | B71: 8.3e-05 | E71: 0.10636 | F71: 3.077613605 | G71: 3077.613605
A72: 0.10633 | B72: 0.000104 | E72: 0.10633 | F72: 3.082523646 | G72: 3082.523646
A73: 0.10636 | B73: 0.000138 | E73: 0.10636 | F73: 3.077613605 | G73: 3077.613605
A74: 0.10641 | B74: 0.000337 | E74: 0.10641 | F74: 3.069430204 | G74: 3069.430204
A75: 0.10625 | B75: 0.000275 | E75: 0.10625 | F75: 3.095617088 | G75: 3095.617088
A76: 0.10647 | B76: 0.000173 | E76: 0.10647 | F76: 3.059610122 | G76: 3059.610122
A77: 0.10676 | B77: 5e-05 | E77: 0.10676 | F77: 3.012146394 | G77: 3012.146394
A78: 0.10622 | B78: 8.63e-05 | E78: 0.10622 | F78: 3.100527129 | G78: 3100.527129
A79: 0.10639 | B79: 0.000107 | E79: 0.10639 | F79: 3.072703564 | G79: 3072.703564
A82: TABLE 4 | B82: 4 | G82: 187Os/188Os | J82: TRD(Ga) | K82: SD | L82: TMA(Ga) | M82: SD | P82: 187Os/188Os | Q82: Billion Years | R82: Million Years | V82: 187Os/188Os | W82: Re/Os | X82: Re/Os
A83: OI-61 | B83: (M) | C83: e-ol | D83: -91.9 | E83: 0.00588 | F83: 2e-05 | G83: 0.1072 | H83: 0.0002 | I83: C | J83: 2980 | K83: 10 | L83: 3020 | M83: 30 | P83: =(G83) -> 0.1072 | Q83: =(1.04-((P83)/0.12035))/0.050768 -> 2.940132461 | R83: =(Q83 * 1000) -> 2940.132461 | V83: 2940.132461 | W83: 2980 | X83: 3020
A84: OI-63 | B84: (M) | C84: e-ol | D84: -92.2 | E84: 0.0051 | F84: 0.0003 | G84: 0.1033 | H84: 0.0012 | I84: C | J84: 3520 | K84: 90 | L84: 3560 | M84: 180 | P84: =(G84) -> 0.1033 | Q84: =(1.04-((P84)/0.12035))/0.050768 -> 3.578437772 | R84: =(Q84 * 1000) -> 3578.437772 | V84: 3578.437772 | W84: 3520 | X84: 3560
A85: OI-67 | B85: (M) | C85: e-ol | D85: -91.1 | E85: 0.081 | F85: 0.002 | G85: 0.1118 | H85: 0.0013 | J85: 2320 | K85: 100 | L85: 2890 | M85: 250 | P85: 0.1118 | Q85: 2.187259531 | R85: 2187.259531 | V85: 2187.259531 | W85: 2320 | X85: 2890
A86: VR481 | B86: (M) | C86: e-ol | D86: -92.3 | E86: 0.0137 | F86: 0.0001 | G86: 0.108 | H86: 0.0001 | I86: IC | J86: 2860 | K86: 10 | L86: 2960 | M86: 20 | P86: 0.108 | Q86: 2.809198038 | R86: 2809.198038 | V86: 2809.198038 | W86: 2860 | X86: 2960
A87: VR50882 | B87: (P) | C87: e-ol | D87: -92.8 | E87: 0.541 | F87: 0.015 | G87: 0.1119 | H87: 0.0008 | I87: IC | J87: 2300 | K87: 60 | L87: -7120 | M87: 850 | P87: 0.1119 | Q87: 2.170892728 | R87: 2170.892728 | V87: 2170.892728 | W87: 2300 | X87: -7120
A88: VR40383a | B88: (P) | C88: e-grt | D88: 0.096 | E88: 0.005 | F88: 0.1131 | G88: 0.1131 | H88: IC | J88: 2130 | K88: 60 | L88: 2780 | M88: 170 | P88: 0.1131 | Q88: 1.974491094 | R88: 1974.491094 | V88: 1974.491094 | W88: 2130 | X88: 2780
A89: VR19674 | B89: (P) | C89: e-ol | E89: 0.013 | F89: 0.001 | G89: 0.1102 | H89: 0.002 | I89: IC | J89: 2540 | K89: 150 | L89: 2620 | M89: 310 | P89: 0.1102 | Q89: 2.449128376 | R89: 2449.128376 | V89: 2449.128376 | W89: 2540 | X89: 2620
A90: VR50904 | B90: (P) | C90: i | E90: 0.184 | F90: 0.102 | G90: 0.14 | H90: 0.009 | I90: IC | J90: -1890 | K90: 660 | L90: -3540 | M90: 2980 | P90: 0.14 | Q90: -2.428178868 | R90: -2428.178868 | V90: -2428.178868 | W90: -1890 | X90: -3540
A91: VR16367 | B91: (D) | C91: e-diamond | D91: 0.04 | E91: 0.009 | F91: 0.1068 | G91: 0.1068 | H91: IC | J91: 3030 | K91: 180 | L91: 3350 | M91: 400 | P91: 0.1068 | Q91: 3.005599672 | R91: 3005.599672 | V91: 3005.599672 | W91: 3030 | X91: 3350
A92: A-s1 | B92: i | C92: 4.4 | D92: to | E92: 0.072 | F92: 0.012 | G92: 0.1316 | H92: 0.0042 | I92: C | J92: -620 | K92: 290 | L92: -750 | M92: 700 | P92: 0.1316 | Q92: -1.05336743 | R92: -1053.36743 | V92: -1053.36743 | W92: -620 | X92: -750
A93: A-s2 | B93: i | E93: 0.06 | F93: 0.01 | G93: 0.1337 | H93: 0.0034 | I93: C | J93: -940 | K93: 240 | L93: -1100 | M93: 570 | P93: 0.1337 | Q93: -1.39707029 | R93: -1397.07029 | V93: -1397.07029 | W93: -940 | X93: -1100
A94: A-s3 | B94: i | E94: 0.211 | F94: 0.008 | G94: 0.1209 | H94: 0.0026 | I94: C | J94: 980 | K94: 210 | L94: 2060 | M94: 870 | P94: 0.1209 | Q94: 0.6978804728 | R94: 697.8804728 | V94: 697.8804728 | W94: 980 | X94: 2060
A95: A-s4 | B95: i | E95: 0.072 | F95: 0.012 | G95: 0.1316 | H95: 0.0042 | I95: C | J95: -620 | K95: 290 | L95: -750 | M95: 700 | P95: 0.1316 | Q95: -1.05336743 | R95: -1053.36743 | V95: -1053.36743 | W95: -620 | X95: -750
A96: C-s3 | B96: i | E96: 0.137 | F96: 0.008 | G96: 0.1361 | H96: 0.0014 | I96: C | J96: -1300 | K96: 100 | L96: -1990 | M96: 320 | P96: 0.1361 | Q96: -1.789873558 | R96: -1789.873558 | V96: -1789.873558 | W96: -1300 | X96: -1990
A97: E-s9 | B97: i | E97: 0.31 | F97: 0.03 | G97: 0.1151 | H97: 0.0032 | I97: IC | J97: 1830 | K97: 240 | L97: 7690 | M97: 3270 | P97: 0.1151 | Q97: 1.647155037 | R97: 1647.155037 | V97: 1647.155037 | W97: 1830 | X97: 7690
A98: E-s6 | B98: i | E98: 0.24 | F98: 0.012 | G98: 0.1267 | H98: 0.001 | I98: IC | J98: 130 | K98: 160 | L98: 320 | M98: 800 | P98: 0.1267 | Q98: -0.2513940915 | R98: -251.3940915 | V98: -251.3940915 | W98: 130 | X98: 320
A99: E-s1 | B99: i | E99: 0.256 | F99: 0.002 | G99: 0.1194 | H99: 0.0024 | I99: IC | J99: 1210 | K99: 190 | L99: 3280 | M99: 1020 | P99: 0.1194 | Q99: 0.9433825154 | R99: 943.3825154 | V99: 943.3825154 | W99: 1210 | X99: 3280
A100: E-s4 | B100: i | E100: 0.186 | F100: 0.002 | G100: 0.1175 | H100: 0.0017 | I100: IC | J100: 1490 | K100: 130 | L100: 2750 | M100: 490 | P100: 0.1175 | Q100: 1.254351769 | R100: 1254.351769 | V100: 1254.351769 | W100: 1490 | X100: 2750
A101: b-s3a | B101: e-ol | C101: -90 | E101: 0.089 | F101: 0.002 | G101: 0.1169 | H101: 0.0011 | I101: IC | J101: 1570 | K101: 80 | L101: 2010 | M101: 220 | P101: 0.1169 | Q101: 1.352552586 | R101: 1352.552586 | V101: 1352.552586 | W101: 1570 | X101: 2010
A102: b-s3b | B102: e-ol | C102: -90 | E102: 0.24 | F102: 0.019 | G102: 0.121 | H102: 0.0022 | I102: IC | J102: 970 | K102: 170 | L102: 2390 | M102: 910 | P102: 0.121 | Q102: 0.68151367 | R102: 681.51367 | V102: 681.51367 | W102: 970 | X102: 2390
A103: b-s1 | B103: e-ol | C103: -90 | D103: 69 | E103: 0.055 | F103: 0.052 | G103: 0.1145 | H103: 0.0046 | I103: IC | J103: 1920 | K103: 350 | L103: 2210 | M103: 870 | P103: 0.1145 | Q103: 1.745355854 | R103: 1745.355854 | V103: 1745.355854 | W103: 1920 | X103: 2210
A104: b-s4 | B104: e-cpx | E104: 0.223 | F104: 0.034 | G104: 0.1272 | H104: 0.0027 | I104: IC | J104: 50 | K104: 680 | L104: 120 | M104: 3240 | P104: 0.1272 | Q104: -0.3332281057 | R104: -333.2281057 | V104: -333.2281057 | W104: 50 | X104: 120
A105: a-s1 | B105: i | C105: 1.2 | D105: 0.2d | E105: 0.791 | F105: 0.14 | G105: 0.1354 | H105: 0.0014 | I105: IC | J105: -1200 | K105: 100 | L105: 1200 | M105: 480 | P105: 0.1354 | Q105: -1.675305938 | R105: -1675.305938 | V105: -1675.305938 | W105: -1200 | X105: 1200
A106: Whole | B106: rock | C106: 1.63 | D106: 0.7d | E106: 0.491 | F106: 0.005 | G106: 0.1336 | H106: 0.0004 | I106: TIMS | J106: -920 | K106: 30 | L106: 3910 | M106: 320 | P106: 0.1336 | Q106: -1.380703487 | R106: -1380.703487 | V106: -1380.703487 | W106: -920 | X106: 3910
J107: =MAX(J83:J106) -> 3520 | L107: =MAX(L83:L106) -> 7690
J108: =MIN(J83:J107) -> -1890 | L108: =MIN(L83:L107) -> -7120
